Workbook

Sheet Sheet1
A1: PROTECT: PRIVATE UNTIL RELEASE AT 9.30AM ON THURSDAY 18 DECEMBER 2012

Sheet Covers
B5: Official Statistics Release
B6: Policy area: | C6: Children's homes inspections and outcomes
B7: Theme: | C7: Education, children’s services and skills
B8: Published on: | C8: 2012-12-18
B9: Coverage: | C9: England
B10: Period covered: | C10: 1 April 2012 - 30 June 2012
B11: Status: | C11: FINAL
B12: Issued by: | C12: Office for Standards in Education, Children's Services and Skills (Ofsted) Aviation House 125 Kingsway London WC2B 6SE
B16: Responsible director: | C16: John Goldup
B17: Statistician: | C17: Adam King
B18: Public enquiries: | C18: enquiries@ofsted.gov.uk
B19: Press enquiries: | C19: pressenquiries@ofsted.gov.uk
B20: Link to official statistics release web page: | C20: www.ofsted.gov.uk/resources/official-statistics-childrens-social-care-inspections-and-outcomes
B21: Publication medium: | C21: Ofsted website
B22: Publication frequency: | C22: Quarterly
B23: Next publication date: | C23: 2013-03-27
B26: © Crown copyright
B28: You may use and re-use this information (not including logos) free of charge in any format or medium, under the terms of the Open Government Licence.
B29: To view this licence, visit:
B30: http://www.nationalarchives.gov.uk/doc/open-government-licence/
B31: Or write to the Information Policy Team, The National Archives, Kew, London, TW9 4DU
B32: Or email:
B33: psi@nationalarchives.gsi.gov.uk

Sheet Contents
B1: Contents
B3: LINKS TO EACH TABLE
B6: Table 1: Number of children's homes inspections carried out between 1 April 2012 - 30 June 2012, by inspection type (final)
B7: Table 2: Overall effectiveness of children's homes at full inspections between 1 April 2012 - 30 June 2012 (final)
B8: Table 3a: Full inspection outcomes of children's homes (excluding secure children's homes - residential special schools caring for pupils for more than 295 days a year) inspected between 1 April 2012 - 30 June 2012 (final)
B9: Table 3b: Full inspection outcomes of secure children's homes inspected between 1 April 2012 - 30 June 2012 (final)
B10: Table 3c: Full inspection outcomes of residential special schools caring for pupils for more than 295 days per year inspected between 1 April 2012 - 30 June 2012 (final)
B11: Table 3d: Interim inspection outcomes of all children's homes inspected between 1 April 2012 - 30 June 2012 (final)
B12: Table 4: Overall effectiveness of children's homes inspected between 1 April 2012 - 30 June 2012 by region - local authority (final)
B13: Chart 1: Overall effectiveness of children's homes inspected between 1 April 2007 and 30 June 2012, by financial year (final)
B14: Chart 2: Overall effectiveness of children's homes inspected between 1 April 2007 and 30 June 2012, by quarter (final)
B15: Chart 3: Overall effectiveness of local authority run children's homes inspected between 1 April 2011 and 30 June 2012, by quarter (final)
B16: Chart 4: Overall effectiveness of private and voluntary run children's homes inspected between 1 April 2011 and 30 June 2012, by quarter (final)
B17: Map 1: Children's homes receiving a good or better overall effectiveness grade at full inspection, by former Government Office Region, since 1 April 2012 (final)
B18: Map 2: Children's homes receiving a satisfactory or lower overall effectiveness grade at full inspection, by former Government Office Region, since 1 April 2012 (final)
B19: Map 3: Local authority run children's homes receiving a good or better overall effectiveness grade at full inspection, by former Government Office Region, since 1 April 2012 (final)
B20: Map 4: Private and voluntary run children's homes receiving a good or better overall effectiveness grade at full inspection, by former Government Office Region, since 1 April 2012 (final)
B21: Map 5: Local authority run children's homes receiving an adequate or lower overall effectiveness grade at full inspection, by former Government Office Region, since 1 April 2012 (final)
B22: Map 6: Private and voluntary run children's homes receiving an adequate or lower overall effectiveness grade at full inspection, by former Government Office Region, since 1 April 2012 (final)

Sheet Ranges (hidden)
A1: 1 April 2012 - 30 June 2012 | B1: 1 July 2012 and 30 September 2012 | C1: 1 October - 31 December 2011 | D1: 1 January 2012 - 31 March 2012 | E1: OE:SC | F1: ="January 2012" -> January 2012 | G1: Month | H1: children's homes | I1: 1 April 2012 - 30 June 2012
A2: ="April 2011" -> April 2011 | B2: ="July 2012" -> July 2012 | C2: ="October 2011" -> October 2011 | D2: ="January 2012" -> January 2012 | E2: OE:EY | F2: ="February 2012" -> February 2012 | G2: Month | I2: ="April 2012" -> April 2012
A3: ="May 2011" -> May 2011 | B3: ="August 2012" -> August 2012 | C3: ="November 2011" -> November 2011 | D3: ="February 2012" -> February 2012 | E3: OE:SF | F3: ="March 2012" -> March 2012 | G3: Month | I3: ="May 2012" -> May 2012
A4: ="June 2011" -> June 2011 | B4: ="September 2012" -> September 2012 | C4: ="December 2011" -> December 2011 | D4: ="March 2012" -> March 2012 | E4: LM:EPCI | F4: ="April 2012" -> April 2012 | G4: Month | I4: ="June 2012" -> June 2012
F5: ="May 2012" -> May 2012 | G5: ="May 2011" -> May 2011 | H5: Month
A6: All | F6: ="June 2012" -> June 2012 | G6: ="June 2011" -> June 2011 | H6: Month
A7: 2011 January | F7: ="July 2012" -> July 2012 | G7: ="July 2011" -> July 2011 | H7: Month
A8: 2011 February | F8: ="August 2012" -> August 2012 | G8: ="August 2011" -> August 2011 | H8: Month
A9: 2011 March | F9: ="September 2012" -> September 2012 | G9: ="September 2011" -> September 2011 | H9: Month
F10: ="October 2012" -> October 2012 | G10: ="October 2011" -> October 2011 | H10: Month
F11: ="November 2012" -> November 2012 | G11: ="November 2011" -> November 2011 | H11: Month
C12: provision_table2 (now used for table 3) | F12: ="December 2012" -> December 2012 | G12: ="December 2011" -> December 2011 | H12: Month
A13: Children's home | B13: All | C13: Children's home
A14: Secure children's home | C14: Secure children's home
A15: Local authority fostering service | B15: Health Authority | C15: Local authority fostering service | G15: Children's home
A16: Independent fostering agency | B16: Local Authority | C16: Independent fostering agency | G16: Secure children's home
A17: Local authority private fostering service | B17: Private | C17: Local authority adoption service | G17: Residential special school (ch)
A18: Local authority adoption service | B18: Voluntary | C18: Voluntary adoption agency | G18: Local authority fostering service
A19: Voluntary adoption agency | C19: Residential family centre | G19: Independent fostering service
A20: Adoption support agency | C20: Residential special school | G20: Local authority adoption agency
A21: Residential family centre | C21: Boarding school | G21: Voluntary adoption agency
A22: Residential special school | C22: Further education college with residential accommodation | G22: Residential family centre
A23: Boarding school | G23: Residential special school
A24: Further education college with residential accommodation | G24: Boarding school
G25: Further education college with residential accommodation
G26: Adoption support agency
G27: Secure training centre
A29: All | B29: Amended LA's | C29: Periods
A30: Barking & Dagenham | B30: Barking & Dagenham | C30: =D1 -> 1 January 2012 - 31 March 2012 | D30: 4 | G30: Children's home
A31: Barnet | B31: Bath & North East Somerset | C31: =D2 -> January 2012 | D31: 1 | G31: Residential special school (>295 days/year)
A32: Barnsley | B32: Bedford Borough | C32: =D3 -> February 2012 | D32: 2 | G32: Secure children's home
A33: Bath & North East Somerset | B33: Brighton & Hove | C33: =D4 -> March 2012 | D33: 3
A34: Bedford Borough | B34: Derby city City | C34: =A1 -> 1 April 2012 - 30 June 2012 | D34: 4
A35: Bexley | B35: Hammersmith & Fulham | C35: ="April 2012" -> April 2012 | D35: 1 | G35: All
A36: Birmingham | B36: Isles of Scilly | C36: ="May 2012" -> May 2012 | D36: 2 | G36: Local authority
A37: Blackburn with Darwen | B37: Isle of Wight | C37: ="June 2012" -> June 2012 | D37: 3 | G37: Private/ voluntary
A38: Blackpool | B38: Leicester City | C38: =B1 -> 1 July 2012 and 30 September 2012 | D38: 4
A39: Bolton | B39: Nottingham city | C39: =B2 -> July 2012 | D39: 1
A40: Bournemouth | B40: Redcar & Cleveland | C40: =B3 -> August 2012 | D40: 2
A41: Bracknell Forest | B41: Southend | C41: =B4 -> September 2012 | D41: 3
A42: Bradford | B42: St. Helens | C42: =C1 -> 1 October - 31 December 2011 | D42: 4
A43: Brent | B43: Telford & Wrekin | C43: =C2 -> October 2011 | D43: 1
A44: Brighton & Hove | C44: =C3 -> November 2011 | D44: 2
A45: Bristol | C45: =C4 -> December 2011 | D45: 3
A46: Bromley
A47: Buckinghamshire
A48: Bury
A49: Calderdale
A50: Cambridgeshire
A51: Camden
A52: Central Bedfordshire
A53: Cheshire East
A54: Cheshire West and Chester
A55: City of London
A56: Cornwall
A57: Coventry
A58: Croydon
A59: Cumbria
A60: Darlington
A61: Derby City
A62: Derbyshire
A63: Devon
A64: Doncaster
A65: Dorset
A66: Dudley
A67: Durham
A68: Ealing
A69: East Riding of Yorkshire
A70: East Sussex
A71: Enfield
A72: Essex
A73: Gateshead
A74: Gloucestershire
A75: Greenwich
A76: Hackney
A77: Halton
A78: Hammersmith & Fulham
A79: Hampshire
A80: Haringey
A81: Harrow
A82: Hartlepool
A83: Havering
A84: Herefordshire
A85: Hertfordshire
A86: Hillingdon
A87: Hounslow
A88: Isle of Wight
A89: Isles of Scilly
A90: Islington
A91: Kensington and Chelsea
A92: Kent
A93: Kingston upon Hull
A94: Kingston upon Thames
A95: Kirklees
A96: Knowsley
A97: Lambeth
A98: Lancashire
A99: Leeds
A100: Leicester City
A101: Leicestershire
A102: Lewisham
A103: Lincolnshire
A104: Liverpool
A105: Luton
A106: Manchester
A107: Medway
A108: Merton
A109: Middlesbrough
A110: Milton Keynes
A111: Newcastle upon Tyne
A112: Newham
A113: Norfolk
A114: North East Lincolnshire
A115: North Lincolnshire
A116: North Somerset
A117: North Tyneside
A118: North Yorkshire
A119: Northamptonshire
A120: Northumberland
A121: Nottingham city
A122: Nottinghamshire
A123: Oldham
A124: Oxfordshire
A125: Peterborough
A126: Plymouth
A127: Poole
A128: Portsmouth
A129: Reading
A130: Redbridge
A131: Redcar & Cleveland
A132: Richmond upon Thames
A133: Rochdale
A134: Rotherham
A135: Rutland
A136: Salford
A137: Sandwell
A138: Sefton
A139: Sheffield
A140: Shropshire
A141: Slough
A142: Solihull
A143: Somerset
A144: South Gloucestershire
A145: South Tyneside
A146: Southampton
A147: Southend
A148: Southwark
A149: St. Helens
A150: Staffordshire
A151: Stockport
A152: Stockton-on-Tees
A153: Stoke-on-Trent
A154: Suffolk
A155: Sunderland
A156: Surrey
A157: Sutton
A158: Swindon
A159: Tameside
A160: Telford & Wrekin
A161: Thurrock
A162: Torbay
A163: Tower Hamlets
A164: Trafford
A165: Wakefield
A166: Walsall
A167: Waltham Forest
A168: Wandsworth
A169: Warrington
A170: Warwickshire
A171: West Berkshire
A172: West Sussex
A173: Westminster
A174: Wigan
A175: Wiltshire
A176: Windsor and Maidenhead
A177: Wirral
A178: Wokingham
A179: Wolverhampton
A180: Worcestershire
A181: York
A182: Local authority not recorded

Sheet Table1_Data (hidden)
A1: Lookup | B1: Local Authority | C1: Sector | D1: Event Type Group | E1: Corporate Inspected Provision Type Group Name | F1: Month | G1: Count
A2: AllAllFull inspectionChildren's Home1 | B2: All | C2: All | D2: Full inspection | E2: Children's Home | F2: 1 | G2: 58
A3: AllAllFull inspectionChildren's Home2 | B3: All | C3: All | D3: Full inspection | E3: Children's Home | F3: 2 | G3: 306
A4: AllAllFull inspectionChildren's Home3 | B4: All | C4: All | D4: Full inspection | E4: Children's Home | F4: 3 | G4: 243
A5: AllAllFull inspectionChildren's Home4 | B5: All | C5: All | D5: Full inspection | E5: Children's Home | F5: 4 | G5: 607
A6: AllAllFull inspectionResidential special school (>295 days/year)1 | B6: All | C6: All | D6: Full inspection | E6: Residential special school (>295 days/year) | F6: 1 | G6: 2
A7: AllAllFull inspectionResidential special school (>295 days/year)2 | B7: All | C7: All | D7: Full inspection | E7: Residential special school (>295 days/year) | F7: 2 | G7: 10
A8: AllAllFull inspectionResidential special school (>295 days/year)3 | B8: All | C8: All | D8: Full inspection | E8: Residential special school (>295 days/year) | F8: 3 | G8: 11
A9: AllAllFull inspectionResidential special school (>295 days/year)4 | B9: All | C9: All | D9: Full inspection | E9: Residential special school (>295 days/year) | F9: 4 | G9: 23
A10: AllAllFull inspectionSecure Children's Home1 | B10: All | C10: All | D10: Full inspection | E10: Secure Children's Home | F10: 1 | G10: 2
A11: AllAllFull inspectionSecure Children's Home2 | B11: All | C11: All | D11: Full inspection | E11: Secure Children's Home | F11: 2 | G11: 4
A12: AllAllFull inspectionSecure Children's Home3 | B12: All | C12: All | D12: Full inspection | E12: Secure Children's Home | F12: 3 | G12: 1
A13: AllAllFull inspectionSecure Children's Home4 | B13: All | C13: All | D13: Full inspection | E13: Secure Children's Home | F13: 4 | G13: 7
A14: AllAllInterim inspectionChildren's Home1 | B14: All | C14: All | D14: Interim inspection | E14: Children's Home | F14: 1 | G14: 4
A15: AllAllInterim inspectionChildren's Home2 | B15: All | C15: All | D15: Interim inspection | E15: Children's Home | F15: 2 | G15: 20
A16: AllAllInterim inspectionChildren's Home3 | B16: All | C16: All | D16: Interim inspection | E16: Children's Home | F16: 3 | G16: 20
A17: AllAllInterim inspectionChildren's Home4 | B17: All | C17: All | D17: Interim inspection | E17: Children's Home | F17: 4 | G17: 44
A18: AllAllInterim inspectionResidential special school (>295 days/year)3 | B18: All | C18: All | D18: Interim inspection | E18: Residential special school (>295 days/year) | F18: 3 | G18: 2
A19: AllAllInterim inspectionResidential special school (>295 days/year)4 | B19: All | C19: All | D19: Interim inspection | E19: Residential special school (>295 days/year) | F19: 4 | G19: 2
A20: AllAllInterim inspectionSecure Children's Home2 | B20: All | C20: All | D20: Interim inspection | E20: Secure Children's Home | F20: 2 | G20: 1
A21: AllAllInterim inspectionSecure Children's Home4 | B21: All | C21: All | D21: Interim inspection | E21: Secure Children's Home | F21: 4 | G21: 1
A22: AllLocal AuthorityFull inspectionChildren's Home1 | B22: All | C22: Local Authority | D22: Full inspection | E22: Children's Home | F22: 1 | G22: 11
A23: AllLocal AuthorityFull inspectionChildren's Home2 | B23: All | C23: Local Authority | D23: Full inspection | E23: Children's Home | F23: 2 | G23: 58
A24: AllLocal AuthorityFull inspectionChildren's Home3 | B24: All | C24: Local Authority | D24: Full inspection | E24: Children's Home | F24: 3 | G24: 69
A25: AllLocal AuthorityFull inspectionChildren's Home4 | B25: All | C25: Local Authority | D25: Full inspection | E25: Children's Home | F25: 4 | G25: 138
A26: AllLocal AuthorityFull inspectionResidential special school (>295 days/year)3 | B26: All | C26: Local Authority | D26: Full inspection | E26: Residential special school (>295 days/year) | F26: 3 | G26: 1
A27: AllLocal AuthorityFull inspectionResidential special school (>295 days/year)4 | B27: All | C27: Local Authority | D27: Full inspection | E27: Residential special school (>295 days/year) | F27: 4 | G27: 1
A28: AllLocal AuthorityFull inspectionSecure Children's Home1 | B28: All | C28: Local Authority | D28: Full inspection | E28: Secure Children's Home | F28: 1 | G28: 2
A29: AllLocal AuthorityFull inspectionSecure Children's Home2 | B29: All | C29: Local Authority | D29: Full inspection | E29: Secure Children's Home | F29: 2 | G29: 4
A30: AllLocal AuthorityFull inspectionSecure Children's Home3 | B30: All | C30: Local Authority | D30: Full inspection | E30: Secure Children's Home | F30: 3 | G30: 1
A31: AllLocal AuthorityFull inspectionSecure Children's Home4 | B31: All | C31: Local Authority | D31: Full inspection | E31: Secure Children's Home | F31: 4 | G31: 7
A32: AllLocal AuthorityInterim inspectionChildren's Home2 | B32: All | C32: Local Authority | D32: Interim inspection | E32: Children's Home | F32: 2 | G32: 1
A33: AllLocal AuthorityInterim inspectionChildren's Home4 | B33: All | C33: Local Authority | D33: Interim inspection | E33: Children's Home | F33: 4 | G33: 1
A34: AllPrivate/ VoluntaryFull inspectionChildren's Home1 | B34: All | C34: Private/ Voluntary | D34: Full inspection | E34: Children's Home | F34: 1 | G34: 47
A35: AllPrivate/ VoluntaryFull inspectionChildren's Home2 | B35: All | C35: Private/ Voluntary | D35: Full inspection | E35: Children's Home | F35: 2 | G35: 248
A36: AllPrivate/ VoluntaryFull inspectionChildren's Home3 | B36: All | C36: Private/ Voluntary | D36: Full inspection | E36: Children's Home | F36: 3 | G36: 174
A37: AllPrivate/ VoluntaryFull inspectionChildren's Home4 | B37: All | C37: Private/ Voluntary | D37: Full inspection | E37: Children's Home | F37: 4 | G37: 469
A38: AllPrivate/ VoluntaryFull inspectionResidential special school (>295 days/year)1 | B38: All | C38: Private/ Voluntary | D38: Full inspection | E38: Residential special school (>295 days/year) | F38: 1 | G38: 2
A39: AllPrivate/ VoluntaryFull inspectionResidential special school (>295 days/year)2 | B39: All | C39: Private/ Voluntary | D39: Full inspection | E39: Residential special school (>295 days/year) | F39: 2 | G39: 10
A40: AllPrivate/ VoluntaryFull inspectionResidential special school (>295 days/year)3 | B40: All | C40: Private/ Voluntary | D40: Full inspection | E40: Residential special school (>295 days/year) | F40: 3 | G40: 10
A41: AllPrivate/ VoluntaryFull inspectionResidential special school (>295 days/year)4 | B41: All | C41: Private/ Voluntary | D41: Full inspection | E41: Residential special school (>295 days/year) | F41: 4 | G41: 22
A42: AllPrivate/ VoluntaryInterim inspectionChildren's Home1 | B42: All | C42: Private/ Voluntary | D42: Interim inspection | E42: Children's Home | F42: 1 | G42: 4
A43: AllPrivate/ VoluntaryInterim inspectionChildren's Home2 | B43: All | C43: Private/ Voluntary | D43: Interim inspection | E43: Children's Home | F43: 2 | G43: 19
A44: AllPrivate/ VoluntaryInterim inspectionChildren's Home3 | B44: All | C44: Private/ Voluntary | D44: Interim inspection | E44: Children's Home | F44: 3 | G44: 20
A45: AllPrivate/ VoluntaryInterim inspectionChildren's Home4 | B45: All | C45: Private/ Voluntary | D45: Interim inspection | E45: Children's Home | F45: 4 | G45: 43
A46: AllPrivate/ VoluntaryInterim inspectionResidential special school (>295 days/year)3 | B46: All | C46: Private/ Voluntary | D46: Interim inspection | E46: Residential special school (>295 days/year) | F46: 3 | G46: 2
A47: AllPrivate/ VoluntaryInterim inspectionResidential special school (>295 days/year)4 | B47: All | C47: Private/ Voluntary | D47: Interim inspection | E47: Residential special school (>295 days/year) | F47: 4 | G47: 2
A48: AllPrivate/ VoluntaryInterim inspectionSecure Children's Home2 | B48: All | C48: Private/ Voluntary | D48: Interim inspection | E48: Secure Children's Home | F48: 2 | G48: 1
A49: AllPrivate/ VoluntaryInterim inspectionSecure Children's Home4 | B49: All | C49: Private/ Voluntary | D49: Interim inspection | E49: Secure Children's Home | F49: 4 | G49: 1
A50: Barking & DagenhamAllFull inspectionChildren's Home2 | B50: Barking & Dagenham | C50: All | D50: Full inspection | E50: Children's Home | F50: 2 | G50: 1
A51: Barking & DagenhamAllFull inspectionChildren's Home3 | B51: Barking & Dagenham | C51: All | D51: Full inspection | E51: Children's Home | F51: 3 | G51: 1
A52: Barking & DagenhamAllFull inspectionChildren's Home4 | B52: Barking & Dagenham | C52: All | D52: Full inspection | E52: Children's Home | F52: 4 | G52: 2
A53: Barking & DagenhamPrivate/ VoluntaryFull inspectionChildren's Home2 | B53: Barking & Dagenham | C53: Private/ Voluntary | D53: Full inspection | E53: Children's Home | F53: 2 | G53: 1
A54: Barking & DagenhamPrivate/ VoluntaryFull inspectionChildren's Home3 | B54: Barking & Dagenham | C54: Private/ Voluntary | D54: Full inspection | E54: Children's Home | F54: 3 | G54: 1
A55: Barking & DagenhamPrivate/ VoluntaryFull inspectionChildren's Home4 | B55: Barking & Dagenham | C55: Private/ Voluntary | D55: Full inspection | E55: Children's Home | F55: 4 | G55: 2
A56: BarnetAllFull inspectionChildren's Home2 | B56: Barnet | C56: All | D56: Full inspection | E56: Children's Home | F56: 2 | G56: 1
A57: BarnetAllFull inspectionChildren's Home4 | B57: Barnet | C57: All | D57: Full inspection | E57: Children's Home | F57: 4 | G57: 1
A58: BarnetPrivate/ VoluntaryFull inspectionChildren's Home2 | B58: Barnet | C58: Private/ Voluntary | D58: Full inspection | E58: Children's Home | F58: 2 | G58: 1
A59: BarnetPrivate/ VoluntaryFull inspectionChildren's Home4 | B59: Barnet | C59: Private/ Voluntary | D59: Full inspection | E59: Children's Home | F59: 4 | G59: 1
A60: BarnsleyAllFull inspectionChildren's Home2 | B60: Barnsley | C60: All | D60: Full inspection | E60: Children's Home | F60: 2 | G60: 1
A61: BarnsleyAllFull inspectionChildren's Home3 | B61: Barnsley | C61: All | D61: Full inspection | E61: Children's Home | F61: 3 | G61: 7
A62: BarnsleyAllFull inspectionChildren's Home4 | B62: Barnsley | C62: All | D62: Full inspection | E62: Children's Home | F62: 4 | G62: 8
A63: BarnsleyLocal AuthorityFull inspectionChildren's Home3 | B63: Barnsley | C63: Local Authority | D63: Full inspection | E63: Children's Home | F63: 3 | G63: 1
A64: BarnsleyLocal AuthorityFull inspectionChildren's Home4 | B64: Barnsley | C64: Local Authority | D64: Full inspection | E64: Children's Home | F64: 4 | G64: 1
A65: BarnsleyPrivate/ VoluntaryFull inspectionChildren's Home2 | B65: Barnsley | C65: Private/ Voluntary | D65: Full inspection | E65: Children's Home | F65: 2 | G65: 1
A66: BarnsleyPrivate/ VoluntaryFull inspectionChildren's Home3 | B66: Barnsley | C66: Private/ Voluntary | D66: Full inspection | E66: Children's Home | F66: 3 | G66: 6
A67: BarnsleyPrivate/ VoluntaryFull inspectionChildren's Home4 | B67: Barnsley | C67: Private/ Voluntary | D67: Full inspection | E67: Children's Home | F67: 4 | G67: 7
A68: Bedford boroughAllFull inspectionChildren's Home3 | B68: Bedford borough | C68: All | D68: Full inspection | E68: Children's Home | F68: 3 | G68: 1
A69: Bedford boroughAllFull inspectionChildren's Home4 | B69: Bedford borough | C69: All | D69: Full inspection | E69: Children's Home | F69: 4 | G69: 1
A70: Bedford boroughPrivate/ VoluntaryFull inspectionChildren's Home3 | B70: Bedford borough | C70: Private/ Voluntary | D70: Full inspection | E70: Children's Home | F70: 3 | G70: 1
A71: Bedford boroughPrivate/ VoluntaryFull inspectionChildren's Home4 | B71: Bedford borough | C71: Private/ Voluntary | D71: Full inspection | E71: Children's Home | F71: 4 | G71: 1
A72: BexleyAllFull inspectionChildren's Home2 | B72: Bexley | C72: All | D72: Full inspection | E72: Children's Home | F72: 2 | G72: 1
A73: BexleyAllFull inspectionChildren's Home3 | B73: Bexley | C73: All | D73: Full inspection | E73: Children's Home | F73: 3 | G73: 1
A74: BexleyAllFull inspectionChildren's Home4 | B74: Bexley | C74: All | D74: Full inspection | E74: Children's Home | F74: 4 | G74: 2
A75: BexleyPrivate/ VoluntaryFull inspectionChildren's Home2 | B75: Bexley | C75: Private/ Voluntary | D75: Full inspection | E75: Children's Home | F75: 2 | G75: 1
A76: BexleyPrivate/ VoluntaryFull inspectionChildren's Home3 | B76: Bexley | C76: Private/ Voluntary | D76: Full inspection | E76: Children's Home | F76: 3 | G76: 1
A77: BexleyPrivate/ VoluntaryFull inspectionChildren's Home4 | B77: Bexley | C77: Private/ Voluntary | D77: Full inspection | E77: Children's Home | F77: 4 | G77: 2
A78: BirminghamAllFull inspectionChildren's Home1 | B78: Birmingham | C78: All | D78: Full inspection | E78: Children's Home | F78: 1 | G78: 2
A79: BirminghamAllFull inspectionChildren's Home2 | B79: Birmingham | C79: All | D79: Full inspection | E79: Children's Home | F79: 2 | G79: 11
A80: BirminghamAllFull inspectionChildren's Home3 | B80: Birmingham | C80: All | D80: Full inspection | E80: Children's Home | F80: 3 | G80: 4
A81: BirminghamAllFull inspectionChildren's Home4 | B81: Birmingham | C81: All | D81: Full inspection | E81: Children's Home | F81: 4 | G81: 17
A82: BirminghamAllInterim inspectionChildren's Home2 | B82: Birmingham | C82: All | D82: Interim inspection | E82: Children's Home | F82: 2 | G82: 1
A83: BirminghamAllInterim inspectionChildren's Home4 | B83: Birmingham | C83: All | D83: Interim inspection | E83: Children's Home | F83: 4 | G83: 1
A84: BirminghamLocal AuthorityFull inspectionChildren's Home1 | B84: Birmingham | C84: Local Authority | D84: Full inspection | E84: Children's Home | F84: 1 | G84: 1
A85: BirminghamLocal AuthorityFull inspectionChildren's Home2 | B85: Birmingham | C85: Local Authority | D85: Full inspection | E85: Children's Home | F85: 2 | G85: 2
A86: BirminghamLocal AuthorityFull inspectionChildren's Home3 | B86: Birmingham | C86: Local Authority | D86: Full inspection | E86: Children's Home | F86: 3 | G86: 1
A87: BirminghamLocal AuthorityFull inspectionChildren's Home4 | B87: Birmingham | C87: Local Authority | D87: Full inspection | E87: Children's Home | F87: 4 | G87: 4
A88: BirminghamPrivate/ VoluntaryFull inspectionChildren's Home1 | B88: Birmingham | C88: Private/ Voluntary | D88: Full inspection | E88: Children's Home | F88: 1 | G88: 1
A89: BirminghamPrivate/ VoluntaryFull inspectionChildren's Home2 | B89: Birmingham | C89: Private/ Voluntary | D89: Full inspection | E89: Children's Home | F89: 2 | G89: 9
A90: BirminghamPrivate/ VoluntaryFull inspectionChildren's Home3 | B90: Birmingham | C90: Private/ Voluntary | D90: Full inspection | E90: Children's Home | F90: 3 | G90: 3
A91: BirminghamPrivate/ VoluntaryFull inspectionChildren's Home4 | B91: Birmingham | C91: Private/ Voluntary | D91: Full inspection | E91: Children's Home | F91: 4 | G91: 13
A92: BirminghamPrivate/ VoluntaryInterim inspectionChildren's Home2 | B92: Birmingham | C92: Private/ Voluntary | D92: Interim inspection | E92: Children's Home | F92: 2 | G92: 1
A93: BirminghamPrivate/ VoluntaryInterim inspectionChildren's Home4 | B93: Birmingham | C93: Private/ Voluntary | D93: Interim inspection | E93: Children's Home | F93: 4 | G93: 1
A94: Blackburn with DarwenAllFull inspectionChildren's Home2 | B94: Blackburn with Darwen | C94: All | D94: Full inspection | E94: Children's Home | F94: 2 | G94: 1
A95: Blackburn with DarwenAllFull inspectionChildren's Home4 | B95: Blackburn with Darwen | C95: All | D95: Full inspection | E95: Children's Home | F95: 4 | G95: 1
A96: Blackburn with DarwenPrivate/ VoluntaryFull inspectionChildren's Home2 | B96: Blackburn with Darwen | C96: Private/ Voluntary | D96: Full inspection | E96: Children's Home | F96: 2 | G96: 1
A97: Blackburn with DarwenPrivate/ VoluntaryFull inspectionChildren's Home4 | B97: Blackburn with Darwen | C97: Private/ Voluntary | D97: Full inspection | E97: Children's Home | F97: 4 | G97: 1
A98: BlackpoolAllFull inspectionChildren's Home1 | B98: Blackpool | C98: All | D98: Full inspection | E98: Children's Home | F98: 1 | G98: 1
A99: BlackpoolAllFull inspectionChildren's Home3 | B99: Blackpool | C99: All | D99: Full inspection | E99: Children's Home | F99: 3 | G99: 3
A100: BlackpoolAllFull inspectionChildren's Home4 | B100: Blackpool | C100: All | D100: Full inspection | E100: Children's Home | F100: 4 | G100: 4
A101: BlackpoolAllInterim inspectionChildren's Home1 | B101: Blackpool | C101: All | D101: Interim inspection | E101: Children's Home | F101: 1 | G101: 1
A102: BlackpoolAllInterim inspectionChildren's Home4 | B102: Blackpool | C102: All | D102: Interim inspection | E102: Children's Home | F102: 4 | G102: 1
A103: BlackpoolLocal AuthorityFull inspectionChildren's Home3 | B103: Blackpool | C103: Local Authority | D103: Full inspection | E103: Children's Home | F103: 3 | G103: 1
A104: BlackpoolLocal AuthorityFull inspectionChildren's Home4 | B104: Blackpool | C104: Local Authority | D104: Full inspection | E104: Children's Home | F104: 4 | G104: 1
A105: BlackpoolPrivate/ VoluntaryFull inspectionChildren's Home1 | B105: Blackpool | C105: Private/ Voluntary | D105: Full inspection | E105: Children's Home | F105: 1 | G105: 1
A106: BlackpoolPrivate/ VoluntaryFull inspectionChildren's Home3 | B106: Blackpool | C106: Private/ Voluntary | D106: Full inspection | E106: Children's Home | F106: 3 | G106: 2
A107: BlackpoolPrivate/ VoluntaryFull inspectionChildren's Home4 | B107: Blackpool | C107: Private/ Voluntary | D107: Full inspection | E107: Children's Home | F107: 4 | G107: 3
A108: BlackpoolPrivate/ VoluntaryInterim inspectionChildren's Home1 | B108: Blackpool | C108: Private/ Voluntary | D108: Interim inspection | E108: Children's Home | F108: 1 | G108: 1
A109: BlackpoolPrivate/ VoluntaryInterim inspectionChildren's Home4 | B109: Blackpool | C109: Private/ Voluntary | D109: Interim inspection | E109: Children's Home | F109: 4 | G109: 1
A110: BoltonAllFull inspectionChildren's Home2 | B110: Bolton | C110: All | D110: Full inspection | E110: Children's Home | F110: 2 | G110: 2
A111: BoltonAllFull inspectionChildren's Home3 | B111: Bolton | C111: All | D111: Full inspection | E111: Children's Home | F111: 3 | G111: 3
A112: BoltonAllFull inspectionChildren's Home4 | B112: Bolton | C112: All | D112: Full inspection | E112: Children's Home | F112: 4 | G112: 5
A113: BoltonAllFull inspectionResidential special school (>295 days/year)3 | B113: Bolton | C113: All | D113: Full inspection | E113: Residential special school (>295 days/year) | F113: 3 | G113: 1
A114: BoltonAllFull inspectionResidential special school (>295 days/year)4 | B114: Bolton | C114: All | D114: Full inspection | E114: Residential special school (>295 days/year) | F114: 4 | G114: 1
A115: BoltonLocal AuthorityFull inspectionChildren's Home2 | B115: Bolton | C115: Local Authority | D115: Full inspection | E115: Children's Home | F115: 2 | G115: 1
A116: BoltonLocal AuthorityFull inspectionChildren's Home4 | B116: Bolton | C116: Local Authority | D116: Full inspection | E116: Children's Home | F116: 4 | G116: 1
A117: BoltonPrivate/ VoluntaryFull inspectionChildren's Home2 | B117: Bolton | C117: Private/ Voluntary | D117: Full inspection | E117: Children's Home | F117: 2 | G117: 1
A118: BoltonPrivate/ VoluntaryFull inspectionChildren's Home3 | B118: Bolton | C118: Private/ Voluntary | D118: Full inspection | E118: Children's Home | F118: 3 | G118: 3
A119: BoltonPrivate/ VoluntaryFull inspectionChildren's Home4 | B119: Bolton | C119: Private/ Voluntary | D119: Full inspection | E119: Children's Home | F119: 4 | G119: 4
A120: BoltonPrivate/ VoluntaryFull inspectionResidential special school (>295 days/year)3 | B120: Bolton | C120: Private/ Voluntary | D120: Full inspection | E120: Residential special school (>295 days/year) | F120: 3 | G120: 1
A121: BoltonPrivate/ VoluntaryFull inspectionResidential special school (>295 days/year)4 | B121: Bolton | C121: Private/ Voluntary | D121: Full inspection | E121: Residential special school (>295 days/year) | F121: 4 | G121: 1
A122: BournemouthAllFull inspectionChildren's Home2 | B122: Bournemouth | C122: All | D122: Full inspection | E122: Children's Home | F122: 2 | G122: 1
A123: BournemouthAllFull inspectionChildren's Home3 | B123: Bournemouth | C123: All | D123: Full inspection | E123: Children's Home | F123: 3 | G123: 1
A124: BournemouthAllFull inspectionChildren's Home4 | B124: Bournemouth | C124: All | D124: Full inspection | E124: Children's Home | F124: 4 | G124: 2
A125: BournemouthPrivate/ VoluntaryFull inspectionChildren's Home2 | B125: Bournemouth | C125: Private/ Voluntary | D125: Full inspection | E125: Children's Home | F125: 2 | G125: 1
A126: BournemouthPrivate/ VoluntaryFull inspectionChildren's Home3 | B126: Bournemouth | C126: Private/ Voluntary | D126: Full inspection | E126: Children's Home | F126: 3 | G126: 1
A127: BournemouthPrivate/ VoluntaryFull inspectionChildren's Home4 | B127: Bournemouth | C127: Private/ Voluntary | D127: Full inspection | E127: Children's Home | F127: 4 | G127: 2
A128: Bracknell ForestAllFull inspectionChildren's Home3 | B128: Bracknell Forest | C128: All | D128: Full inspection | E128: Children's Home | F128: 3 | G128: 1
A129: Bracknell ForestAllFull inspectionChildren's Home4 | B129: Bracknell Forest | C129: All | D129: Full inspection | E129: Children's Home | F129: 4 | G129: 1
A130: Bracknell ForestPrivate/ VoluntaryFull inspectionChildren's Home3 | B130: Bracknell Forest | C130: Private/ Voluntary | D130: Full inspection | E130: Children's Home | F130: 3 | G130: 1
A131: Bracknell ForestPrivate/ VoluntaryFull inspectionChildren's Home4 | B131: Bracknell Forest | C131: Private/ Voluntary | D131: Full inspection | E131: Children's Home | F131: 4 | G131: 1
A132: BradfordAllFull inspectionChildren's Home2 | B132: Bradford | C132: All | D132: Full inspection | E132: Children's Home | F132: 2 | G132: 2
A133: BradfordAllFull inspectionChildren's Home3 | B133: Bradford | C133: All | D133: Full inspection | E133: Children's Home | F133: 3 | G133: 2
A134: BradfordAllFull inspectionChildren's Home4 | B134: Bradford | C134: All | D134: Full inspection | E134: Children's Home | F134: 4 | G134: 4
A135: BradfordLocal AuthorityFull inspectionChildren's Home2 | B135: Bradford | C135: Local Authority | D135: Full inspection | E135: Children's Home | F135: 2 | G135: 1
A136: BradfordLocal AuthorityFull inspectionChildren's Home4 | B136: Bradford | C136: Local Authority | D136: Full inspection | E136: Children's Home | F136: 4 | G136: 1
A137: BradfordPrivate/ VoluntaryFull inspectionChildren's Home2 | B137: Bradford | C137: Private/ Voluntary | D137: Full inspection | E137: Children's Home | F137: 2 | G137: 1
A138: BradfordPrivate/ VoluntaryFull inspectionChildren's Home3 | B138: Bradford | C138: Private/ Voluntary | D138: Full inspection | E138: Children's Home | F138: 3 | G138: 2
A139: BradfordPrivate/ VoluntaryFull inspectionChildren's Home4 | B139: Bradford | C139: Private/ Voluntary | D139: Full inspection | E139: Children's Home | F139: 4 | G139: 3
A140: BrentAllFull inspectionChildren's Home1 | B140: Brent | C140: All | D140: Full inspection | E140: Children's Home | F140: 1 | G140: 1
A141: BrentAllFull inspectionChildren's Home2 | B141: Brent | C141: All | D141: Full inspection | E141: Children's Home | F141: 2 | G141: 1
A142: BrentAllFull inspectionChildren's Home4 | B142: Brent | C142: All | D142: Full inspection | E142: Children's Home | F142: 4 | G142: 2
A143: BrentPrivate/ VoluntaryFull inspectionChildren's Home1 | B143: Brent | C143: Private/ Voluntary | D143: Full inspection | E143: Children's Home | F143: 1 | G143: 1
A144: BrentPrivate/ VoluntaryFull inspectionChildren's Home2 | B144: Brent | C144: Private/ Voluntary | D144: Full inspection | E144: Children's Home | F144: 2 | G144: 1
A145: BrentPrivate/ VoluntaryFull inspectionChildren's Home4 | B145: Brent | C145: Private/ Voluntary | D145: Full inspection | E145: Children's Home | F145: 4 | G145: 2
A146: Brighton & HoveAllFull inspectionChildren's Home3 | B146: Brighton & Hove | C146: All | D146: Full inspection | E146: Children's Home | F146: 3 | G146: 2
A147: Brighton & HoveAllFull inspectionChildren's Home4 | B147: Brighton & Hove | C147: All | D147: Full inspection | E147: Children's Home | F147: 4 | G147: 2
A148: Brighton & HoveAllFull inspectionResidential special school (>295 days/year)1 | B148: Brighton & Hove | C148: All | D148: Full inspection | E148: Residential special school (>295 days/year) | F148: 1 | G148: 1
A149: Brighton & HoveAllFull inspectionResidential special school (>295 days/year)4 | B149: Brighton & Hove | C149: All | D149: Full inspection | E149: Residential special school (>295 days/year) | F149: 4 | G149: 1
A150: Brighton & HoveLocal AuthorityFull inspectionChildren's Home3 | B150: Brighton & Hove | C150: Local Authority | D150: Full inspection | E150: Children's Home | F150: 3 | G150: 1
A151: Brighton & HoveLocal AuthorityFull inspectionChildren's Home4 | B151: Brighton & Hove | C151: Local Authority | D151: Full inspection | E151: Children's Home | F151: 4 | G151: 1
A152: Brighton & HovePrivate/ VoluntaryFull inspectionChildren's Home3 | B152: Brighton & Hove | C152: Private/ Voluntary | D152: Full inspection | E152: Children's Home | F152: 3 | G152: 1
A153: Brighton & HovePrivate/ VoluntaryFull inspectionChildren's Home4 | B153: Brighton & Hove | C153: Private/ Voluntary | D153: Full inspection | E153: Children's Home | F153: 4 | G153: 1
A154: Brighton & HovePrivate/ VoluntaryFull inspectionResidential special school (>295 days/year)1 | B154: Brighton & Hove | C154: Private/ Voluntary | D154: Full inspection | E154: Residential special school (>295 days/year) | F154: 1 | G154: 1
A155: Brighton & HovePrivate/ VoluntaryFull inspectionResidential special school (>295 days/year)4 | B155: Brighton & Hove | C155: Private/ Voluntary | D155: Full inspection | E155: Residential special school (>295 days/year) | F155: 4 | G155: 1
A156: BristolAllFull inspectionChildren's Home2 | B156: Bristol | C156: All | D156: Full inspection | E156: Children's Home | F156: 2 | G156: 1
A157: BristolAllFull inspectionChildren's Home3 | B157: Bristol | C157: All | D157: Full inspection | E157: Children's Home | F157: 3 | G157: 4
A158: BristolAllFull inspectionChildren's Home4 | B158: Bristol | C158: All | D158: Full inspection | E158: Children's Home | F158: 4 | G158: 5
A159: BristolLocal AuthorityFull inspectionChildren's Home3 | B159: Bristol | C159: Local Authority | D159: Full inspection | E159: Children's Home | F159: 3 | G159: 2
A160: BristolLocal AuthorityFull inspectionChildren's Home4 | B160: Bristol | C160: Local Authority | D160: Full inspection | E160: Children's Home | F160: 4 | G160: 2
A161: BristolPrivate/ VoluntaryFull inspectionChildren's Home2 | B161: Bristol | C161: Private/ Voluntary | D161: Full inspection | E161: Children's Home | F161: 2 | G161: 1
A162: BristolPrivate/ VoluntaryFull inspectionChildren's Home3 | B162: Bristol | C162: Private/ Voluntary | D162: Full inspection | E162: Children's Home | F162: 3 | G162: 2
A163: BristolPrivate/ VoluntaryFull inspectionChildren's Home4 | B163: Bristol | C163: Private/ Voluntary | D163: Full inspection | E163: Children's Home | F163: 4 | G163: 3
A164: BuckinghamshireAllFull inspectionChildren's Home1 | B164: Buckinghamshire | C164: All | D164: Full inspection | E164: Children's Home | F164: 1 | G164: 2
A165: BuckinghamshireAllFull inspectionChildren's Home3 | B165: Buckinghamshire | C165: All | D165: Full inspection | E165: Children's Home | F165: 3 | G165: 3
A166: BuckinghamshireAllFull inspectionChildren's Home4 | B166: Buckinghamshire | C166: All | D166: Full inspection | E166: Children's Home | F166: 4 | G166: 5
A167: BuckinghamshirePrivate/ VoluntaryFull inspectionChildren's Home1 | B167: Buckinghamshire | C167: Private/ Voluntary | D167: Full inspection | E167: Children's Home | F167: 1 | G167: 2
A168: BuckinghamshirePrivate/ VoluntaryFull inspectionChildren's Home3 | B168: Buckinghamshire | C168: Private/ Voluntary | D168: Full inspection | E168: Children's Home | F168: 3 | G168: 3
A169: BuckinghamshirePrivate/ VoluntaryFull inspectionChildren's Home4 | B169: Buckinghamshire | C169: Private/ Voluntary | D169: Full inspection | E169: Children's Home | F169: 4 | G169: 5
A170: BuryAllFull inspectionChildren's Home2 | B170: Bury | C170: All | D170: Full inspection | E170: Children's Home | F170: 2 | G170: 1
A171: BuryAllFull inspectionChildren's Home4 | B171: Bury | C171: All | D171: Full inspection | E171: Children's Home | F171: 4 | G171: 1
A172: BuryPrivate/ VoluntaryFull inspectionChildren's Home2 | B172: Bury | C172: Private/ Voluntary | D172: Full inspection | E172: Children's Home | F172: 2 | G172: 1
A173: BuryPrivate/ VoluntaryFull inspectionChildren's Home4 | B173: Bury | C173: Private/ Voluntary | D173: Full inspection | E173: Children's Home | F173: 4 | G173: 1
A174: CalderdaleAllFull inspectionChildren's Home1 | B174: Calderdale | C174: All | D174: Full inspection | E174: Children's Home | F174: 1 | G174: 1
A175: CalderdaleAllFull inspectionChildren's Home2 | B175: Calderdale | C175: All | D175: Full inspection | E175: Children's Home | F175: 2 | G175: 3
A176: CalderdaleAllFull inspectionChildren's Home4 | B176: Calderdale | C176: All | D176: Full inspection | E176: Children's Home | F176: 4 | G176: 4
A177: CalderdaleLocal AuthorityFull inspectionChildren's Home1 | B177: Calderdale | C177: Local Authority | D177: Full inspection | E177: Children's Home | F177: 1 | G177: 1
A178: CalderdaleLocal AuthorityFull inspectionChildren's Home2 | B178: Calderdale | C178: Local Authority | D178: Full inspection | E178: Children's Home | F178: 2 | G178: 1
A179: CalderdaleLocal AuthorityFull inspectionChildren's Home4 | B179: Calderdale | C179: Local Authority | D179: Full inspection | E179: Children's Home | F179: 4 | G179: 2
A180: CalderdalePrivate/ VoluntaryFull inspectionChildren's Home2 | B180: Calderdale | C180: Private/ Voluntary | D180: Full inspection | E180: Children's Home | F180: 2 | G180: 2
A181: CalderdalePrivate/ VoluntaryFull inspectionChildren's Home4 | B181: Calderdale | C181: Private/ Voluntary | D181: Full inspection | E181: Children's Home | F181: 4 | G181: 2
A182: CambridgeshireAllFull inspectionChildren's Home1 | B182: Cambridgeshire | C182: All | D182: Full inspection | E182: Children's Home | F182: 1 | G182: 1
A183: CambridgeshireAllFull inspectionChildren's Home2 | B183: Cambridgeshire | C183: All | D183: Full inspection | E183: Children's Home | F183: 2 | G183: 3
A184: CambridgeshireAllFull inspectionChildren's Home3 | B184: Cambridgeshire | C184: All | D184: Full inspection | E184: Children's Home | F184: 3 | G184: 3
A185: CambridgeshireAllFull inspectionChildren's Home4 | B185: Cambridgeshire | C185: All | D185: Full inspection | E185: Children's Home | F185: 4 | G185: 7
A186: CambridgeshireAllFull inspectionResidential special school (>295 days/year)2 | B186: Cambridgeshire | C186: All | D186: Full inspection | E186: Residential special school (>295 days/year) | F186: 2 | G186: 1
A187: CambridgeshireAllFull inspectionResidential special school (>295 days/year)4 | B187: Cambridgeshire | C187: All | D187: Full inspection | E187: Residential special school (>295 days/year) | F187: 4 | G187: 1
A188: CambridgeshireLocal AuthorityFull inspectionChildren's Home1 | B188: Cambridgeshire | C188: Local Authority | D188: Full inspection | E188: Children's Home | F188: 1 | G188: 1
A189: CambridgeshireLocal AuthorityFull inspectionChildren's Home2 | B189: Cambridgeshire | C189: Local Authority | D189: Full inspection | E189: Children's Home | F189: 2 | G189: 1
A190: CambridgeshireLocal AuthorityFull inspectionChildren's Home4 | B190: Cambridgeshire | C190: Local Authority | D190: Full inspection | E190: Children's Home | F190: 4 | G190: 2
A191: CambridgeshirePrivate/ VoluntaryFull inspectionChildren's Home2 | B191: Cambridgeshire | C191: Private/ Voluntary | D191: Full inspection | E191: Children's Home | F191: 2 | G191: 2
A192: CambridgeshirePrivate/ VoluntaryFull inspectionChildren's Home3 | B192: Cambridgeshire | C192: Private/ Voluntary | D192: Full inspection | E192: Children's Home | F192: 3 | G192: 3
A193: CambridgeshirePrivate/ VoluntaryFull inspectionChildren's Home4 | B193: Cambridgeshire | C193: Private/ Voluntary | D193: Full inspection | E193: Children's Home | F193: 4 | G193: 5
A194: CambridgeshirePrivate/ VoluntaryFull inspectionResidential special school (>295 days/year)2 | B194: Cambridgeshire | C194: Private/ Voluntary | D194: Full inspection | E194: Residential special school (>295 days/year) | F194: 2 | G194: 1
A195: CambridgeshirePrivate/ VoluntaryFull inspectionResidential special school (>295 days/year)4 | B195: Cambridgeshire | C195: Private/ Voluntary | D195: Full inspection | E195: Residential special school (>295 days/year) | F195: 4 | G195: 1
A196: Central BedfordshireAllFull inspectionChildren's Home2 | B196: Central Bedfordshire | C196: All | D196: Full inspection | E196: Children's Home | F196: 2 | G196: 1
A197: Central BedfordshireAllFull inspectionChildren's Home4 | B197: Central Bedfordshire | C197: All | D197: Full inspection | E197: Children's Home | F197: 4 | G197: 1
A198: Central BedfordshirePrivate/ VoluntaryFull inspectionChildren's Home2 | B198: Central Bedfordshire | C198: Private/ Voluntary | D198: Full inspection | E198: Children's Home | F198: 2 | G198: 1
A199: Central BedfordshirePrivate/ VoluntaryFull inspectionChildren's Home4 | B199: Central Bedfordshire | C199: Private/ Voluntary | D199: Full inspection | E199: Children's Home | F199: 4 | G199: 1
A200: Cheshire EastAllFull inspectionChildren's Home3 | B200: Cheshire East | C200: All | D200: Full inspection | E200: Children's Home | F200: 3 | G200: 1
... 952 more rows

Sheet Table2_Data (hidden)
A1: Table 2: Overall care outcome for children's social care providers between 01/04/2011 and 30/06/2011 (Provisional)
A2: Lookup | B2: Local Authority | C2: Sector | D2: Corporate Inspected Provision Type Group Name | E2: Month | F2: Outstanding | G2: Good | H2: Adequate | I2: Inadequate
A3: AllAllChildren's Home1 | B3: All | C3: All | D3: Children's Home | E3: 1 | F3: 4 | G3: 33 | H3: 15 | I3: 6
A4: AllAllChildren's Home2 | B4: All | C4: All | D4: Children's Home | E4: 2 | F4: 20 | G4: 158 | H4: 100 | I4: 28
A5: AllAllChildren's Home3 | B5: All | C5: All | D5: Children's Home | E5: 3 | F5: 27 | G5: 122 | H5: 80 | I5: 14
A6: AllAllChildren's Home4 | B6: All | C6: All | D6: Children's Home | E6: 4 | F6: 51 | G6: 313 | H6: 195 | I6: 48
A7: AllAllResidential special school (>295 days/year)1 | B7: All | C7: All | D7: Residential special school (>295 days/year) | E7: 1 | F7: 0 | G7: 2 | H7: 0 | I7: 0
A8: AllAllResidential special school (>295 days/year)2 | B8: All | C8: All | D8: Residential special school (>295 days/year) | E8: 2 | F8: 0 | G8: 4 | H8: 4 | I8: 2
A9: AllAllResidential special school (>295 days/year)3 | B9: All | C9: All | D9: Residential special school (>295 days/year) | E9: 3 | F9: 2 | G9: 6 | H9: 3 | I9: 0
A10: AllAllResidential special school (>295 days/year)4 | B10: All | C10: All | D10: Residential special school (>295 days/year) | E10: 4 | F10: 2 | G10: 12 | H10: 7 | I10: 2
A11: AllAllSecure Children's Home1 | B11: All | C11: All | D11: Secure Children's Home | E11: 1 | F11: 1 | G11: 0 | H11: 1 | I11: 0
A12: AllAllSecure Children's Home2 | B12: All | C12: All | D12: Secure Children's Home | E12: 2 | F12: 0 | G12: 4 | H12: 0 | I12: 0
A13: AllAllSecure Children's Home3 | B13: All | C13: All | D13: Secure Children's Home | E13: 3 | F13: 0 | G13: 0 | H13: 1 | I13: 0
A14: AllAllSecure Children's Home4 | B14: All | C14: All | D14: Secure Children's Home | E14: 4 | F14: 1 | G14: 4 | H14: 2 | I14: 0
A15: AllLocal AuthorityChildren's Home1 | B15: All | C15: Local Authority | D15: Children's Home | E15: 1 | F15: 0 | G15: 6 | H15: 3 | I15: 2
A16: AllLocal AuthorityChildren's Home2 | B16: All | C16: Local Authority | D16: Children's Home | E16: 2 | F16: 3 | G16: 32 | H16: 19 | I16: 4
A17: AllLocal AuthorityChildren's Home3 | B17: All | C17: Local Authority | D17: Children's Home | E17: 3 | F17: 6 | G17: 31 | H17: 27 | I17: 5
A18: AllLocal AuthorityChildren's Home4 | B18: All | C18: Local Authority | D18: Children's Home | E18: 4 | F18: 9 | G18: 69 | H18: 49 | I18: 11
A19: AllLocal AuthorityResidential special school (>295 days/year)3 | B19: All | C19: Local Authority | D19: Residential special school (>295 days/year) | E19: 3 | F19: 0 | G19: 1 | H19: 0 | I19: 0
A20: AllLocal AuthorityResidential special school (>295 days/year)4 | B20: All | C20: Local Authority | D20: Residential special school (>295 days/year) | E20: 4 | F20: 0 | G20: 1 | H20: 0 | I20: 0
A21: AllLocal AuthoritySecure Children's Home1 | B21: All | C21: Local Authority | D21: Secure Children's Home | E21: 1 | F21: 1 | G21: 0 | H21: 1 | I21: 0
A22: AllLocal AuthoritySecure Children's Home2 | B22: All | C22: Local Authority | D22: Secure Children's Home | E22: 2 | F22: 0 | G22: 4 | H22: 0 | I22: 0
A23: AllLocal AuthoritySecure Children's Home3 | B23: All | C23: Local Authority | D23: Secure Children's Home | E23: 3 | F23: 0 | G23: 0 | H23: 1 | I23: 0
A24: AllLocal AuthoritySecure Children's Home4 | B24: All | C24: Local Authority | D24: Secure Children's Home | E24: 4 | F24: 1 | G24: 4 | H24: 2 | I24: 0
A25: AllPrivate/ VoluntaryChildren's Home1 | B25: All | C25: Private/ Voluntary | D25: Children's Home | E25: 1 | F25: 4 | G25: 27 | H25: 12 | I25: 4
A26: AllPrivate/ VoluntaryChildren's Home2 | B26: All | C26: Private/ Voluntary | D26: Children's Home | E26: 2 | F26: 17 | G26: 126 | H26: 81 | I26: 24
A27: AllPrivate/ VoluntaryChildren's Home3 | B27: All | C27: Private/ Voluntary | D27: Children's Home | E27: 3 | F27: 21 | G27: 91 | H27: 53 | I27: 9
A28: AllPrivate/ VoluntaryChildren's Home4 | B28: All | C28: Private/ Voluntary | D28: Children's Home | E28: 4 | F28: 42 | G28: 244 | H28: 146 | I28: 37
A29: AllPrivate/ VoluntaryResidential special school (>295 days/year)1 | B29: All | C29: Private/ Voluntary | D29: Residential special school (>295 days/year) | E29: 1 | F29: 0 | G29: 2 | H29: 0 | I29: 0
A30: AllPrivate/ VoluntaryResidential special school (>295 days/year)2 | B30: All | C30: Private/ Voluntary | D30: Residential special school (>295 days/year) | E30: 2 | F30: 0 | G30: 4 | H30: 4 | I30: 2
A31: AllPrivate/ VoluntaryResidential special school (>295 days/year)3 | B31: All | C31: Private/ Voluntary | D31: Residential special school (>295 days/year) | E31: 3 | F31: 2 | G31: 5 | H31: 3 | I31: 0
A32: AllPrivate/ VoluntaryResidential special school (>295 days/year)4 | B32: All | C32: Private/ Voluntary | D32: Residential special school (>295 days/year) | E32: 4 | F32: 2 | G32: 11 | H32: 7 | I32: 2
A33: Barking & DagenhamAllChildren's Home2 | B33: Barking & Dagenham | C33: All | D33: Children's Home | E33: 2 | F33: 0 | G33: 1 | H33: 0 | I33: 0
A34: Barking & DagenhamAllChildren's Home3 | B34: Barking & Dagenham | C34: All | D34: Children's Home | E34: 3 | F34: 0 | G34: 0 | H34: 1 | I34: 0
A35: Barking & DagenhamAllChildren's Home4 | B35: Barking & Dagenham | C35: All | D35: Children's Home | E35: 4 | F35: 0 | G35: 1 | H35: 1 | I35: 0
A36: Barking & DagenhamPrivate/ VoluntaryChildren's Home2 | B36: Barking & Dagenham | C36: Private/ Voluntary | D36: Children's Home | E36: 2 | F36: 0 | G36: 1 | H36: 0 | I36: 0
A37: Barking & DagenhamPrivate/ VoluntaryChildren's Home3 | B37: Barking & Dagenham | C37: Private/ Voluntary | D37: Children's Home | E37: 3 | F37: 0 | G37: 0 | H37: 1 | I37: 0
A38: Barking & DagenhamPrivate/ VoluntaryChildren's Home4 | B38: Barking & Dagenham | C38: Private/ Voluntary | D38: Children's Home | E38: 4 | F38: 0 | G38: 1 | H38: 1 | I38: 0
A39: BarnetAllChildren's Home2 | B39: Barnet | C39: All | D39: Children's Home | E39: 2 | F39: 0 | G39: 1 | H39: 0 | I39: 0
A40: BarnetAllChildren's Home4 | B40: Barnet | C40: All | D40: Children's Home | E40: 4 | F40: 0 | G40: 1 | H40: 0 | I40: 0
A41: BarnetPrivate/ VoluntaryChildren's Home2 | B41: Barnet | C41: Private/ Voluntary | D41: Children's Home | E41: 2 | F41: 0 | G41: 1 | H41: 0 | I41: 0
A42: BarnetPrivate/ VoluntaryChildren's Home4 | B42: Barnet | C42: Private/ Voluntary | D42: Children's Home | E42: 4 | F42: 0 | G42: 1 | H42: 0 | I42: 0
A43: BarnsleyAllChildren's Home2 | B43: Barnsley | C43: All | D43: Children's Home | E43: 2 | F43: 0 | G43: 0 | H43: 1 | I43: 0
A44: BarnsleyAllChildren's Home3 | B44: Barnsley | C44: All | D44: Children's Home | E44: 3 | F44: 2 | G44: 3 | H44: 2 | I44: 0
A45: BarnsleyAllChildren's Home4 | B45: Barnsley | C45: All | D45: Children's Home | E45: 4 | F45: 2 | G45: 3 | H45: 3 | I45: 0
A46: BarnsleyLocal AuthorityChildren's Home3 | B46: Barnsley | C46: Local Authority | D46: Children's Home | E46: 3 | F46: 0 | G46: 1 | H46: 0 | I46: 0
A47: BarnsleyLocal AuthorityChildren's Home4 | B47: Barnsley | C47: Local Authority | D47: Children's Home | E47: 4 | F47: 0 | G47: 1 | H47: 0 | I47: 0
A48: BarnsleyPrivate/ VoluntaryChildren's Home2 | B48: Barnsley | C48: Private/ Voluntary | D48: Children's Home | E48: 2 | F48: 0 | G48: 0 | H48: 1 | I48: 0
A49: BarnsleyPrivate/ VoluntaryChildren's Home3 | B49: Barnsley | C49: Private/ Voluntary | D49: Children's Home | E49: 3 | F49: 2 | G49: 2 | H49: 2 | I49: 0
A50: BarnsleyPrivate/ VoluntaryChildren's Home4 | B50: Barnsley | C50: Private/ Voluntary | D50: Children's Home | E50: 4 | F50: 2 | G50: 2 | H50: 3 | I50: 0
A51: Bedford boroughAllChildren's Home3 | B51: Bedford borough | C51: All | D51: Children's Home | E51: 3 | F51: 1 | G51: 0 | H51: 0 | I51: 0
A52: Bedford boroughAllChildren's Home4 | B52: Bedford borough | C52: All | D52: Children's Home | E52: 4 | F52: 1 | G52: 0 | H52: 0 | I52: 0
A53: Bedford boroughPrivate/ VoluntaryChildren's Home3 | B53: Bedford borough | C53: Private/ Voluntary | D53: Children's Home | E53: 3 | F53: 1 | G53: 0 | H53: 0 | I53: 0
A54: Bedford boroughPrivate/ VoluntaryChildren's Home4 | B54: Bedford borough | C54: Private/ Voluntary | D54: Children's Home | E54: 4 | F54: 1 | G54: 0 | H54: 0 | I54: 0
A55: BexleyAllChildren's Home2 | B55: Bexley | C55: All | D55: Children's Home | E55: 2 | F55: 0 | G55: 0 | H55: 1 | I55: 0
A56: BexleyAllChildren's Home3 | B56: Bexley | C56: All | D56: Children's Home | E56: 3 | F56: 0 | G56: 0 | H56: 0 | I56: 1
A57: BexleyAllChildren's Home4 | B57: Bexley | C57: All | D57: Children's Home | E57: 4 | F57: 0 | G57: 0 | H57: 1 | I57: 1
A58: BexleyPrivate/ VoluntaryChildren's Home2 | B58: Bexley | C58: Private/ Voluntary | D58: Children's Home | E58: 2 | F58: 0 | G58: 0 | H58: 1 | I58: 0
A59: BexleyPrivate/ VoluntaryChildren's Home3 | B59: Bexley | C59: Private/ Voluntary | D59: Children's Home | E59: 3 | F59: 0 | G59: 0 | H59: 0 | I59: 1
A60: BexleyPrivate/ VoluntaryChildren's Home4 | B60: Bexley | C60: Private/ Voluntary | D60: Children's Home | E60: 4 | F60: 0 | G60: 0 | H60: 1 | I60: 1
A61: BirminghamAllChildren's Home1 | B61: Birmingham | C61: All | D61: Children's Home | E61: 1 | F61: 1 | G61: 0 | H61: 1 | I61: 0
A62: BirminghamAllChildren's Home2 | B62: Birmingham | C62: All | D62: Children's Home | E62: 2 | F62: 1 | G62: 4 | H62: 6 | I62: 0
A63: BirminghamAllChildren's Home3 | B63: Birmingham | C63: All | D63: Children's Home | E63: 3 | F63: 1 | G63: 3 | H63: 0 | I63: 0
A64: BirminghamAllChildren's Home4 | B64: Birmingham | C64: All | D64: Children's Home | E64: 4 | F64: 3 | G64: 7 | H64: 7 | I64: 0
A65: BirminghamLocal AuthorityChildren's Home1 | B65: Birmingham | C65: Local Authority | D65: Children's Home | E65: 1 | F65: 0 | G65: 0 | H65: 1 | I65: 0
A66: BirminghamLocal AuthorityChildren's Home2 | B66: Birmingham | C66: Local Authority | D66: Children's Home | E66: 2 | F66: 0 | G66: 1 | H66: 1 | I66: 0
A67: BirminghamLocal AuthorityChildren's Home3 | B67: Birmingham | C67: Local Authority | D67: Children's Home | E67: 3 | F67: 0 | G67: 1 | H67: 0 | I67: 0
A68: BirminghamLocal AuthorityChildren's Home4 | B68: Birmingham | C68: Local Authority | D68: Children's Home | E68: 4 | F68: 0 | G68: 2 | H68: 2 | I68: 0
A69: BirminghamPrivate/ VoluntaryChildren's Home1 | B69: Birmingham | C69: Private/ Voluntary | D69: Children's Home | E69: 1 | F69: 1 | G69: 0 | H69: 0 | I69: 0
A70: BirminghamPrivate/ VoluntaryChildren's Home2 | B70: Birmingham | C70: Private/ Voluntary | D70: Children's Home | E70: 2 | F70: 1 | G70: 3 | H70: 5 | I70: 0
A71: BirminghamPrivate/ VoluntaryChildren's Home3 | B71: Birmingham | C71: Private/ Voluntary | D71: Children's Home | E71: 3 | F71: 1 | G71: 2 | H71: 0 | I71: 0
A72: BirminghamPrivate/ VoluntaryChildren's Home4 | B72: Birmingham | C72: Private/ Voluntary | D72: Children's Home | E72: 4 | F72: 3 | G72: 5 | H72: 5 | I72: 0
A73: Blackburn with DarwenAllChildren's Home2 | B73: Blackburn with Darwen | C73: All | D73: Children's Home | E73: 2 | F73: 1 | G73: 0 | H73: 0 | I73: 0
A74: Blackburn with DarwenAllChildren's Home4 | B74: Blackburn with Darwen | C74: All | D74: Children's Home | E74: 4 | F74: 1 | G74: 0 | H74: 0 | I74: 0
A75: Blackburn with DarwenPrivate/ VoluntaryChildren's Home2 | B75: Blackburn with Darwen | C75: Private/ Voluntary | D75: Children's Home | E75: 2 | F75: 1 | G75: 0 | H75: 0 | I75: 0
A76: Blackburn with DarwenPrivate/ VoluntaryChildren's Home4 | B76: Blackburn with Darwen | C76: Private/ Voluntary | D76: Children's Home | E76: 4 | F76: 1 | G76: 0 | H76: 0 | I76: 0
A77: BlackpoolAllChildren's Home1 | B77: Blackpool | C77: All | D77: Children's Home | E77: 1 | F77: 0 | G77: 0 | H77: 0 | I77: 1
A78: BlackpoolAllChildren's Home3 | B78: Blackpool | C78: All | D78: Children's Home | E78: 3 | F78: 1 | G78: 0 | H78: 2 | I78: 0
A79: BlackpoolAllChildren's Home4 | B79: Blackpool | C79: All | D79: Children's Home | E79: 4 | F79: 1 | G79: 0 | H79: 2 | I79: 1
A80: BlackpoolLocal AuthorityChildren's Home3 | B80: Blackpool | C80: Local Authority | D80: Children's Home | E80: 3 | F80: 0 | G80: 0 | H80: 1 | I80: 0
A81: BlackpoolLocal AuthorityChildren's Home4 | B81: Blackpool | C81: Local Authority | D81: Children's Home | E81: 4 | F81: 0 | G81: 0 | H81: 1 | I81: 0
A82: BlackpoolPrivate/ VoluntaryChildren's Home1 | B82: Blackpool | C82: Private/ Voluntary | D82: Children's Home | E82: 1 | F82: 0 | G82: 0 | H82: 0 | I82: 1
A83: BlackpoolPrivate/ VoluntaryChildren's Home3 | B83: Blackpool | C83: Private/ Voluntary | D83: Children's Home | E83: 3 | F83: 1 | G83: 0 | H83: 1 | I83: 0
A84: BlackpoolPrivate/ VoluntaryChildren's Home4 | B84: Blackpool | C84: Private/ Voluntary | D84: Children's Home | E84: 4 | F84: 1 | G84: 0 | H84: 1 | I84: 1
A85: BoltonAllChildren's Home2 | B85: Bolton | C85: All | D85: Children's Home | E85: 2 | F85: 0 | G85: 2 | H85: 0 | I85: 0
A86: BoltonAllChildren's Home3 | B86: Bolton | C86: All | D86: Children's Home | E86: 3 | F86: 0 | G86: 2 | H86: 1 | I86: 0
A87: BoltonAllChildren's Home4 | B87: Bolton | C87: All | D87: Children's Home | E87: 4 | F87: 0 | G87: 4 | H87: 1 | I87: 0
A88: BoltonAllResidential special school (>295 days/year)3 | B88: Bolton | C88: All | D88: Residential special school (>295 days/year) | E88: 3 | F88: 0 | G88: 1 | H88: 0 | I88: 0
A89: BoltonAllResidential special school (>295 days/year)4 | B89: Bolton | C89: All | D89: Residential special school (>295 days/year) | E89: 4 | F89: 0 | G89: 1 | H89: 0 | I89: 0
A90: BoltonLocal AuthorityChildren's Home2 | B90: Bolton | C90: Local Authority | D90: Children's Home | E90: 2 | F90: 0 | G90: 1 | H90: 0 | I90: 0
A91: BoltonLocal AuthorityChildren's Home4 | B91: Bolton | C91: Local Authority | D91: Children's Home | E91: 4 | F91: 0 | G91: 1 | H91: 0 | I91: 0
A92: BoltonPrivate/ VoluntaryChildren's Home2 | B92: Bolton | C92: Private/ Voluntary | D92: Children's Home | E92: 2 | F92: 0 | G92: 1 | H92: 0 | I92: 0
A93: BoltonPrivate/ VoluntaryChildren's Home3 | B93: Bolton | C93: Private/ Voluntary | D93: Children's Home | E93: 3 | F93: 0 | G93: 2 | H93: 1 | I93: 0
A94: BoltonPrivate/ VoluntaryChildren's Home4 | B94: Bolton | C94: Private/ Voluntary | D94: Children's Home | E94: 4 | F94: 0 | G94: 3 | H94: 1 | I94: 0
A95: BoltonPrivate/ VoluntaryResidential special school (>295 days/year)3 | B95: Bolton | C95: Private/ Voluntary | D95: Residential special school (>295 days/year) | E95: 3 | F95: 0 | G95: 1 | H95: 0 | I95: 0
A96: BoltonPrivate/ VoluntaryResidential special school (>295 days/year)4 | B96: Bolton | C96: Private/ Voluntary | D96: Residential special school (>295 days/year) | E96: 4 | F96: 0 | G96: 1 | H96: 0 | I96: 0
A97: BournemouthAllChildren's Home2 | B97: Bournemouth | C97: All | D97: Children's Home | E97: 2 | F97: 0 | G97: 0 | H97: 0 | I97: 1
A98: BournemouthAllChildren's Home3 | B98: Bournemouth | C98: All | D98: Children's Home | E98: 3 | F98: 0 | G98: 0 | H98: 1 | I98: 0
A99: BournemouthAllChildren's Home4 | B99: Bournemouth | C99: All | D99: Children's Home | E99: 4 | F99: 0 | G99: 0 | H99: 1 | I99: 1
A100: BournemouthPrivate/ VoluntaryChildren's Home2 | B100: Bournemouth | C100: Private/ Voluntary | D100: Children's Home | E100: 2 | F100: 0 | G100: 0 | H100: 0 | I100: 1
A101: BournemouthPrivate/ VoluntaryChildren's Home3 | B101: Bournemouth | C101: Private/ Voluntary | D101: Children's Home | E101: 3 | F101: 0 | G101: 0 | H101: 1 | I101: 0
A102: BournemouthPrivate/ VoluntaryChildren's Home4 | B102: Bournemouth | C102: Private/ Voluntary | D102: Children's Home | E102: 4 | F102: 0 | G102: 0 | H102: 1 | I102: 1
A103: Bracknell ForestAllChildren's Home3 | B103: Bracknell Forest | C103: All | D103: Children's Home | E103: 3 | F103: 0 | G103: 0 | H103: 1 | I103: 0
A104: Bracknell ForestAllChildren's Home4 | B104: Bracknell Forest | C104: All | D104: Children's Home | E104: 4 | F104: 0 | G104: 0 | H104: 1 | I104: 0
A105: Bracknell ForestPrivate/ VoluntaryChildren's Home3 | B105: Bracknell Forest | C105: Private/ Voluntary | D105: Children's Home | E105: 3 | F105: 0 | G105: 0 | H105: 1 | I105: 0
A106: Bracknell ForestPrivate/ VoluntaryChildren's Home4 | B106: Bracknell Forest | C106: Private/ Voluntary | D106: Children's Home | E106: 4 | F106: 0 | G106: 0 | H106: 1 | I106: 0
A107: BradfordAllChildren's Home2 | B107: Bradford | C107: All | D107: Children's Home | E107: 2 | F107: 0 | G107: 2 | H107: 0 | I107: 0
A108: BradfordAllChildren's Home3 | B108: Bradford | C108: All | D108: Children's Home | E108: 3 | F108: 0 | G108: 1 | H108: 0 | I108: 1
A109: BradfordAllChildren's Home4 | B109: Bradford | C109: All | D109: Children's Home | E109: 4 | F109: 0 | G109: 3 | H109: 0 | I109: 1
A110: BradfordLocal AuthorityChildren's Home2 | B110: Bradford | C110: Local Authority | D110: Children's Home | E110: 2 | F110: 0 | G110: 1 | H110: 0 | I110: 0
A111: BradfordLocal AuthorityChildren's Home4 | B111: Bradford | C111: Local Authority | D111: Children's Home | E111: 4 | F111: 0 | G111: 1 | H111: 0 | I111: 0
A112: BradfordPrivate/ VoluntaryChildren's Home2 | B112: Bradford | C112: Private/ Voluntary | D112: Children's Home | E112: 2 | F112: 0 | G112: 1 | H112: 0 | I112: 0
A113: BradfordPrivate/ VoluntaryChildren's Home3 | B113: Bradford | C113: Private/ Voluntary | D113: Children's Home | E113: 3 | F113: 0 | G113: 1 | H113: 0 | I113: 1
A114: BradfordPrivate/ VoluntaryChildren's Home4 | B114: Bradford | C114: Private/ Voluntary | D114: Children's Home | E114: 4 | F114: 0 | G114: 2 | H114: 0 | I114: 1
A115: BrentAllChildren's Home1 | B115: Brent | C115: All | D115: Children's Home | E115: 1 | F115: 0 | G115: 0 | H115: 1 | I115: 0
A116: BrentAllChildren's Home2 | B116: Brent | C116: All | D116: Children's Home | E116: 2 | F116: 0 | G116: 0 | H116: 1 | I116: 0
A117: BrentAllChildren's Home4 | B117: Brent | C117: All | D117: Children's Home | E117: 4 | F117: 0 | G117: 0 | H117: 2 | I117: 0
A118: BrentPrivate/ VoluntaryChildren's Home1 | B118: Brent | C118: Private/ Voluntary | D118: Children's Home | E118: 1 | F118: 0 | G118: 0 | H118: 1 | I118: 0
A119: BrentPrivate/ VoluntaryChildren's Home2 | B119: Brent | C119: Private/ Voluntary | D119: Children's Home | E119: 2 | F119: 0 | G119: 0 | H119: 1 | I119: 0
A120: BrentPrivate/ VoluntaryChildren's Home4 | B120: Brent | C120: Private/ Voluntary | D120: Children's Home | E120: 4 | F120: 0 | G120: 0 | H120: 2 | I120: 0
A121: Brighton & HoveAllChildren's Home3 | B121: Brighton & Hove | C121: All | D121: Children's Home | E121: 3 | F121: 2 | G121: 0 | H121: 0 | I121: 0
A122: Brighton & HoveAllChildren's Home4 | B122: Brighton & Hove | C122: All | D122: Children's Home | E122: 4 | F122: 2 | G122: 0 | H122: 0 | I122: 0
A123: Brighton & HoveAllResidential special school (>295 days/year)1 | B123: Brighton & Hove | C123: All | D123: Residential special school (>295 days/year) | E123: 1 | F123: 0 | G123: 1 | H123: 0 | I123: 0
A124: Brighton & HoveAllResidential special school (>295 days/year)4 | B124: Brighton & Hove | C124: All | D124: Residential special school (>295 days/year) | E124: 4 | F124: 0 | G124: 1 | H124: 0 | I124: 0
A125: Brighton & HoveLocal AuthorityChildren's Home3 | B125: Brighton & Hove | C125: Local Authority | D125: Children's Home | E125: 3 | F125: 1 | G125: 0 | H125: 0 | I125: 0
A126: Brighton & HoveLocal AuthorityChildren's Home4 | B126: Brighton & Hove | C126: Local Authority | D126: Children's Home | E126: 4 | F126: 1 | G126: 0 | H126: 0 | I126: 0
A127: Brighton & HovePrivate/ VoluntaryChildren's Home3 | B127: Brighton & Hove | C127: Private/ Voluntary | D127: Children's Home | E127: 3 | F127: 1 | G127: 0 | H127: 0 | I127: 0
A128: Brighton & HovePrivate/ VoluntaryChildren's Home4 | B128: Brighton & Hove | C128: Private/ Voluntary | D128: Children's Home | E128: 4 | F128: 1 | G128: 0 | H128: 0 | I128: 0
A129: Brighton & HovePrivate/ VoluntaryResidential special school (>295 days/year)1 | B129: Brighton & Hove | C129: Private/ Voluntary | D129: Residential special school (>295 days/year) | E129: 1 | F129: 0 | G129: 1 | H129: 0 | I129: 0
A130: Brighton & HovePrivate/ VoluntaryResidential special school (>295 days/year)4 | B130: Brighton & Hove | C130: Private/ Voluntary | D130: Residential special school (>295 days/year) | E130: 4 | F130: 0 | G130: 1 | H130: 0 | I130: 0
A131: BristolAllChildren's Home2 | B131: Bristol | C131: All | D131: Children's Home | E131: 2 | F131: 0 | G131: 1 | H131: 0 | I131: 0
A132: BristolAllChildren's Home3 | B132: Bristol | C132: All | D132: Children's Home | E132: 3 | F132: 0 | G132: 3 | H132: 1 | I132: 0
A133: BristolAllChildren's Home4 | B133: Bristol | C133: All | D133: Children's Home | E133: 4 | F133: 0 | G133: 4 | H133: 1 | I133: 0
A134: BristolLocal AuthorityChildren's Home3 | B134: Bristol | C134: Local Authority | D134: Children's Home | E134: 3 | F134: 0 | G134: 2 | H134: 0 | I134: 0
A135: BristolLocal AuthorityChildren's Home4 | B135: Bristol | C135: Local Authority | D135: Children's Home | E135: 4 | F135: 0 | G135: 2 | H135: 0 | I135: 0
A136: BristolPrivate/ VoluntaryChildren's Home2 | B136: Bristol | C136: Private/ Voluntary | D136: Children's Home | E136: 2 | F136: 0 | G136: 1 | H136: 0 | I136: 0
A137: BristolPrivate/ VoluntaryChildren's Home3 | B137: Bristol | C137: Private/ Voluntary | D137: Children's Home | E137: 3 | F137: 0 | G137: 1 | H137: 1 | I137: 0
A138: BristolPrivate/ VoluntaryChildren's Home4 | B138: Bristol | C138: Private/ Voluntary | D138: Children's Home | E138: 4 | F138: 0 | G138: 2 | H138: 1 | I138: 0
A139: BuckinghamshireAllChildren's Home1 | B139: Buckinghamshire | C139: All | D139: Children's Home | E139: 1 | F139: 0 | G139: 0 | H139: 2 | I139: 0
A140: BuckinghamshireAllChildren's Home3 | B140: Buckinghamshire | C140: All | D140: Children's Home | E140: 3 | F140: 0 | G140: 1 | H140: 2 | I140: 0
A141: BuckinghamshireAllChildren's Home4 | B141: Buckinghamshire | C141: All | D141: Children's Home | E141: 4 | F141: 0 | G141: 1 | H141: 4 | I141: 0
A142: BuckinghamshirePrivate/ VoluntaryChildren's Home1 | B142: Buckinghamshire | C142: Private/ Voluntary | D142: Children's Home | E142: 1 | F142: 0 | G142: 0 | H142: 2 | I142: 0
A143: BuckinghamshirePrivate/ VoluntaryChildren's Home3 | B143: Buckinghamshire | C143: Private/ Voluntary | D143: Children's Home | E143: 3 | F143: 0 | G143: 1 | H143: 2 | I143: 0
A144: BuckinghamshirePrivate/ VoluntaryChildren's Home4 | B144: Buckinghamshire | C144: Private/ Voluntary | D144: Children's Home | E144: 4 | F144: 0 | G144: 1 | H144: 4 | I144: 0
A145: BuryAllChildren's Home2 | B145: Bury | C145: All | D145: Children's Home | E145: 2 | F145: 0 | G145: 1 | H145: 0 | I145: 0
A146: BuryAllChildren's Home4 | B146: Bury | C146: All | D146: Children's Home | E146: 4 | F146: 0 | G146: 1 | H146: 0 | I146: 0
A147: BuryPrivate/ VoluntaryChildren's Home2 | B147: Bury | C147: Private/ Voluntary | D147: Children's Home | E147: 2 | F147: 0 | G147: 1 | H147: 0 | I147: 0
A148: BuryPrivate/ VoluntaryChildren's Home4 | B148: Bury | C148: Private/ Voluntary | D148: Children's Home | E148: 4 | F148: 0 | G148: 1 | H148: 0 | I148: 0
A149: CalderdaleAllChildren's Home1 | B149: Calderdale | C149: All | D149: Children's Home | E149: 1 | F149: 0 | G149: 1 | H149: 0 | I149: 0
A150: CalderdaleAllChildren's Home2 | B150: Calderdale | C150: All | D150: Children's Home | E150: 2 | F150: 0 | G150: 2 | H150: 1 | I150: 0
A151: CalderdaleAllChildren's Home4 | B151: Calderdale | C151: All | D151: Children's Home | E151: 4 | F151: 0 | G151: 3 | H151: 1 | I151: 0
A152: CalderdaleLocal AuthorityChildren's Home1 | B152: Calderdale | C152: Local Authority | D152: Children's Home | E152: 1 | F152: 0 | G152: 1 | H152: 0 | I152: 0
A153: CalderdaleLocal AuthorityChildren's Home2 | B153: Calderdale | C153: Local Authority | D153: Children's Home | E153: 2 | F153: 0 | G153: 0 | H153: 1 | I153: 0
A154: CalderdaleLocal AuthorityChildren's Home4 | B154: Calderdale | C154: Local Authority | D154: Children's Home | E154: 4 | F154: 0 | G154: 1 | H154: 1 | I154: 0
A155: CalderdalePrivate/ VoluntaryChildren's Home2 | B155: Calderdale | C155: Private/ Voluntary | D155: Children's Home | E155: 2 | F155: 0 | G155: 2 | H155: 0 | I155: 0
A156: CalderdalePrivate/ VoluntaryChildren's Home4 | B156: Calderdale | C156: Private/ Voluntary | D156: Children's Home | E156: 4 | F156: 0 | G156: 2 | H156: 0 | I156: 0
A157: CambridgeshireAllChildren's Home1 | B157: Cambridgeshire | C157: All | D157: Children's Home | E157: 1 | F157: 0 | G157: 1 | H157: 0 | I157: 0
A158: CambridgeshireAllChildren's Home2 | B158: Cambridgeshire | C158: All | D158: Children's Home | E158: 2 | F158: 0 | G158: 1 | H158: 1 | I158: 1
A159: CambridgeshireAllChildren's Home3 | B159: Cambridgeshire | C159: All | D159: Children's Home | E159: 3 | F159: 0 | G159: 3 | H159: 0 | I159: 0
A160: CambridgeshireAllChildren's Home4 | B160: Cambridgeshire | C160: All | D160: Children's Home | E160: 4 | F160: 0 | G160: 5 | H160: 1 | I160: 1
A161: CambridgeshireAllResidential special school (>295 days/year)2 | B161: Cambridgeshire | C161: All | D161: Residential special school (>295 days/year) | E161: 2 | F161: 0 | G161: 1 | H161: 0 | I161: 0
A162: CambridgeshireAllResidential special school (>295 days/year)4 | B162: Cambridgeshire | C162: All | D162: Residential special school (>295 days/year) | E162: 4 | F162: 0 | G162: 1 | H162: 0 | I162: 0
A163: CambridgeshireLocal AuthorityChildren's Home1 | B163: Cambridgeshire | C163: Local Authority | D163: Children's Home | E163: 1 | F163: 0 | G163: 1 | H163: 0 | I163: 0
A164: CambridgeshireLocal AuthorityChildren's Home2 | B164: Cambridgeshire | C164: Local Authority | D164: Children's Home | E164: 2 | F164: 0 | G164: 0 | H164: 0 | I164: 1
A165: CambridgeshireLocal AuthorityChildren's Home4 | B165: Cambridgeshire | C165: Local Authority | D165: Children's Home | E165: 4 | F165: 0 | G165: 1 | H165: 0 | I165: 1
A166: CambridgeshirePrivate/ VoluntaryChildren's Home2 | B166: Cambridgeshire | C166: Private/ Voluntary | D166: Children's Home | E166: 2 | F166: 0 | G166: 1 | H166: 1 | I166: 0
A167: CambridgeshirePrivate/ VoluntaryChildren's Home3 | B167: Cambridgeshire | C167: Private/ Voluntary | D167: Children's Home | E167: 3 | F167: 0 | G167: 3 | H167: 0 | I167: 0
A168: CambridgeshirePrivate/ VoluntaryChildren's Home4 | B168: Cambridgeshire | C168: Private/ Voluntary | D168: Children's Home | E168: 4 | F168: 0 | G168: 4 | H168: 1 | I168: 0
A169: CambridgeshirePrivate/ VoluntaryResidential special school (>295 days/year)2 | B169: Cambridgeshire | C169: Private/ Voluntary | D169: Residential special school (>295 days/year) | E169: 2 | F169: 0 | G169: 1 | H169: 0 | I169: 0
A170: CambridgeshirePrivate/ VoluntaryResidential special school (>295 days/year)4 | B170: Cambridgeshire | C170: Private/ Voluntary | D170: Residential special school (>295 days/year) | E170: 4 | F170: 0 | G170: 1 | H170: 0 | I170: 0
A171: Central BedfordshireAllChildren's Home2 | B171: Central Bedfordshire | C171: All | D171: Children's Home | E171: 2 | F171: 0 | G171: 0 | H171: 0 | I171: 1
A172: Central BedfordshireAllChildren's Home4 | B172: Central Bedfordshire | C172: All | D172: Children's Home | E172: 4 | F172: 0 | G172: 0 | H172: 0 | I172: 1
A173: Central BedfordshirePrivate/ VoluntaryChildren's Home2 | B173: Central Bedfordshire | C173: Private/ Voluntary | D173: Children's Home | E173: 2 | F173: 0 | G173: 0 | H173: 0 | I173: 1
A174: Central BedfordshirePrivate/ VoluntaryChildren's Home4 | B174: Central Bedfordshire | C174: Private/ Voluntary | D174: Children's Home | E174: 4 | F174: 0 | G174: 0 | H174: 0 | I174: 1
A175: Cheshire EastAllChildren's Home3 | B175: Cheshire East | C175: All | D175: Children's Home | E175: 3 | F175: 1 | G175: 0 | H175: 0 | I175: 0
A176: Cheshire EastAllChildren's Home4 | B176: Cheshire East | C176: All | D176: Children's Home | E176: 4 | F176: 1 | G176: 0 | H176: 0 | I176: 0
A177: Cheshire EastPrivate/ VoluntaryChildren's Home3 | B177: Cheshire East | C177: Private/ Voluntary | D177: Children's Home | E177: 3 | F177: 1 | G177: 0 | H177: 0 | I177: 0
A178: Cheshire EastPrivate/ VoluntaryChildren's Home4 | B178: Cheshire East | C178: Private/ Voluntary | D178: Children's Home | E178: 4 | F178: 1 | G178: 0 | H178: 0 | I178: 0
A179: Cheshire West and ChesterAllChildren's Home3 | B179: Cheshire West and Chester | C179: All | D179: Children's Home | E179: 3 | F179: 0 | G179: 1 | H179: 0 | I179: 0
A180: Cheshire West and ChesterAllChildren's Home4 | B180: Cheshire West and Chester | C180: All | D180: Children's Home | E180: 4 | F180: 0 | G180: 1 | H180: 0 | I180: 0
A181: Cheshire West and ChesterLocal AuthorityChildren's Home3 | B181: Cheshire West and Chester | C181: Local Authority | D181: Children's Home | E181: 3 | F181: 0 | G181: 1 | H181: 0 | I181: 0
A182: Cheshire West and ChesterLocal AuthorityChildren's Home4 | B182: Cheshire West and Chester | C182: Local Authority | D182: Children's Home | E182: 4 | F182: 0 | G182: 1 | H182: 0 | I182: 0
A183: CornwallAllChildren's Home1 | B183: Cornwall | C183: All | D183: Children's Home | E183: 1 | F183: 0 | G183: 0 | H183: 0 | I183: 1
A184: CornwallAllChildren's Home2 | B184: Cornwall | C184: All | D184: Children's Home | E184: 2 | F184: 0 | G184: 2 | H184: 2 | I184: 1
A185: CornwallAllChildren's Home3 | B185: Cornwall | C185: All | D185: Children's Home | E185: 3 | F185: 0 | G185: 0 | H185: 1 | I185: 1
A186: CornwallAllChildren's Home4 | B186: Cornwall | C186: All | D186: Children's Home | E186: 4 | F186: 0 | G186: 2 | H186: 3 | I186: 3
A187: CornwallLocal AuthorityChildren's Home1 | B187: Cornwall | C187: Local Authority | D187: Children's Home | E187: 1 | F187: 0 | G187: 0 | H187: 0 | I187: 1
A188: CornwallLocal AuthorityChildren's Home2 | B188: Cornwall | C188: Local Authority | D188: Children's Home | E188: 2 | F188: 0 | G188: 1 | H188: 2 | I188: 0
A189: CornwallLocal AuthorityChildren's Home4 | B189: Cornwall | C189: Local Authority | D189: Children's Home | E189: 4 | F189: 0 | G189: 1 | H189: 2 | I189: 1
A190: CornwallPrivate/ VoluntaryChildren's Home2 | B190: Cornwall | C190: Private/ Voluntary | D190: Children's Home | E190: 2 | F190: 0 | G190: 1 | H190: 0 | I190: 1
A191: CornwallPrivate/ VoluntaryChildren's Home3 | B191: Cornwall | C191: Private/ Voluntary | D191: Children's Home | E191: 3 | F191: 0 | G191: 0 | H191: 1 | I191: 1
A192: CornwallPrivate/ VoluntaryChildren's Home4 | B192: Cornwall | C192: Private/ Voluntary | D192: Children's Home | E192: 4 | F192: 0 | G192: 1 | H192: 1 | I192: 2
A193: CroydonAllChildren's Home1 | B193: Croydon | C193: All | D193: Children's Home | E193: 1 | F193: 0 | G193: 0 | H193: 1 | I193: 0
A194: CroydonAllChildren's Home2 | B194: Croydon | C194: All | D194: Children's Home | E194: 2 | F194: 0 | G194: 0 | H194: 1 | I194: 1
A195: CroydonAllChildren's Home4 | B195: Croydon | C195: All | D195: Children's Home | E195: 4 | F195: 0 | G195: 0 | H195: 2 | I195: 1
A196: CroydonPrivate/ VoluntaryChildren's Home1 | B196: Croydon | C196: Private/ Voluntary | D196: Children's Home | E196: 1 | F196: 0 | G196: 0 | H196: 1 | I196: 0
A197: CroydonPrivate/ VoluntaryChildren's Home2 | B197: Croydon | C197: Private/ Voluntary | D197: Children's Home | E197: 2 | F197: 0 | G197: 0 | H197: 1 | I197: 1
A198: CroydonPrivate/ VoluntaryChildren's Home4 | B198: Croydon | C198: Private/ Voluntary | D198: Children's Home | E198: 4 | F198: 0 | G198: 0 | H198: 2 | I198: 1
A199: CumbriaAllChildren's Home2 | B199: Cumbria | C199: All | D199: Children's Home | E199: 2 | F199: 0 | G199: 0 | H199: 1 | I199: 0
A200: CumbriaAllChildren's Home3 | B200: Cumbria | C200: All | D200: Children's Home | E200: 3 | F200: 0 | G200: 1 | H200: 2 | I200: 0
... 785 more rows

Sheet Table 1
A1: =B2 -> Table 1: Number of children's homes inspections carried out between 1 April 2012 - 30 June 2012, by inspection type (final)¹ ²
B2: =IF(ISERROR(VLOOKUP(D5,Ranges!F1:G12,2,0)),"Table 1: Number of "&Ranges!H1&" inspections carried out between "&D5&", by inspection type (final)"&CHAR(185)&" "&CHAR(178),"Table 1: All "&Ranges!H1&" inspections carried out in "&D5&", by inspection type (final)"&CHAR(185)&" "&CHAR(178)) -> Table 1: Number of children's homes inspections carried out between 1 April 2012 - 30 June 2012, by inspection type (final)¹ ²
B5: Select period: | D5: 1 April 2012 - 30 June 2012
B6: =VLOOKUP(D5,Periods,2,0) -> 4
B7: Select local authority: | D7: All
B10: Provider type | D10: Total number inspected | G10: Full Inspection | J10: Interim Inspection
D11: All | E11: Local authority | F11: Private/ Voluntary | G11: All | H11: Local authority | I11: Private/ Voluntary | J11: All | K11: Local authority | L11: Private/ Voluntary
B13: Children's homes | D13: =G13+J13 -> 684 | E13: 147 | F13: 537 | G13: =SUM(G14:G16) -> 637 | H13: 146 | I13: 491 | J13: 47 | K13: 1 | L13: 46
A14: Children's home | B14: Children's homes | D14: 651 | E14: 139 | F14: 512 | G14: =IF(ISERROR(VLOOKUP($D$7&G$11&$G$10&$A14&$B$6,Table1_data,7,0)),0,VLOOKUP($D$7&G$11&$G$10&$A14&$B$6,Table1_data,7,0)) -> 607 | H14: 138 | I14: 469 | J14: =IF(ISERROR(VLOOKUP($D$7&J$11&$J$10&$A14&$B$6,Table1_data,7,0)),0,VLOOKUP($D$7&J$11&$J$10&$A14&$B$6,Table1_data,7,0)) -> 44 | K14: 1 | L14: 43
A15: Secure children's home | B15: Secure children's homes | D15: 8 | E15: 7 | F15: 1 | G15: 7 | H15: 7 | I15: 0 | J15: 1 | K15: =IF(ISERROR(VLOOKUP($D$7&K$11&$J$10&$A15&$B$6,Table1_data,7,0)),0,VLOOKUP($D$7&K$11&$J$10&$A15&$B$6,Table1_data,7,0)) -> 0 | L15: 1
A16: Residential special school (>295 days/year) | B16: Residential special schools2 | D16: 25 | E16: 1 | F16: 24 | G16: 23 | H16: 1 | I16: 22 | J16: 2 | K16: 0 | L16: 2
L19: Source: Ofsted inspections
B21: 1. These figures include those children's homes run by the local authority, and those that are run by health authorities, private or voluntary organisations located in the local authority area.
B22: 2. Residential special schools that care for pupils for more than 295 days per year must register as children's homes.

Sheet Table 2
B2: =IF(ISERROR(VLOOKUP(D5,Ranges!F1:G12,2,0)), "Table 2: Overall effectiveness of "& Ranges!H1&" at full inspections between "&D5&" (final)"&CHAR(185)&" "&CHAR(178),"Table 2: Overall effectiveness of "& Ranges!H1&" at full inspections in "&D5&" (final)"&CHAR(185)&" "&CHAR(178)&CHAR(178)) -> Table 2: Overall effectiveness of children's homes at full inspections between 1 April 2012 - 30 June 2012 (final)¹ ²
B5: Select period: | D5: 1 April 2012 - 30 June 2012
B6: =VLOOKUP(D5,Periods,2,0) -> 4
B7: Select local authority: | D7: All
D8: 6 | E8: 6 | F8: 6 | G8: 7 | H8: 7 | I8: 7 | J8: 8 | K8: 8 | L8: 8 | M8: 9 | N8: 9 | O8: 9
B9: Provider Type | C9: Total number inspected | D9: Overall effectiveness | P9: Outstanding | Q9: Good | R9: Satisfactory | S9: Inadequate | T9: Total
D10: Outstanding | G10: Good | J10: Adequate | M10: Inadequate | Q10: ="Children's Home ("&C14 &")" -> Children's Home (607)
D11: All | E11: Local authority | F11: Private/ Voluntary | G11: All | H11: Local authority | I11: Private/ Voluntary | J11: All | K11: Local authority | L11: Private/ Voluntary | M11: All | N11: Local authority | O11: Private/ Voluntary
B13: ="Children's homes " -> Children's homes | C13: =SUM(D13,G13,J13,M13) -> 637 | D13: =SUM(D14:D16) -> 54 | E13: =SUM(E14:E16) -> 10 | F13: 44 | G13: 329 | H13: 74 | I13: 255 | J13: 204 | K13: 51 | L13: 153 | M13: 50 | N13: 11 | O13: 39
A14: Children's home | B14: ="Children's homes" -> Children's homes | C14: =SUM(D14,G14,J14,M14) -> 607 | D14: =IF(ISERROR(VLOOKUP($D$7&D$11&$A14&$B$6,Table2_data,D$8,0)),0,VLOOKUP($D$7&D$11&$A14&$B$6,Table2_data,D$8,0)) -> 51 | E14: 9 | F14: 42 | G14: 313 | H14: 69 | I14: =IF(ISERROR(VLOOKUP($D$7&I$11&$A14&$B$6,Table2_data,I$8,0)),0,VLOOKUP($D$7&I$11&$A14&$B$6,Table2_data,I$8,0)) -> 244 | J14: 195 | K14: 49 | L14: 146 | M14: =IF(ISERROR(VLOOKUP($D$7&M$11&$A14&$B$6,Table2_data,M$8,0)),0,VLOOKUP($D$7&M$11&$A14&$B$6,Table2_data,M$8,0)) -> 48 | N14: 11 | O14: =IF(ISERROR(VLOOKUP($D$7&O$11&$A14&$B$6,Table2_data,O$8,0)),0,VLOOKUP($D$7&O$11&$A14&$B$6,Table2_data,O$8,0)) -> 37
A15: Secure children's home | B15: ="Secure children's homes" -> Secure children's homes | C15: =SUM(D15,G15,J15,M15) -> 7 | D15: 1 | E15: 1 | F15: 0 | G15: 4 | H15: 4 | I15: 0 | J15: 2 | K15: 2 | L15: 0 | M15: 0 | N15: 0 | O15: 0
A16: Residential special school (>295 days/year) | B16: Residential special schools2 | C16: =SUM(D16,G16,J16,M16) -> 23 | D16: 2 | E16: 0 | F16: 2 | G16: 12 | H16: 1 | I16: 11 | J16: 7 | K16: 0 | L16: 7 | M16: 2 | N16: 0 | O16: 2
O19: Source: Ofsted inspections
B20: 1. These figures include those children's homes run by the local authority, and those that are run by health authorities, private or voluntary organisations located in the local authority area.
B21: 2. Residential special schools that care for pupils for more than 295 days per year must register as children's homes.

Sheet Table 3a
A1: =B2 -> Table 3a: Full inspection outcomes of children's homes (excluding secure children's homes and residential special schools caring for pupils for more than 295 days a year) inspected between 1 April 2012 - 30 June 2012 (final)¹ ² ³
B2: =IF(ISERROR(VLOOKUP(D5,Ranges!F1:G12,2,0)), "Table 3a: Full inspection outcomes of children's homes (excluding secure children's homes and residential special schools caring for pupils for more than 295 days a year) inspected between "&D5 & " (final)"&CHAR(185)&" "&CHAR(178)&" "&CHAR(179),"Table 3a: Full inspection outcomes of children's homes (excluding secure children's homes and residential special schools caring for pupils for more than 295 days a year) inspected in "&D5 & " (final)"&CHAR(185)&" "&CHAR(178)&" "&CHAR(179)) -> Table 3a: Full inspection outcomes of children's homes (excluding secure children's homes and residential special schools caring for pupils for more than 295 days a year) inspected between 1 April 2012 - 30 June 2012 (final)¹ ² ³
B4: Children's Home
B5: Select period: | D5: 1 April 2012 - 30 June 2012
B6: =VLOOKUP(D5,Periods,2,0) -> 4
B7: Select local authority: | D7: All | P7: =IF($D$7="All", "England",$D$7) -> England
G8: All
D9: All sectors3
D10: Total number inspected | G10: Outstanding | K10: Good | O10: Adequate | S10: Inadequate
G11: Number | H11: % | K11: Number | L11: % | O11: Number | P11: % | S11: Number | T11: %
G12: 7 | K12: 8 | O12: 9 | S12: 10
B13: Overall effectiveness | D13: =G13+K13+O13+S13 -> 607 | G13: =IF(ISERROR(VLOOKUP($D$7&G8&$B$4&SUBSTITUTE($B$13,"Overall care judgement - ","")&$B$6,Table3_data,G12,0))=TRUE,0,VLOOKUP($D$7&G8&$B$4&SUBSTITUTE($B$13,"Overall care judgement - ","")&$B$6,Table3_data,G12,0)) -> 51 | H13: =IF($D13=0,"",G13/$D13*100) -> 8.401976936 | K13: =IF(ISERROR(VLOOKUP($D$7&$G$8&$B$4&SUBSTITUTE($B$13,"Overall care judgement - ","")&$B$6,Table3_data,$K$12,0))=TRUE,0,VLOOKUP($D$7&$G$8&$B$4&SUBSTITUTE($B$13,"Overall care judgement - ","")&$B$6,Table3_data,$K$12,0)) -> 313 | L13: =IF($D13=0,"",K13/$D13*100) -> 51.56507414 | O13: =IF(ISERROR(VLOOKUP($D$7&$G$8&$B$4&SUBSTITUTE($B$13,"Overall care judgement - ","")&$B$6,Table3_data,O12,0))=TRUE,0,VLOOKUP($D$7&$G$8&$B$4&SUBSTITUTE($B$13,"Overall care judgement - ","")&$B$6,Table3_data,O12,0)) -> 195 | P13: =IF($D13=0,"",O13/$D13*100) -> 32.12520593 | S13: =IF(ISERROR(VLOOKUP($D$7&$G$8&$B$4&SUBSTITUTE($B$13,"Overall care judgement - ","")&$B$6,Table3_data,S12,0))=TRUE,0,VLOOKUP($D$7&$G$8&$B$4&SUBSTITUTE($B$13,"Overall care judgement - ","")&$B$6,Table3_data,S12,0)) -> 48 | T13: =IF($D13=0,"",S13/$D13*100) -> 7.907742998
B15: Outcomes for children and young people | D15: =G15+K15+O15+S15 -> 607 | G15: =IF(ISERROR(VLOOKUP($D$7&$G$8&$B$4&SUBSTITUTE(B15,"Overall care judgement - ","")&$B$6,Table3_data,$G$12,0))=TRUE,0,VLOOKUP($D$7&G8&$B$4&SUBSTITUTE(B15,"Overall care judgement - ","")&$B$6,Table3_data,$G$12,0)) -> 79 | H15: =IF($D15=0,"",G15/$D15*100) -> 13.01482702 | K15: =IF(ISERROR(VLOOKUP($D$7&$G$8&$B$4&SUBSTITUTE($B$15,"Overall care judgement - ","")&$B$6,Table3_data,$K$12,0))=TRUE,0,VLOOKUP($D$7&$G$8&$B$4&SUBSTITUTE($B$15,"Overall care judgement - ","")&$B$6,Table3_data,$K$12,0)) -> 314 | L15: =IF($D15=0,"",K15/$D15*100) -> 51.72981878 | O15: =IF(ISERROR(VLOOKUP($D$7&$G$8&$B$4&SUBSTITUTE($B$15,"Overall care judgement - ","")&$B$6,Table3_data,$O$12,0))=TRUE,0,VLOOKUP($D$7&$G$8&$B$4&SUBSTITUTE($B$15,"Overall care judgement - ","")&$B$6,Table3_data,$O$12,0)) -> 187 | P15: =IF($D15=0,"",O15/$D15*100) -> 30.80724876 | S15: =IF(ISERROR(VLOOKUP($D$7&$G$8&$B$4&SUBSTITUTE($B$15,"Overall care judgement - ","")&$B$6,Table3_data,S12,0))=TRUE,0,VLOOKUP($D$7&$G$8&$B$4&SUBSTITUTE($B$15,"Overall care judgement - ","")&$B$6,Table3_data,S12,0)) -> 27 | T15: =IF($D15=0,"",S15/$D15*100) -> 4.448105437
A17: Quality of service | B17: Quality of care | D17: =G17+K17+O17+S17 -> 607 | G17: =IF(ISERROR(VLOOKUP($D$7&$G$8&$B$4&A17&$B$6,Table3_data,$G$12,0))=TRUE,0,VLOOKUP($D$7&G8&$B$4&A17&$B$6,Table3_data,$G$12,0)) -> 99 | H17: 16.30971993 | K17: =IF(ISERROR(VLOOKUP($D$7&$G$8&$B$4&SUBSTITUTE($A$17,"Overall care judgement - ","")&$B$6,Table3_data,$K$12,0))=TRUE,0,VLOOKUP($D$7&$G$8&$B$4&SUBSTITUTE($A$17,"Overall care judgement - ","")&$B$6,Table3_data,$K$12,0)) -> 326 | L17: 53.70675453 | O17: =IF(ISERROR(VLOOKUP($D$7&$G$8&$B$4&SUBSTITUTE($A$17,"Overall care judgement - ","")&$B$6,Table3_data,$O$12,0))=TRUE,0,VLOOKUP($D$7&$G$8&$B$4&SUBSTITUTE($A$17,"Overall care judgement - ","")&$B$6,Table3_data,$O$12,0)) -> 144 | P17: 23.723229 | S17: =IF(ISERROR(VLOOKUP($D$7&$G$8&$B$4&SUBSTITUTE($A$17,"Overall care judgement - ","")&$B$6,Table3_data,S12,0))=TRUE,0,VLOOKUP($D$7&$G$8&$B$4&SUBSTITUTE($A$17,"Overall care judgement - ","")&$B$6,Table3_data,S12,0)) -> 38 | T17: 6.26029654
A19: The safety of children and young people | B19: Safeguarding children and young people | D19: =G19+K19+O19+S19 -> 607 | G19: =IF(ISERROR(VLOOKUP($D$7&$G$8&$B$4&A19&$B$6,Table3_data,$G$12,0))=TRUE,0,VLOOKUP($D$7&G8&$B$4&A19&$B$6,Table3_data,$G$12,0)) -> 71 | H19: 11.69686985 | K19: =IF(ISERROR(VLOOKUP($D$7&$G$8&$B$4&SUBSTITUTE($A$19,"Overall care judgement - ","")&$B$6,Table3_data,$K$12,0))=TRUE,0,VLOOKUP($D$7&$G$8&$B$4&SUBSTITUTE($A$19,"Overall care judgement - ","")&$B$6,Table3_data,$K$12,0)) -> 318 | L19: 52.38879736 | O19: =IF(ISERROR(VLOOKUP($D$7&$G$8&$B$4&SUBSTITUTE($A$19,"Overall care judgement - ","")&$B$6,Table3_data,$O$12,0))=TRUE,0,VLOOKUP($D$7&$G$8&$B$4&SUBSTITUTE($A$19,"Overall care judgement - ","")&$B$6,Table3_data,$O$12,0)) -> 171 | P19: 28.17133443 | S19: =IF(ISERROR(VLOOKUP($D$7&$G$8&$B$4&SUBSTITUTE($A$19,"Overall care judgement - ","")&$B$6,Table3_data,S12,0))=TRUE,0,VLOOKUP($D$7&$G$8&$B$4&SUBSTITUTE($A$19,"Overall care judgement - ","")&$B$6,Table3_data,S12,0)) -> 47 | T19: 7.742998353
B21: Leadership and management | D21: =G21+K21+O21+S21 -> 607 | G21: =IF(ISERROR(VLOOKUP($D$7&$G$8&$B$4&B21&$B$6,Table3_data,$G$12,0))=TRUE,0,VLOOKUP($D$7&G8&$B$4&B21&$B$6,Table3_data,$G$12,0)) -> 62 | H21: 10.21416804 | K21: =IF(ISERROR(VLOOKUP($D$7&$G$8&$B$4&SUBSTITUTE($B$21,"Overall care judgement - ","")&$B$6,Table3_data,$K$12,0))=TRUE,0,VLOOKUP($D$7&$G$8&$B$4&SUBSTITUTE($B$21,"Overall care judgement - ","")&$B$6,Table3_data,$K$12,0)) -> 290 | L21: 47.77594728 | O21: =IF(ISERROR(VLOOKUP($D$7&$G$8&$B$4&SUBSTITUTE($B$21,"Overall care judgement - ","")&$B$6,Table3_data,$O$12,0))=TRUE,0,VLOOKUP($D$7&$G$8&$B$4&SUBSTITUTE($B$21,"Overall care judgement - ","")&$B$6,Table3_data,$O$12,0)) -> 193 | P21: 31.79571664 | S21: =IF(ISERROR(VLOOKUP($D$7&$G$8&$B$4&SUBSTITUTE($B$21,"Overall care judgement - ","")&$B$6,Table3_data,S12,0))=TRUE,0,VLOOKUP($D$7&$G$8&$B$4&SUBSTITUTE($B$21,"Overall care judgement - ","")&$B$6,Table3_data,S12,0)) -> 62 | T21: 10.21416804
D23: Local authority
G24: 7 | K24: 8 | O24: 9 | S24: 10
B25: Overall effectiveness | D25: =G25+K25+O25+S25 -> 138 | G25: =IF(ISERROR(VLOOKUP($D$7&D23&$B$4&SUBSTITUTE($B$25,"Overall care judgement - ","")&$B$6,Table3_data,$G$24,0))=TRUE,0,VLOOKUP($D$7&D23&$B$4&SUBSTITUTE($B$25,"Overall care judgement - ","")&$B$6,Table3_data,$G$24,0)) -> 9 | H25: =IF($D25=0,"",G25/$D25*100) -> 6.52173913 | K25: =IF(ISERROR(VLOOKUP($D$7&D23&$B$4&SUBSTITUTE($B$25,"Overall care judgement - ","")&$B$6,Table3_data,$K$24,0))=TRUE,0,VLOOKUP($D$7&D23&$B$4&SUBSTITUTE($B$25,"Overall care judgement - ","")&$B$6,Table3_data,$K$24,0)) -> 69 | L25: =IF($D25=0,"",K25/$D25*100) -> 50 | O25: =IF(ISERROR(VLOOKUP($D$7&D23&$B$4&SUBSTITUTE($B$25,"Overall care judgement - ","")&$B$6,Table3_data,$O$24,0))=TRUE,0,VLOOKUP($D$7&D23&$B$4&SUBSTITUTE($B$25,"Overall care judgement - ","")&$B$6,Table3_data,$O$24,0)) -> 49 | P25: =IF($D25=0,"",O25/$D25*100) -> 35.50724638 | S25: =IF(ISERROR(VLOOKUP($D$7&D23&$B$4&SUBSTITUTE($B$25,"Overall care judgement - ","")&$B$6,Table3_data,$S$24,0))=TRUE,0,VLOOKUP($D$7&D23&$B$4&SUBSTITUTE($B$25,"Overall care judgement - ","")&$B$6,Table3_data,$S$24,0)) -> 11 | T25: =IF($D25=0,"",S25/$D25*100) -> 7.971014493
B27: Outcomes for children and young people | D27: =G27+K27+O27+S27 -> 138 | G27: =IF(ISERROR(VLOOKUP($D$7&$D$23&$B$4&SUBSTITUTE(B27,"Overall care judgement - ","")&$B$6,Table3_data,$G$24,0))=TRUE,0,VLOOKUP($D$7&$D$23&$B$4&SUBSTITUTE(B27,"Overall care judgement - ","")&$B$6,Table3_data,$G$24,0)) -> 18 | H27: =IF($D27=0,"",G27/$D27*100) -> 13.04347826 | K27: =IF(ISERROR(VLOOKUP($D$7&$D$23&$B$4&SUBSTITUTE(B27,"Overall care judgement - ","")&$B$6,Table3_data,$K$24,0))=TRUE,0,VLOOKUP($D$7&$D$23&$B$4&SUBSTITUTE(B27,"Overall care judgement - ","")&$B$6,Table3_data,$K$24,0)) -> 69 | L27: =IF($D27=0,"",K27/$D27*100) -> 50 | O27: =IF(ISERROR(VLOOKUP($D$7&$D$23&$B$4&SUBSTITUTE(B27,"Overall care judgement - ","")&$B$6,Table3_data,$O$24,0))=TRUE,0,VLOOKUP($D$7&$D$23&$B$4&SUBSTITUTE(B27,"Overall care judgement - ","")&$B$6,Table3_data,$O$24,0)) -> 47 | P27: =IF($D27=0,"",O27/$D27*100) -> 34.05797101 | S27: =IF(ISERROR(VLOOKUP($D$7&$D$23&$B$4&SUBSTITUTE(B27,"Overall care judgement - ","")&$B$6,Table3_data,$S$24,0))=TRUE,0,VLOOKUP($D$7&$D$23&$B$4&SUBSTITUTE(B27,"Overall care judgement - ","")&$B$6,Table3_data,$S$24,0)) -> 4 | T27: =IF($D27=0,"",S27/$D27*100) -> 2.898550725
A29: Quality of service | B29: Quality of care | D29: 138 | G29: =IF(ISERROR(VLOOKUP($D$7&$D$23&$B$4&SUBSTITUTE(A29,"Overall care judgement - ","")&$B$6,Table3_data,$G$24,0))=TRUE,0,VLOOKUP($D$7&$D$23&$B$4&SUBSTITUTE(A29,"Overall care judgement - ","")&$B$6,Table3_data,$G$24,0)) -> 26 | H29: 18.84057971 | K29: =IF(ISERROR(VLOOKUP($D$7&$D$23&$B$4&SUBSTITUTE(A29,"Overall care judgement - ","")&$B$6,Table3_data,$K$24,0))=TRUE,0,VLOOKUP($D$7&$D$23&$B$4&SUBSTITUTE(A29,"Overall care judgement - ","")&$B$6,Table3_data,$K$24,0)) -> 68 | L29: 49.27536232 | O29: =IF(ISERROR(VLOOKUP($D$7&$D$23&$B$4&SUBSTITUTE(A29,"Overall care judgement - ","")&$B$6,Table3_data,$O$24,0))=TRUE,0,VLOOKUP($D$7&$D$23&$B$4&SUBSTITUTE(A29,"Overall care judgement - ","")&$B$6,Table3_data,$O$24,0)) -> 37 | P29: 26.8115942 | S29: =IF(ISERROR(VLOOKUP($D$7&$D$23&$B$4&SUBSTITUTE(A29,"Overall care judgement - ","")&$B$6,Table3_data,$S$24,0))=TRUE,0,VLOOKUP($D$7&$D$23&$B$4&SUBSTITUTE(A29,"Overall care judgement - ","")&$B$6,Table3_data,$S$24,0)) -> 7 | T29: 5.072463768
A31: The safety of children and young people | B31: Safeguarding children and young people | D31: 138 | G31: =IF(ISERROR(VLOOKUP($D$7&$D$23&$B$4&SUBSTITUTE(A31,"Overall care judgement - ","")&$B$6,Table3_data,$G$24,0))=TRUE,0,VLOOKUP($D$7&$D$23&$B$4&SUBSTITUTE(A31,"Overall care judgement - ","")&$B$6,Table3_data,$G$24,0)) -> 14 | H31: 10.14492754 | K31: =IF(ISERROR(VLOOKUP($D$7&$D$23&$B$4&SUBSTITUTE(A31,"Overall care judgement - ","")&$B$6,Table3_data,$K$24,0))=TRUE,0,VLOOKUP($D$7&$D$23&$B$4&SUBSTITUTE(A31,"Overall care judgement - ","")&$B$6,Table3_data,$K$24,0)) -> 69 | L31: 50 | O31: =IF(ISERROR(VLOOKUP($D$7&$D$23&$B$4&SUBSTITUTE(A31,"Overall care judgement - ","")&$B$6,Table3_data,$O$24,0))=TRUE,0,VLOOKUP($D$7&$D$23&$B$4&SUBSTITUTE(A31,"Overall care judgement - ","")&$B$6,Table3_data,$O$24,0)) -> 43 | P31: 31.15942029 | S31: =IF(ISERROR(VLOOKUP($D$7&$D$23&$B$4&SUBSTITUTE(A31,"Overall care judgement - ","")&$B$6,Table3_data,$S$24,0))=TRUE,0,VLOOKUP($D$7&$D$23&$B$4&SUBSTITUTE(A31,"Overall care judgement - ","")&$B$6,Table3_data,$S$24,0)) -> 12 | T31: 8.695652174
B33: Leadership and management | D33: 138 | G33: =IF(ISERROR(VLOOKUP($D$7&$D$23&$B$4&SUBSTITUTE(B33,"Overall care judgement - ","")&$B$6,Table3_data,$G$24,0))=TRUE,0,VLOOKUP($D$7&$D$23&$B$4&SUBSTITUTE(B33,"Overall care judgement - ","")&$B$6,Table3_data,$G$24,0)) -> 10 | H33: 7.246376812 | K33: =IF(ISERROR(VLOOKUP($D$7&$D$23&$B$4&SUBSTITUTE(B33,"Overall care judgement - ","")&$B$6,Table3_data,$K$24,0))=TRUE,0,VLOOKUP($D$7&$D$23&$B$4&SUBSTITUTE(B33,"Overall care judgement - ","")&$B$6,Table3_data,$K$24,0)) -> 70 | L33: 50.72463768 | O33: =IF(ISERROR(VLOOKUP($D$7&$D$23&$B$4&SUBSTITUTE(B33,"Overall care judgement - ","")&$B$6,Table3_data,$O$24,0))=TRUE,0,VLOOKUP($D$7&$D$23&$B$4&SUBSTITUTE(B33,"Overall care judgement - ","")&$B$6,Table3_data,$O$24,0)) -> 42 | P33: 30.43478261 | S33: =IF(ISERROR(VLOOKUP($D$7&$D$23&$B$4&SUBSTITUTE(B33,"Overall care judgement - ","")&$B$6,Table3_data,$S$24,0))=TRUE,0,VLOOKUP($D$7&$D$23&$B$4&SUBSTITUTE(B33,"Overall care judgement - ","")&$B$6,Table3_data,$S$24,0)) -> 16 | T33: 11.5942029
C35: Private/ voluntary
G36: 7 | K36: 8 | O36: 9 | S36: 10
B37: Overall effectiveness | D37: =G37+K37+O37+S37 -> 469 | G37: =IF(ISERROR(VLOOKUP($D$7&C$35&$B$4&SUBSTITUTE($B$37,"Overall care judgement - ","")&$B$6,Table3_data,$G$36,0))=TRUE,0,VLOOKUP($D$7&$C$35&$B$4&SUBSTITUTE($B$37,"Overall care judgement - ","")&$B$6,Table3_data,$G$36,0)) -> 42 | H37: =IF($D37=0,"",G37/$D37*100) -> 8.955223881 | K37: =IF(ISERROR(VLOOKUP($D$7&C$35&$B$4&SUBSTITUTE($B$37,"Overall care judgement - ","")&$B$6,Table3_data,$K$36,0))=TRUE,0,VLOOKUP($D$7&$C$35&$B$4&SUBSTITUTE($B$37,"Overall care judgement - ","")&$B$6,Table3_data,$K$36,0)) -> 244 | L37: =IF($D37=0,"",K37/$D37*100) -> 52.02558635 | O37: =IF(ISERROR(VLOOKUP($D$7&C$35&$B$4&SUBSTITUTE($B$37,"Overall care judgement - ","")&$B$6,Table3_data,$O$36,0))=TRUE,0,VLOOKUP($D$7&$C$35&$B$4&SUBSTITUTE($B$37,"Overall care judgement - ","")&$B$6,Table3_data,$O$36,0)) -> 146 | P37: =IF($D37=0,"",O37/$D37*100) -> 31.13006397 | S37: =IF(ISERROR(VLOOKUP($D$7&C$35&$B$4&SUBSTITUTE($B$37,"Overall care judgement - ","")&$B$6,Table3_data,$S$36,0))=TRUE,0,VLOOKUP($D$7&$C$35&$B$4&SUBSTITUTE($B$37,"Overall care judgement - ","")&$B$6,Table3_data,$S$36,0)) -> 37 | T37: =IF($D37=0,"",S37/$D37*100) -> 7.8891258
B39: Outcomes for children and young people | D39: =G39+K39+O39+S39 -> 469 | G39: =IF(ISERROR(VLOOKUP($D$7&C$35&$B$4&SUBSTITUTE($B$39,"Overall care judgement - ","")&$B$6,Table3_data,$G$36,0))=TRUE,0,VLOOKUP($D$7&$C$35&$B$4&SUBSTITUTE($B$39,"Overall care judgement - ","")&$B$6,Table3_data,$G$36,0)) -> 61 | H39: =IF($D39=0,"",G39/$D39*100) -> 13.00639659 | K39: =IF(ISERROR(VLOOKUP($D$7&C$35&$B$4&SUBSTITUTE($B$39,"Overall care judgement - ","")&$B$6,Table3_data,$K$36,0))=TRUE,0,VLOOKUP($D$7&$C$35&$B$4&SUBSTITUTE($B$39,"Overall care judgement - ","")&$B$6,Table3_data,$K$36,0)) -> 245 | L39: =IF($D39=0,"",K39/$D39*100) -> 52.23880597 | O39: =IF(ISERROR(VLOOKUP($D$7&C$35&$B$4&SUBSTITUTE($B$39,"Overall care judgement - ","")&$B$6,Table3_data,$O$36,0))=TRUE,0,VLOOKUP($D$7&$C$35&$B$4&SUBSTITUTE($B$39,"Overall care judgement - ","")&$B$6,Table3_data,$O$36,0)) -> 140 | P39: =IF($D39=0,"",O39/$D39*100) -> 29.85074627 | S39: =IF(ISERROR(VLOOKUP($D$7&C$35&$B$4&SUBSTITUTE($B$39,"Overall care judgement - ","")&$B$6,Table3_data,$S$36,0))=TRUE,0,VLOOKUP($D$7&$C$35&$B$4&SUBSTITUTE($B$39,"Overall care judgement - ","")&$B$6,Table3_data,$S$36,0)) -> 23 | T39: =IF($D39=0,"",S39/$D39*100) -> 4.904051173
A41: Quality of service | B41: Quality of care | D41: 469 | G41: =IF(ISERROR(VLOOKUP($D$7&$C$35&$B$4&SUBSTITUTE(A41,"Overall care judgement - ","")&$B$6,Table3_data,$G$36,0))=TRUE,0,VLOOKUP($D$7&$C$35&$B$4&SUBSTITUTE(A41,"Overall care judgement - ","")&$B$6,Table3_data,$G$36,0)) -> 73 | H41: 15.56503198 | K41: =IF(ISERROR(VLOOKUP($D$7&$C$35&$B$4&SUBSTITUTE(A41,"Overall care judgement - ","")&$B$6,Table3_data,$K$36,0))=TRUE,0,VLOOKUP($D$7&$C$35&$B$4&SUBSTITUTE(A41,"Overall care judgement - ","")&$B$6,Table3_data,$K$36,0)) -> 258 | L41: 55.01066098 | O41: =IF(ISERROR(VLOOKUP($D$7&C$35&$B$4&SUBSTITUTE($A$41,"Overall care judgement - ","")&$B$6,Table3_data,$O$36,0))=TRUE,0,VLOOKUP($D$7&$C$35&$B$4&SUBSTITUTE($A$41,"Overall care judgement - ","")&$B$6,Table3_data,$O$36,0)) -> 107 | P41: 22.81449893 | S41: =IF(ISERROR(VLOOKUP($D$7&C$35&$B$4&SUBSTITUTE($A$41,"Overall care judgement - ","")&$B$6,Table3_data,$S$36,0))=TRUE,0,VLOOKUP($D$7&$C$35&$B$4&SUBSTITUTE($A$41,"Overall care judgement - ","")&$B$6,Table3_data,$S$36,0)) -> 31 | T41: 6.609808102
A43: The safety of children and young people | B43: Safeguarding children and young people | D43: 469 | G43: =IF(ISERROR(VLOOKUP($D$7&C$35&$B$4&SUBSTITUTE($A$43,"Overall care judgement - ","")&$B$6,Table3_data,$G$36,0))=TRUE,0,VLOOKUP($D$7&$C$35&$B$4&SUBSTITUTE($A$43,"Overall care judgement - ","")&$B$6,Table3_data,$G$36,0)) -> 57 | H43: 12.15351812 | K43: =IF(ISERROR(VLOOKUP($D$7&C$35&$B$4&SUBSTITUTE($A$43,"Overall care judgement - ","")&$B$6,Table3_data,$K$36,0))=TRUE,0,VLOOKUP($D$7&$C$35&$B$4&SUBSTITUTE($A$43,"Overall care judgement - ","")&$B$6,Table3_data,$K$36,0)) -> 249 | L43: 53.09168443 | O43: =IF(ISERROR(VLOOKUP($D$7&C$35&$B$4&SUBSTITUTE($A$43,"Overall care judgement - ","")&$B$6,Table3_data,$O$36,0))=TRUE,0,VLOOKUP($D$7&$C$35&$B$4&SUBSTITUTE($A$43,"Overall care judgement - ","")&$B$6,Table3_data,$O$36,0)) -> 128 | P43: 27.29211087 | S43: =IF(ISERROR(VLOOKUP($D$7&C$35&$B$4&SUBSTITUTE($A$43,"Overall care judgement - ","")&$B$6,Table3_data,$S$36,0))=TRUE,0,VLOOKUP($D$7&$C$35&$B$4&SUBSTITUTE($A$43,"Overall care judgement - ","")&$B$6,Table3_data,$S$36,0)) -> 35 | T43: 7.462686567
B45: Leadership and management | D45: 469 | G45: =IF(ISERROR(VLOOKUP($D$7&C$35&$B$4&SUBSTITUTE($B$45,"Overall care judgement - ","")&$B$6,Table3_data,$G$36,0))=TRUE,0,VLOOKUP($D$7&$C$35&$B$4&SUBSTITUTE($B$45,"Overall care judgement - ","")&$B$6,Table3_data,$G$36,0)) -> 52 | H45: 11.08742004 | K45: =IF(ISERROR(VLOOKUP($D$7&C$35&$B$4&SUBSTITUTE($B$45,"Overall care judgement - ","")&$B$6,Table3_data,$K$36,0))=TRUE,0,VLOOKUP($D$7&$C$35&$B$4&SUBSTITUTE($B$45,"Overall care judgement - ","")&$B$6,Table3_data,$K$36,0)) -> 220 | L45: 46.90831557 | O45: =IF(ISERROR(VLOOKUP($D$7&C$35&$B$4&SUBSTITUTE($B$45,"Overall care judgement - ","")&$B$6,Table3_data,$O$36,0))=TRUE,0,VLOOKUP($D$7&$C$35&$B$4&SUBSTITUTE($B$45,"Overall care judgement - ","")&$B$6,Table3_data,$O$36,0)) -> 151 | P45: 32.19616205 | S45: =IF(ISERROR(VLOOKUP($D$7&C$35&$B$4&SUBSTITUTE($B$45,"Overall care judgement - ","")&$B$6,Table3_data,$S$36,0))=TRUE,0,VLOOKUP($D$7&$C$35&$B$4&SUBSTITUTE($B$45,"Overall care judgement - ","")&$B$6,Table3_data,$S$36,0)) -> 46 | T45: 9.808102345
S47: Source: Ofsted inspections
B49: 1. The 'all' figures include all homes, of all ownership type, in the local authority area. Local authority run homes data include a small number of homes run by health authorities.
B50: 2. Percentages are rounded and may not add to exactly 100.
B51: 3. Residential special schools that care for pupils for more than 295 days per year must register as children’s homes and their inspection outcomes data can be found in table 3c.

Sheet Table 3b
A1: =B2 -> Table 3b: Full inspection outcomes of secure children's homes inspected between 1 April 2012 - 30 June 2012 (final)¹ ²
B2: =IF(ISERROR(VLOOKUP(D4,Ranges!F1:G12,2,0)), "Table 3b: Full inspection outcomes of secure children's homes inspected between "&D4 & " (final)"&CHAR(185)&" "&CHAR(178),"Table 3b: Full inspection outcomes of secure children's homes inspected in "&D4 & " (final)"&CHAR(185)&" "&CHAR(178)) -> Table 3b: Full inspection outcomes of secure children's homes inspected between 1 April 2012 - 30 June 2012 (final)¹ ²
B3: Secure children's home
B4: Select period: | D4: 1 April 2012 - 30 June 2012
B5: =VLOOKUP(D4,Periods,2,0) -> 4
B6: Select local authority: | D6: All | T6: =IF($D$6="All", "England",$D$6) -> England
G7: all
D8: All sectors
D9: Total number inspected | G9: Outstanding | K9: Good | O9: Adequate | S9: Inadequate
G10: Number | H10: % | K10: Number | L10: % | O10: Number | P10: % | S10: Number | T10: %
G11: 7 | K11: 8 | O11: 9 | S11: 10
B12: Overall effectiveness | D12: =G12+K12+O12+S12 -> 7 | G12: =IF(ISERROR(VLOOKUP($D$6&G7&$B$3&SUBSTITUTE($B$12,"Overall care judgement - ","")&$B$5,Table3_data,$G$11,0))=TRUE,0,VLOOKUP($D$6&G7&$B$3&SUBSTITUTE($B$12,"Overall care judgement - ","")&$B$5,Table3_data,$G$11,0)) -> 1 | H12: =IF($D12=0,"",G12/$D12*100) -> 14.28571429 | K12: =IF(ISERROR(VLOOKUP($D$6&$G$7&$B$3&SUBSTITUTE($B$12,"Overall care judgement - ","")&$B$5,Table3_data,$K$11,0))=TRUE,0,VLOOKUP($D$6&$G$7&$B$3&SUBSTITUTE($B$12,"Overall care judgement - ","")&$B$5,Table3_data,$K$11,0)) -> 4 | L12: =IF($D12=0,"",K12/$D12*100) -> 57.14285714 | O12: =IF(ISERROR(VLOOKUP($D$6&$G$7&$B$3&SUBSTITUTE($B$12,"Overall care judgement - ","")&$B$5,Table3_data,$O$11,0))=TRUE,0,VLOOKUP($D$6&$G$7&$B$3&SUBSTITUTE($B$12,"Overall care judgement - ","")&$B$5,Table3_data,$O$11,0)) -> 2 | P12: =IF($D12=0,"",O12/$D12*100) -> 28.57142857 | S12: =IF(ISERROR(VLOOKUP($D$6&$G$7&$B$3&SUBSTITUTE($B$12,"Overall care judgement - ","")&$B$5,Table3_data,$S$11,0))=TRUE,0,VLOOKUP($D$6&$G$7&$B$3&SUBSTITUTE($B$12,"Overall care judgement - ","")&$B$5,Table3_data,$S$11,0)) -> 0 | T12: =IF($D12=0,"",S12/$D12*100) -> 0
B14: Outcomes for children and young people | D14: =G14+K14+O14+S14 -> 7 | G14: =IF(ISERROR(VLOOKUP($D$6&G7&$B$3&B14&$B$5,Table3_data,$G$11,0))=TRUE,0,VLOOKUP($D$6&G7&$B$3&B14&$B$5,Table3_data,$G$11,0)) -> 1 | H14: =IF($D14=0,"",G14/$D14*100) -> 14.28571429 | K14: =IF(ISERROR(VLOOKUP($D$6&$G$7&$B$3&SUBSTITUTE($B$14,"Overall care judgement - ","")&$B$5,Table3_data,$K$11,0))=TRUE,0,VLOOKUP($D$6&$G$7&$B$3&SUBSTITUTE($B$14,"Overall care judgement - ","")&$B$5,Table3_data,$K$11,0)) -> 6 | L14: =IF($D14=0,"",K14/$D14*100) -> 85.71428571 | O14: =IF(ISERROR(VLOOKUP($D$6&$G$7&$B$3&SUBSTITUTE($B$14,"Overall care judgement - ","")&$B$5,Table3_data,$O$11,0))=TRUE,0,VLOOKUP($D$6&$G$7&$B$3&SUBSTITUTE($B$14,"Overall care judgement - ","")&$B$5,Table3_data,$O$11,0)) -> 0 | P14: =IF($D14=0,"",O14/$D14*100) -> 0 | S14: =IF(ISERROR(VLOOKUP($D$6&$G$7&$B$3&SUBSTITUTE($B$14,"Overall care judgement - ","")&$B$5,Table3_data,$S$11,0))=TRUE,0,VLOOKUP($D$6&$G$7&$B$3&SUBSTITUTE($B$14,"Overall care judgement - ","")&$B$5,Table3_data,$S$11,0)) -> 0 | T14: =IF($D14=0,"",S14/$D14*100) -> 0
A16: Quality of service | B16: Quality of care | D16: 7 | G16: =IF(ISERROR(VLOOKUP($D$6&G7&$B$3&A16&$B$5,Table3_data,$G$11,0))=TRUE,0,VLOOKUP($D$6&G7&$B$3&A16&$B$5,Table3_data,$G$11,0)) -> 1 | H16: 14.28571429 | K16: =IF(ISERROR(VLOOKUP($D$6&$G$7&$B$3&SUBSTITUTE($A$16,"Overall care judgement - ","")&$B$5,Table3_data,$K$11,0))=TRUE,0,VLOOKUP($D$6&$G$7&$B$3&SUBSTITUTE($A$16,"Overall care judgement - ","")&$B$5,Table3_data,$K$11,0)) -> 4 | L16: 57.14285714 | O16: =IF(ISERROR(VLOOKUP($D$6&$G$7&$B$3&SUBSTITUTE($A$16,"Overall care judgement - ","")&$B$5,Table3_data,$O$11,0))=TRUE,0,VLOOKUP($D$6&$G$7&$B$3&SUBSTITUTE($A$16,"Overall care judgement - ","")&$B$5,Table3_data,$O$11,0)) -> 2 | P16: 28.57142857 | S16: =IF(ISERROR(VLOOKUP($D$6&$G$7&$B$3&SUBSTITUTE($A$16,"Overall care judgement - ","")&$B$5,Table3_data,$S$11,0))=TRUE,0,VLOOKUP($D$6&$G$7&$B$3&SUBSTITUTE($A$16,"Overall care judgement - ","")&$B$5,Table3_data,$S$11,0)) -> 0 | T16: 0
A18: The safety of children and young people | B18: Safeguarding children and young people | D18: 7 | G18: =IF(ISERROR(VLOOKUP($D$6&G7&$B$3&A18&$B$5,Table3_data,$G$11,0))=TRUE,0,VLOOKUP($D$6&G7&$B$3&A18&$B$5,Table3_data,$G$11,0)) -> 1 | H18: 14.28571429 | K18: =IF(ISERROR(VLOOKUP($D$6&$G$7&$B$3&SUBSTITUTE($B$12,"Overall care judgement - ","")&$B$5,Table3_data,$K$11,0))=TRUE,0,VLOOKUP($D$6&$G$7&$B$3&SUBSTITUTE($B$12,"Overall care judgement - ","")&$B$5,Table3_data,$K$11,0)) -> 4 | L18: 57.14285714 | O18: =IF(ISERROR(VLOOKUP($D$6&$G$7&$B$3&SUBSTITUTE($A$18,"Overall care judgement - ","")&$B$5,Table3_data,$O$11,0))=TRUE,0,VLOOKUP($D$6&$G$7&$B$3&SUBSTITUTE($A$18,"Overall care judgement - ","")&$B$5,Table3_data,$O$11,0)) -> 2 | P18: 28.57142857 | S18: =IF(ISERROR(VLOOKUP($D$6&$G$7&$B$3&SUBSTITUTE($A$18,"Overall care judgement - ","")&$B$5,Table3_data,$S$11,0))=TRUE,0,VLOOKUP($D$6&$G$7&$B$3&SUBSTITUTE($A$18,"Overall care judgement - ","")&$B$5,Table3_data,$S$11,0)) -> 0 | T18: 0
B20: Leadership and management | D20: 7 | G20: =IF(ISERROR(VLOOKUP($D$6&G7&$B$3&B20&$B$5,Table3_data,$G$11,0))=TRUE,0,VLOOKUP($D$6&G7&$B$3&B20&$B$5,Table3_data,$G$11,0)) -> 1 | H20: 14.28571429 | K20: =IF(ISERROR(VLOOKUP($D$6&$G$7&$B$3&SUBSTITUTE($B$20,"Overall care judgement - ","")&$B$5,Table3_data,$K$11,0))=TRUE,0,VLOOKUP($D$6&$G$7&$B$3&SUBSTITUTE(B20,"Overall care judgement - ","")&$B$5,Table3_data,$K$11,0)) -> 4 | L20: 57.14285714 | O20: =IF(ISERROR(VLOOKUP($D$6&$G$7&$B$3&SUBSTITUTE($B$20,"Overall care judgement - ","")&$B$5,Table3_data,$O$11,0))=TRUE,0,VLOOKUP($D$6&$G$7&$B$3&SUBSTITUTE($B$20,"Overall care judgement - ","")&$B$5,Table3_data,$O$11,0)) -> 2 | P20: 28.57142857 | S20: =IF(ISERROR(VLOOKUP($D$6&$G$7&$B$3&SUBSTITUTE($B$20,"Overall care judgement - ","")&$B$5,Table3_data,$S$11,0))=TRUE,0,VLOOKUP($D$6&$G$7&$B$3&SUBSTITUTE($B$20,"Overall care judgement - ","")&$B$5,Table3_data,$S$11,0)) -> 0 | T20: 0
D22: Local authority
G23: 7 | H23: 7 | K23: 8 | L23: 8 | O23: 9 | P23: 9 | S23: 10 | T23: 10
B24: Overall effectiveness | D24: =G24+K24+O24+S24 -> 7 | G24: =IF(ISERROR(VLOOKUP($D$6&$D$22&$B$3&SUBSTITUTE($B$24,"Overall care judgement - ","")&$B$5,Table3_data,$G$23,0))=TRUE,0,VLOOKUP($D$6&$D$22&$B$3&SUBSTITUTE($B$24,"Overall care judgement - ","")&$B$5,Table3_data,$G$23,0)) -> 1 | H24: =IF($D24=0,"",G24/$D24*100) -> 14.28571429 | K24: =IF(ISERROR(VLOOKUP($D$6&$D$22&$B$3&SUBSTITUTE($B$24,"Overall care judgement - ","")&$B$5,Table3_data,$K$23,0))=TRUE,0,VLOOKUP($D$6&$D$22&$B$3&SUBSTITUTE($B$24,"Overall care judgement - ","")&$B$5,Table3_data,$K$23,0)) -> 4 | L24: =IF($D24=0,"",K24/$D24*100) -> 57.14285714 | O24: =IF(ISERROR(VLOOKUP($D$6&$D$22&$B$3&SUBSTITUTE($B$24,"Overall care judgement - ","")&$B$5,Table3_data,$O$23,0))=TRUE,0,VLOOKUP($D$6&$D$22&$B$3&SUBSTITUTE($B$24,"Overall care judgement - ","")&$B$5,Table3_data,$O$23,0)) -> 2 | P24: =IF($D24=0,"",O24/$D24*100) -> 28.57142857 | S24: =IF(ISERROR(VLOOKUP($D$6&$D$22&$B$3&SUBSTITUTE($B$24,"Overall care judgement - ","")&$B$5,Table3_data,$S$23,0))=TRUE,0,VLOOKUP($D$6&$D$22&$B$3&SUBSTITUTE($B$24,"Overall care judgement - ","")&$B$5,Table3_data,$S$23,0)) -> 0 | T24: =IF($D24=0,"",S24/$D24*100) -> 0
B26: Outcomes for children and young people | D26: =G26+K26+O26+S26 -> 7 | G26: =IF(ISERROR(VLOOKUP($D$6&$D$22&$B$3&SUBSTITUTE($B$26,"Overall care judgement - ","")&$B$5,Table3_data,$G$23,0))=TRUE,0,VLOOKUP($D$6&$D$22&$B$3&SUBSTITUTE($B$26,"Overall care judgement - ","")&$B$5,Table3_data,$G$23,0)) -> 1 | H26: =IF($D26=0,"",G26/$D26*100) -> 14.28571429 | K26: =IF(ISERROR(VLOOKUP($D$6&$D$22&$B$3&SUBSTITUTE($B$26,"Overall care judgement - ","")&$B$5,Table3_data,$K$23,0))=TRUE,0,VLOOKUP($D$6&$D$22&$B$3&SUBSTITUTE($B$26,"Overall care judgement - ","")&$B$5,Table3_data,$K$23,0)) -> 6 | L26: =IF($D26=0,"",K26/$D26*100) -> 85.71428571 | O26: =IF(ISERROR(VLOOKUP($D$6&$D$22&$B$3&SUBSTITUTE($B$26,"Overall care judgement - ","")&$B$5,Table3_data,$O$23,0))=TRUE,0,VLOOKUP($D$6&$D$22&$B$3&SUBSTITUTE($B$26,"Overall care judgement - ","")&$B$5,Table3_data,$O$23,0)) -> 0 | P26: =IF($D26=0,"",O26/$D26*100) -> 0 | S26: =IF(ISERROR(VLOOKUP($D$6&$D$22&$B$3&SUBSTITUTE($B$26,"Overall care judgement - ","")&$B$5,Table3_data,$S$23,0))=TRUE,0,VLOOKUP($D$6&$D$22&$B$3&SUBSTITUTE($B$26,"Overall care judgement - ","")&$B$5,Table3_data,$S$23,0)) -> 0 | T26: =IF($D26=0,"",S26/$D26*100) -> 0
A28: Quality of service | B28: Quality of care | D28: 7 | G28: =IF(ISERROR(VLOOKUP($D$6&$D$22&$B$3&SUBSTITUTE($A$28,"Overall care judgement - ","")&$B$5,Table3_data,$G$23,0))=TRUE,0,VLOOKUP($D$6&$D$22&$B$3&SUBSTITUTE($A$28,"Overall care judgement - ","")&$B$5,Table3_data,$G$23,0)) -> 1 | H28: 14.28571429 | K28: =IF(ISERROR(VLOOKUP($D$6&$D$22&$B$3&SUBSTITUTE($A$28,"Overall care judgement - ","")&$B$5,Table3_data,$K$23,0))=TRUE,0,VLOOKUP($D$6&$D$22&$B$3&SUBSTITUTE($A$28,"Overall care judgement - ","")&$B$5,Table3_data,$K$23,0)) -> 4 | L28: 57.14285714 | O28: =IF(ISERROR(VLOOKUP($D$6&$D$22&$B$3&SUBSTITUTE($A$28,"Overall care judgement - ","")&$B$5,Table3_data,$O$23,0))=TRUE,0,VLOOKUP($D$6&$D$22&$B$3&SUBSTITUTE($A$28,"Overall care judgement - ","")&$B$5,Table3_data,$O$23,0)) -> 2 | P28: 28.57142857 | S28: =IF(ISERROR(VLOOKUP($D$6&$D$22&$B$3&SUBSTITUTE($A$28,"Overall care judgement - ","")&$B$5,Table3_data,$S$23,0))=TRUE,0,VLOOKUP($D$6&$D$22&$B$3&SUBSTITUTE($A$28,"Overall care judgement - ","")&$B$5,Table3_data,$S$23,0)) -> 0 | T28: 0
A30: The safety of children and young people | B30: Safeguarding children and young people | D30: 7 | G30: =IF(ISERROR(VLOOKUP($D$6&$D$22&$B$3&SUBSTITUTE($A$30,"Overall care judgement - ","")&$B$5,Table3_data,$G$23,0))=TRUE,0,VLOOKUP($D$6&$D$22&$B$3&SUBSTITUTE($A$30,"Overall care judgement - ","")&$B$5,Table3_data,$G$23,0)) -> 1 | H30: 14.28571429 | K30: =IF(ISERROR(VLOOKUP($D$6&$D$22&$B$3&SUBSTITUTE($A$30,"Overall care judgement - ","")&$B$5,Table3_data,$K$23,0))=TRUE,0,VLOOKUP($D$6&$D$22&$B$3&SUBSTITUTE($A$30,"Overall care judgement - ","")&$B$5,Table3_data,$K$23,0)) -> 4 | L30: 57.14285714 | O30: =IF(ISERROR(VLOOKUP($D$6&$D$22&$B$3&SUBSTITUTE($A$30,"Overall care judgement - ","")&$B$5,Table3_data,$O$23,0))=TRUE,0,VLOOKUP($D$6&$D$22&$B$3&SUBSTITUTE($A$30,"Overall care judgement - ","")&$B$5,Table3_data,$O$23,0)) -> 2 | P30: 28.57142857 | S30: =IF(ISERROR(VLOOKUP($D$6&$D$22&$B$3&SUBSTITUTE($A$30,"Overall care judgement - ","")&$B$5,Table3_data,$S$23,0))=TRUE,0,VLOOKUP($D$6&$D$22&$B$3&SUBSTITUTE($A$30,"Overall care judgement - ","")&$B$5,Table3_data,$S$23,0)) -> 0 | T30: 0
B32: Leadership and management | D32: 7 | G32: =IF(ISERROR(VLOOKUP($D$6&$D$22&$B$3&SUBSTITUTE($B$32,"Overall care judgement - ","")&$B$5,Table3_data,$G$23,0))=TRUE,0,VLOOKUP($D$6&$D$22&$B$3&SUBSTITUTE($B$32,"Overall care judgement - ","")&$B$5,Table3_data,$G$23,0)) -> 1 | H32: 14.28571429 | K32: =IF(ISERROR(VLOOKUP($D$6&$D$22&$B$3&SUBSTITUTE($B$32,"Overall care judgement - ","")&$B$5,Table3_data,$K$23,0))=TRUE,0,VLOOKUP($D$6&$D$22&$B$3&SUBSTITUTE($B$32,"Overall care judgement - ","")&$B$5,Table3_data,$K$23,0)) -> 4 | L32: 57.14285714 | O32: =IF(ISERROR(VLOOKUP($D$6&$D$22&$B$3&SUBSTITUTE($B$32,"Overall care judgement - ","")&$B$5,Table3_data,$O$23,0))=TRUE,0,VLOOKUP($D$6&$D$22&$B$3&SUBSTITUTE($B$32,"Overall care judgement - ","")&$B$5,Table3_data,$O$23,0)) -> 2 | P32: 28.57142857 | S32: =IF(ISERROR(VLOOKUP($D$6&$D$22&$B$3&SUBSTITUTE($B$32,"Overall care judgement - ","")&$B$5,Table3_data,$S$23,0))=TRUE,0,VLOOKUP($D$6&$D$22&$B$3&SUBSTITUTE($B$32,"Overall care judgement - ","")&$B$5,Table3_data,$S$23,0)) -> 0 | T32: 0
L33: =IF($D33<31,"",K33/$D33*100) ->  | P33: =IF($D33<31,"",O33/$D33*100) -> 
D34: Private/ voluntary
H35: 7 | L35: 8 | P35: 9 | T35: 10
B36: Overall effectiveness | D36: =G36+K36+O36+S36 -> 0 | G36: =IF(ISERROR(VLOOKUP($D$6&$D$34&$B$3&SUBSTITUTE($B$36,"Overall care judgement - ","")&$B$5,Table3_data,G35,0))=TRUE,0,VLOOKUP($D$6&$D$22&$B$3&SUBSTITUTE($B$24,"Overall care judgement - ","")&$B$5,Table3_data,G23,0)) -> 0 | H36: =IF($D36=0,"",G36/$D36*100) ->  | J36: =IF(ISERROR(VLOOKUP($D$6&$D$34&$B$3&SUBSTITUTE($B$36,"Overall care judgement - ","")&$B$5,Table3_data,J35,0))=TRUE,0,VLOOKUP($D$6&$D$22&$B$3&SUBSTITUTE($B$24,"Overall care judgement - ","")&$B$5,Table3_data,J23,0)) -> 0 | K36: =IF(ISERROR(VLOOKUP($D$6&$D$34&$B$3&SUBSTITUTE($B$36,"Overall care judgement - ","")&$B$5,Table3_data,K35,0))=TRUE,0,VLOOKUP($D$6&$D$22&$B$3&SUBSTITUTE($B$24,"Overall care judgement - ","")&$B$5,Table3_data,K23,0)) -> 0 | L36: =IF($D36=0,"",K36/$D36*100) ->  | N36: =IF(ISERROR(VLOOKUP($D$6&$D$34&$B$3&SUBSTITUTE($B$36,"Overall care judgement - ","")&$B$5,Table3_data,N35,0))=TRUE,0,VLOOKUP($D$6&$D$22&$B$3&SUBSTITUTE($B$24,"Overall care judgement - ","")&$B$5,Table3_data,N23,0)) -> 0 | O36: =IF(ISERROR(VLOOKUP($D$6&$D$34&$B$3&SUBSTITUTE($B$36,"Overall care judgement - ","")&$B$5,Table3_data,O35,0))=TRUE,0,VLOOKUP($D$6&$D$22&$B$3&SUBSTITUTE($B$24,"Overall care judgement - ","")&$B$5,Table3_data,O23,0)) -> 0 | P36: =IF($D36=0,"",O36/$D36*100) ->  | R36: =IF(ISERROR(VLOOKUP($D$6&$D$34&$B$3&SUBSTITUTE($B$36,"Overall care judgement - ","")&$B$5,Table3_data,R35,0))=TRUE,0,VLOOKUP($D$6&$D$22&$B$3&SUBSTITUTE($B$24,"Overall care judgement - ","")&$B$5,Table3_data,R23,0)) -> 0 | S36: =IF(ISERROR(VLOOKUP($D$6&$D$34&$B$3&SUBSTITUTE($B$36,"Overall care judgement - ","")&$B$5,Table3_data,S35,0))=TRUE,0,VLOOKUP($D$6&$D$22&$B$3&SUBSTITUTE($B$24,"Overall care judgement - ","")&$B$5,Table3_data,S23,0)) -> 0 | T36: =IF($D36=0,"",S36/$D36*100) -> 
B38: Outcomes for children and young people | D38: =G38+K38+O38+S38 -> 0 | G38: =IF(ISERROR(VLOOKUP($D$6&$D$34&$B$3&SUBSTITUTE($B$38,"Overall care judgement - ","")&$B$5,Table3_data,G35,0))=TRUE,0,VLOOKUP($D$6&$D$22&$B$3&SUBSTITUTE($B$24,"Overall care judgement - ","")&$B$5,Table3_data,G25,0)) -> 0 | H38: =IF($D38=0,"",G38/$D38*100) ->  | K38: =IF(ISERROR(VLOOKUP($D$6&$D$34&$B$3&SUBSTITUTE($B$38,"Overall care judgement - ","")&$B$5,Table3_data,K35,0))=TRUE,0,VLOOKUP($D$6&$D$22&$B$3&SUBSTITUTE($B$24,"Overall care judgement - ","")&$B$5,Table3_data,K25,0)) -> 0 | L38: =IF($D38=0,"",K38/$D38*100) ->  | O38: =IF(ISERROR(VLOOKUP($D$6&$D$34&$B$3&SUBSTITUTE($B$38,"Overall care judgement - ","")&$B$5,Table3_data,O35,0))=TRUE,0,VLOOKUP($D$6&$D$22&$B$3&SUBSTITUTE($B$24,"Overall care judgement - ","")&$B$5,Table3_data,O25,0)) -> 0 | P38: =IF($D38=0,"",O38/$D38*100) ->  | S38: =IF(ISERROR(VLOOKUP($D$6&$D$34&$B$3&SUBSTITUTE($B$38,"Overall care judgement - ","")&$B$5,Table3_data,S35,0))=TRUE,0,VLOOKUP($D$6&$D$22&$B$3&SUBSTITUTE($B$24,"Overall care judgement - ","")&$B$5,Table3_data,S25,0)) -> 0 | T38: =IF($D38=0,"",S38/$D38*100) -> 
B40: Quality of care | D40: 0 | G40: =IF(ISERROR(VLOOKUP($D$6&$D$34&$B$3&SUBSTITUTE($B$40,"Overall care judgement - ","")&$B$5,Table3_data,G35,0))=TRUE,0,VLOOKUP($D$6&$D$22&$B$3&SUBSTITUTE($B$24,"Overall care judgement - ","")&$B$5,Table3_data,G27,0)) -> 0 | K40: =IF(ISERROR(VLOOKUP($D$6&$D$34&$B$3&SUBSTITUTE($B$40,"Overall care judgement - ","")&$B$5,Table3_data,K35,0))=TRUE,0,VLOOKUP($D$6&$D$22&$B$3&SUBSTITUTE($B$24,"Overall care judgement - ","")&$B$5,Table3_data,K27,0)) -> 0 | O40: =IF(ISERROR(VLOOKUP($D$6&$D$34&$B$3&SUBSTITUTE($B$40,"Overall care judgement - ","")&$B$5,Table3_data,O35,0))=TRUE,0,VLOOKUP($D$6&$D$22&$B$3&SUBSTITUTE($B$24,"Overall care judgement - ","")&$B$5,Table3_data,O27,0)) -> 0 | S40: =IF(ISERROR(VLOOKUP($D$6&$D$34&$B$3&SUBSTITUTE($B$40,"Overall care judgement - ","")&$B$5,Table3_data,S35,0))=TRUE,0,VLOOKUP($D$6&$D$22&$B$3&SUBSTITUTE($B$24,"Overall care judgement - ","")&$B$5,Table3_data,S27,0)) -> 0
B42: Safeguarding children and young people | D42: 0 | G42: =IF(ISERROR(VLOOKUP($D$6&$D$34&$B$3&SUBSTITUTE($B$42,"Overall care judgement - ","")&$B$5,Table3_data,G35,0))=TRUE,0,VLOOKUP($D$6&$D$22&$B$3&SUBSTITUTE($B$24,"Overall care judgement - ","")&$B$5,Table3_data,G29,0)) -> 0 | K42: =IF(ISERROR(VLOOKUP($D$6&$D$34&$B$3&SUBSTITUTE($B$42,"Overall care judgement - ","")&$B$5,Table3_data,K35,0))=TRUE,0,VLOOKUP($D$6&$D$22&$B$3&SUBSTITUTE($B$24,"Overall care judgement - ","")&$B$5,Table3_data,K29,0)) -> 0 | O42: =IF(ISERROR(VLOOKUP($D$6&$D$34&$B$3&SUBSTITUTE($B$42,"Overall care judgement - ","")&$B$5,Table3_data,O35,0))=TRUE,0,VLOOKUP($D$6&$D$22&$B$3&SUBSTITUTE($B$24,"Overall care judgement - ","")&$B$5,Table3_data,O29,0)) -> 0 | S42: =IF(ISERROR(VLOOKUP($D$6&$D$34&$B$3&SUBSTITUTE($B$42,"Overall care judgement - ","")&$B$5,Table3_data,S35,0))=TRUE,0,VLOOKUP($D$6&$D$22&$B$3&SUBSTITUTE($B$24,"Overall care judgement - ","")&$B$5,Table3_data,S29,0)) -> 0
B44: Leadership and management | D44: 0 | G44: =IF(ISERROR(VLOOKUP($D$6&$D$34&$B$3&SUBSTITUTE($B$44,"Overall care judgement - ","")&$B$5,Table3_data,G35,0))=TRUE,0,VLOOKUP($D$6&$D$22&$B$3&SUBSTITUTE($B$24,"Overall care judgement - ","")&$B$5,Table3_data,G31,0)) -> 0 | K44: =IF(ISERROR(VLOOKUP($D$6&$D$34&$B$3&SUBSTITUTE($B$44,"Overall care judgement - ","")&$B$5,Table3_data,K35,0))=TRUE,0,VLOOKUP($D$6&$D$22&$B$3&SUBSTITUTE($B$24,"Overall care judgement - ","")&$B$5,Table3_data,K31,0)) -> 0 | O44: =IF(ISERROR(VLOOKUP($D$6&$D$34&$B$3&SUBSTITUTE($B$44,"Overall care judgement - ","")&$B$5,Table3_data,O35,0))=TRUE,0,VLOOKUP($D$6&$D$22&$B$3&SUBSTITUTE($B$24,"Overall care judgement - ","")&$B$5,Table3_data,O31,0)) -> 0 | S44: =IF(ISERROR(VLOOKUP($D$6&$D$34&$B$3&SUBSTITUTE($B$44,"Overall care judgement - ","")&$B$5,Table3_data,S35,0))=TRUE,0,VLOOKUP($D$6&$D$22&$B$3&SUBSTITUTE($B$24,"Overall care judgement - ","")&$B$5,Table3_data,S31,0)) -> 0
U46: Source: Ofsted inspections
B48: 1. The 'all' figures include all homes, of all ownership type, in the local authority area. Local authority run homes data include a small number of homes run by health authorities.
B49: 2. Percentages are rounded and may not add to exactly 100.

Sheet Table 3c
B2: =IF(ISERROR(VLOOKUP(D5,Ranges!F1:G12,2,0)), "Table 3c: Full inspection outcomes of residential special schools caring for pupils for more than 295 days per year inspected between "&D5 & " (final)"&CHAR(185)&" "&CHAR(178)&" "&CHAR(179),"Table 3c: Full inspection outcomes of residential special schools caring for pupils for more than 295 days per year inspected in "&D5 & " (final)"&CHAR(185)&" "&CHAR(178)&" "&CHAR(179)) -> Table 3c: Full inspection outcomes of residential special schools caring for pupils for more than 295 days per year inspected between 1 April 2012 - 30 June 2012 (final)¹ ² ³
B4: Residential special school (>295 days/year)
B5: Select period: | D5: 1 April 2012 - 30 June 2012
B6: =VLOOKUP(D5,Periods,2,0) -> 4
B7: Select local authority: | D7: All | T7: =IF($D$7="All", "England",$D$7) -> England
G8: all
D9: All sectors
D10: Total number inspected | G10: Outstanding | K10: Good | O10: Adequate | S10: Inadequate
G11: Number | H11: % | K11: Number | L11: % | O11: Number | P11: % | S11: Number | T11: %
G12: 7 | K12: 8 | O12: 9 | S12: 10
B13: Overall effectiveness | D13: =G13+K13+O13+S13 -> 23 | G13: =IF(ISERROR(VLOOKUP($D$7&G8&$B$4&SUBSTITUTE($B$13,"Overall care judgement - ","")&$B$6,Table3_data,G12,0))=TRUE,0,VLOOKUP($D$7&G8&$B$4&SUBSTITUTE($B$13,"Overall care judgement - ","")&$B$6,Table3_data,G12,0)) -> 2 | H13: =IF($D13=0,"",G13/$D13*100) -> 8.695652174 | K13: =IF(ISERROR(VLOOKUP($D$7&G8&$B$4&SUBSTITUTE($B$13,"Overall care judgement - ","")&$B$6,Table3_data,K12,0))=TRUE,0,VLOOKUP($D$7&G8&$B$4&SUBSTITUTE($B$13,"Overall care judgement - ","")&$B$6,Table3_data,K12,0)) -> 12 | L13: =IF($D13=0,"",K13/$D13*100) -> 52.17391304 | O13: =IF(ISERROR(VLOOKUP($D$7&G8&$B$4&SUBSTITUTE($B$13,"Overall care judgement - ","")&$B$6,Table3_data,O12,0))=TRUE,0,VLOOKUP($D$7&G8&$B$4&SUBSTITUTE($B$13,"Overall care judgement - ","")&$B$6,Table3_data,O12,0)) -> 7 | P13: =IF($D13=0,"",O13/$D13*100) -> 30.43478261 | S13: =IF(ISERROR(VLOOKUP($D$7&G8&$B$4&SUBSTITUTE($B$13,"Overall care judgement - ","")&$B$6,Table3_data,S12,0))=TRUE,0,VLOOKUP($D$7&G8&$B$4&SUBSTITUTE($B$13,"Overall care judgement - ","")&$B$6,Table3_data,S12,0)) -> 2 | T13: =IF($D13=0,"",S13/$D13*100) -> 8.695652174
B15: Outcomes for children and young people | D15: =G15+K15+O15+S15 -> 23 | G15: =IF(ISERROR(VLOOKUP($D$7&G8&$B$4&SUBSTITUTE($B$15,"Overall care judgement - ","")&$B$6,Table3_data,G12,0))=TRUE,0,VLOOKUP($D$7&G8&$B$4&SUBSTITUTE($B$15,"Overall care judgement - ","")&$B$6,Table3_data,G12,0)) -> 5 | H15: =IF($D15=0,"",G15/$D15*100) -> 21.73913043 | K15: =IF(ISERROR(VLOOKUP($D$7&G8&$B$4&SUBSTITUTE($B$15,"Overall care judgement - ","")&$B$6,Table3_data,K12,0))=TRUE,0,VLOOKUP($D$7&G8&$B$4&SUBSTITUTE($B$15,"Overall care judgement - ","")&$B$6,Table3_data,K12,0)) -> 14 | L15: =IF($D15=0,"",K15/$D15*100) -> 60.86956522 | O15: =IF(ISERROR(VLOOKUP($D$7&G8&$B$4&SUBSTITUTE($B$15,"Overall care judgement - ","")&$B$6,Table3_data,O12,0))=TRUE,0,VLOOKUP($D$7&G8&$B$4&SUBSTITUTE($B$15,"Overall care judgement - ","")&$B$6,Table3_data,O12,0)) -> 2 | P15: =IF($D15=0,"",O15/$D15*100) -> 8.695652174 | S15: =IF(ISERROR(VLOOKUP($D$7&G8&$B$4&SUBSTITUTE($B$15,"Overall care judgement - ","")&$B$6,Table3_data,S12,0))=TRUE,0,VLOOKUP($D$7&G8&$B$4&SUBSTITUTE($B$15,"Overall care judgement - ","")&$B$6,Table3_data,S12,0)) -> 2 | T15: =IF($D15=0,"",S15/$D15*100) -> 8.695652174
A17: Quality of service | B17: Quality of care | D17: =G17+K17+O17+S17 -> 23 | G17: =IF(ISERROR(VLOOKUP($D$7&$G$8&$B$4&SUBSTITUTE($A$17,"Overall care judgement - ","")&$B$6,Table3_data,G12,0))=TRUE,0,VLOOKUP($D$7&$G$8&$B$4&SUBSTITUTE($A$17,"Overall care judgement - ","")&$B$6,Table3_data,G12,0)) -> 4 | H17: 17.39130435 | K17: =IF(ISERROR(VLOOKUP($D$7&$G$8&$B$4&SUBSTITUTE($A$17,"Overall care judgement - ","")&$B$6,Table3_data,K12,0))=TRUE,0,VLOOKUP($D$7&$G$8&$B$4&SUBSTITUTE($A$17,"Overall care judgement - ","")&$B$6,Table3_data,K12,0)) -> 12 | L17: 52.17391304 | O17: =IF(ISERROR(VLOOKUP($D$7&$G$8&$B$4&SUBSTITUTE($A$17,"Overall care judgement - ","")&$B$6,Table3_data,O12,0))=TRUE,0,VLOOKUP($D$7&$G$8&$B$4&SUBSTITUTE($A$17,"Overall care judgement - ","")&$B$6,Table3_data,O12,0)) -> 5 | P17: 21.73913043 | S17: =IF(ISERROR(VLOOKUP($D$7&$G$8&$B$4&SUBSTITUTE($A$17,"Overall care judgement - ","")&$B$6,Table3_data,S12,0))=TRUE,0,VLOOKUP($D$7&$G$8&$B$4&SUBSTITUTE($A$17,"Overall care judgement - ","")&$B$6,Table3_data,S12,0)) -> 2 | T17: 8.695652174
A19: The safety of children and young people | B19: Safeguarding children and young people | D19: =G19+K19+O19+S19 -> 23 | G19: =IF(ISERROR(VLOOKUP($D$7&$G$8&$B$4&SUBSTITUTE($A$19,"Overall care judgement - ","")&$B$6,Table3_data,G12,0))=TRUE,0,VLOOKUP($D$7&$G$8&$B$4&SUBSTITUTE($A$19,"Overall care judgement - ","")&$B$6,Table3_data,G12,0)) -> 3 | H19: 13.04347826 | K19: =IF(ISERROR(VLOOKUP($D$7&$G$8&$B$4&SUBSTITUTE($A$19,"Overall care judgement - ","")&$B$6,Table3_data,K12,0))=TRUE,0,VLOOKUP($D$7&$G$8&$B$4&SUBSTITUTE($A$19,"Overall care judgement - ","")&$B$6,Table3_data,K12,0)) -> 12 | L19: 52.17391304 | O19: =IF(ISERROR(VLOOKUP($D$7&$G$8&$B$4&SUBSTITUTE($A$19,"Overall care judgement - ","")&$B$6,Table3_data,O12,0))=TRUE,0,VLOOKUP($D$7&$G$8&$B$4&SUBSTITUTE($A$19,"Overall care judgement - ","")&$B$6,Table3_data,O12,0)) -> 6 | P19: 26.08695652 | S19: =IF(ISERROR(VLOOKUP($D$7&$G$8&$B$4&SUBSTITUTE($A$19,"Overall care judgement - ","")&$B$6,Table3_data,S12,0))=TRUE,0,VLOOKUP($D$7&$G$8&$B$4&SUBSTITUTE($A$19,"Overall care judgement - ","")&$B$6,Table3_data,S12,0)) -> 2 | T19: 8.695652174
B21: Leadership and management | D21: =G21+K21+O21+S21 -> 23 | G21: =IF(ISERROR(VLOOKUP($D$7&$G$8&$B$4&SUBSTITUTE($B$21,"Overall care judgement - ","")&$B$6,Table3_data,G12,0))=TRUE,0,VLOOKUP($D$7&$G$8&$B$4&SUBSTITUTE($B$21,"Overall care judgement - ","")&$B$6,Table3_data,G12,0)) -> 2 | H21: 8.695652174 | K21: =IF(ISERROR(VLOOKUP($D$7&$G$8&$B$4&SUBSTITUTE($B$21,"Overall care judgement - ","")&$B$6,Table3_data,K12,0))=TRUE,0,VLOOKUP($D$7&$G$8&$B$4&SUBSTITUTE($B$21,"Overall care judgement - ","")&$B$6,Table3_data,K12,0)) -> 12 | L21: 52.17391304 | O21: =IF(ISERROR(VLOOKUP($D$7&$G$8&$B$4&SUBSTITUTE($B$21,"Overall care judgement - ","")&$B$6,Table3_data,O12,0))=TRUE,0,VLOOKUP($D$7&$G$8&$B$4&SUBSTITUTE($B$21,"Overall care judgement - ","")&$B$6,Table3_data,O12,0)) -> 7 | P21: 30.43478261 | S21: =IF(ISERROR(VLOOKUP($D$7&$G$8&$B$4&SUBSTITUTE($B$21,"Overall care judgement - ","")&$B$6,Table3_data,S12,0))=TRUE,0,VLOOKUP($D$7&$G$8&$B$4&SUBSTITUTE($B$21,"Overall care judgement - ","")&$B$6,Table3_data,S12,0)) -> 2 | T21: 8.695652174
D23: Local authority
G24: 7 | K24: 8 | O24: 9 | S24: 10
B25: Overall effectiveness | D25: =G25+K25+O25+S25 -> 1 | G25: =IF(ISERROR(VLOOKUP($D$7&D23&$B$4&SUBSTITUTE($B$25,"Overall care judgement - ","")&$B$6,Table3_data,G24,0))=TRUE,0,VLOOKUP($D$7&D23&$B$4&SUBSTITUTE($B$25,"Overall care judgement - ","")&$B$6,Table3_data,G24,0)) -> 0 | H25: =IF($D25=0,"",G25/$D25*100) -> 0 | K25: =IF(ISERROR(VLOOKUP($D$7&D23&$B$4&SUBSTITUTE($B$25,"Overall care judgement - ","")&$B$6,Table3_data,K24,0))=TRUE,0,VLOOKUP($D$7&D23&$B$4&SUBSTITUTE($B$25,"Overall care judgement - ","")&$B$6,Table3_data,K24,0)) -> 1 | L25: =IF($D25=0,"",K25/$D25*100) -> 100 | O25: =IF(ISERROR(VLOOKUP($D$7&L23&$B$4&SUBSTITUTE($B$25,"Overall care judgement - ","")&$B$6,Table3_data,O24,0))=TRUE,0,VLOOKUP($D$7&L23&$B$4&SUBSTITUTE($B$25,"Overall care judgement - ","")&$B$6,Table3_data,O24,0)) -> 0 | P25: =IF($D25=0,"",O25/$D25*100) -> 0 | R25: =IF(ISERROR(VLOOKUP($D$7&O23&$B$4&SUBSTITUTE($B$25,"Overall care judgement - ","")&$B$6,Table3_data,R24,0))=TRUE,0,VLOOKUP($D$7&O23&$B$4&SUBSTITUTE($B$25,"Overall care judgement - ","")&$B$6,Table3_data,R24,0)) -> 0 | S25: =IF(ISERROR(VLOOKUP($D$7&P23&$B$4&SUBSTITUTE($B$25,"Overall care judgement - ","")&$B$6,Table3_data,S24,0))=TRUE,0,VLOOKUP($D$7&P23&$B$4&SUBSTITUTE($B$25,"Overall care judgement - ","")&$B$6,Table3_data,S24,0)) -> 0 | T25: =IF($D25=0,"",S25/$D25*100) -> 0
B27: Outcomes for children and young people | D27: =G27+K27+O27+S27 -> 1 | G27: =IF(ISERROR(VLOOKUP($D$7&D23&$B$4&SUBSTITUTE($B$27,"Overall care judgement - ","")&$B$6,Table3_data,G24,0))=TRUE,0,VLOOKUP($D$7&D23&$B$4&SUBSTITUTE($B$27,"Overall care judgement - ","")&$B$6,Table3_data,G24,0)) -> 0 | H27: =IF($D27=0,"",G27/$D27*100) -> 0 | K27: =IF(ISERROR(VLOOKUP($D$7&D23&$B$4&SUBSTITUTE($B$27,"Overall care judgement - ","")&$B$6,Table3_data,K24,0))=TRUE,0,VLOOKUP($D$7&D23&$B$4&SUBSTITUTE($B$27,"Overall care judgement - ","")&$B$6,Table3_data,K24,0)) -> 1 | L27: =IF($D27=0,"",K27/$D27*100) -> 100 | O27: =IF(ISERROR(VLOOKUP($D$7&L23&$B$4&SUBSTITUTE($B$27,"Overall care judgement - ","")&$B$6,Table3_data,O24,0))=TRUE,0,VLOOKUP($D$7&L23&$B$4&SUBSTITUTE($B$27,"Overall care judgement - ","")&$B$6,Table3_data,O24,0)) -> 0 | P27: =IF($D27=0,"",O27/$D27*100) -> 0 | S27: =IF(ISERROR(VLOOKUP($D$7&P23&$B$4&SUBSTITUTE($B$27,"Overall care judgement - ","")&$B$6,Table3_data,S24,0))=TRUE,0,VLOOKUP($D$7&P23&$B$4&SUBSTITUTE($B$27,"Overall care judgement - ","")&$B$6,Table3_data,S24,0)) -> 0 | T27: =IF($D27=0,"",S27/$D27*100) -> 0
A29: Quality of service | B29: Quality of care | D29: =G29+K29+O29+S29 -> 1 | G29: =IF(ISERROR(VLOOKUP($D$7&D23&$B$4&SUBSTITUTE($A$29,"Overall care judgement - ","")&$B$6,Table3_data,G24,0))=TRUE,0,VLOOKUP($D$7&D23&$B$4&SUBSTITUTE($A$29,"Overall care judgement - ","")&$B$6,Table3_data,G24,0)) -> 0 | H29: 0 | K29: =IF(ISERROR(VLOOKUP($D$7&D23&$B$4&SUBSTITUTE($A$29,"Overall care judgement - ","")&$B$6,Table3_data,K24,0))=TRUE,0,VLOOKUP($D$7&D23&$B$4&SUBSTITUTE($A$29,"Overall care judgement - ","")&$B$6,Table3_data,K24,0)) -> 1 | L29: 100 | O29: =IF(ISERROR(VLOOKUP($D$7&O24&$B$4&SUBSTITUTE($A$29,"Overall care judgement - ","")&$B$6,Table3_data,O24,0))=TRUE,0,VLOOKUP($D$7&O24&$B$4&SUBSTITUTE($A$29,"Overall care judgement - ","")&$B$6,Table3_data,O24,0)) -> 0 | P29: 0 | S29: =IF(ISERROR(VLOOKUP($D$7&P23&$B$4&SUBSTITUTE($B$29,"Overall care judgement - ","")&$B$6,Table3_data,S24,0))=TRUE,0,VLOOKUP($D$7&P23&$B$4&SUBSTITUTE($B$29,"Overall care judgement - ","")&$B$6,Table3_data,S24,0)) -> 0 | T29: 0
A31: The safety of children and young people | B31: Safeguarding children and young people | D31: =G31+K31+O31+S31 -> 1 | G31: =IF(ISERROR(VLOOKUP($D$7&$D$23&$B$4&SUBSTITUTE($A$31,"Overall care judgement - ","")&$B$6,Table3_data,G24,0))=TRUE,0,VLOOKUP($D$7&$D$23&$B$4&SUBSTITUTE($A$31,"Overall care judgement - ","")&$B$6,Table3_data,G24,0)) -> 0 | H31: 0 | K31: =IF(ISERROR(VLOOKUP($D$7&$D$23&$B$4&SUBSTITUTE($A$31,"Overall care judgement - ","")&$B$6,Table3_data,K24,0))=TRUE,0,VLOOKUP($D$7&$D$23&$B$4&SUBSTITUTE($A$31,"Overall care judgement - ","")&$B$6,Table3_data,K24,0)) -> 1 | L31: 100 | O31: =IF(ISERROR(VLOOKUP($D$7&$D$23&$B$4&SUBSTITUTE($A$31,"Overall care judgement - ","")&$B$6,Table3_data,O24,0))=TRUE,0,VLOOKUP($D$7&$D$23&$B$4&SUBSTITUTE($A$31,"Overall care judgement - ","")&$B$6,Table3_data,O24,0)) -> 0 | P31: 0 | S31: =IF(ISERROR(VLOOKUP($D$7&$D$23&$B$4&SUBSTITUTE($A$31,"Overall care judgement - ","")&$B$6,Table3_data,S24,0))=TRUE,0,VLOOKUP($D$7&$D$23&$B$4&SUBSTITUTE($A$31,"Overall care judgement - ","")&$B$6,Table3_data,S24,0)) -> 0 | T31: 0
B33: Leadership and management | D33: =G33+K33+O33+S33 -> 1 | G33: =IF(ISERROR(VLOOKUP($D$7&$D$23&$B$4&SUBSTITUTE($B$33,"Overall care judgement - ","")&$B$6,Table3_data,G24,0))=TRUE,0,VLOOKUP($D$7&$D$23&$B$4&SUBSTITUTE($B$33,"Overall care judgement - ","")&$B$6,Table3_data,G24,0)) -> 0 | H33: 0 | K33: =IF(ISERROR(VLOOKUP($D$7&$D$23&$B$4&SUBSTITUTE($B$33,"Overall care judgement - ","")&$B$6,Table3_data,K24,0))=TRUE,0,VLOOKUP($D$7&$D$23&$B$4&SUBSTITUTE($B$33,"Overall care judgement - ","")&$B$6,Table3_data,K24,0)) -> 1 | L33: 100 | O33: =IF(ISERROR(VLOOKUP($D$7&$D$23&$B$4&SUBSTITUTE($B$33,"Overall care judgement - ","")&$B$6,Table3_data,O24,0))=TRUE,0,VLOOKUP($D$7&$D$23&$B$4&SUBSTITUTE($B$33,"Overall care judgement - ","")&$B$6,Table3_data,O24,0)) -> 0 | P33: 0 | S33: =IF(ISERROR(VLOOKUP($D$7&$D$23&$B$4&SUBSTITUTE($B$33,"Overall care judgement - ","")&$B$6,Table3_data,S24,0))=TRUE,0,VLOOKUP($D$7&$D$23&$B$4&SUBSTITUTE($B$33,"Overall care judgement - ","")&$B$6,Table3_data,S24,0)) -> 0 | T33: 0
D36: Private/ voluntary
G37: 7 | K37: 8 | O37: 9 | S37: 10
B38: Overall effectiveness | D38: =G38+K38+O38+S38 -> 22 | G38: =IF(ISERROR(VLOOKUP($D$7&$D$36&$B$4&SUBSTITUTE($B$38,"Overall care judgement - ","")&$B$6,Table3_data,G37,0))=TRUE,0,VLOOKUP($D$7&$D$36&$B$4&SUBSTITUTE($B$38,"Overall care judgement - ","")&$B$6,Table3_data,G37,0)) -> 2 | H38: =IF($D38=0,"",G38/$D38*100) -> 9.090909091 | K38: =IF(ISERROR(VLOOKUP($D$7&$D$36&$B$4&SUBSTITUTE($B$38,"Overall care judgement - ","")&$B$6,Table3_data,K37,0))=TRUE,0,VLOOKUP($D$7&$D$36&$B$4&SUBSTITUTE($B$38,"Overall care judgement - ","")&$B$6,Table3_data,K37,0)) -> 11 | L38: =IF($D38=0,"",K38/$D38*100) -> 50 | O38: =IF(ISERROR(VLOOKUP($D$7&$D$36&$B$4&SUBSTITUTE($B$38,"Overall care judgement - ","")&$B$6,Table3_data,O37,0))=TRUE,0,VLOOKUP($D$7&$D$36&$B$4&SUBSTITUTE($B$38,"Overall care judgement - ","")&$B$6,Table3_data,O37,0)) -> 7 | P38: =IF($D38=0,"",O38/$D38*100) -> 31.81818182 | S38: =IF(ISERROR(VLOOKUP($D$7&$D$36&$B$4&SUBSTITUTE($B$38,"Overall care judgement - ","")&$B$6,Table3_data,S37,0))=TRUE,0,VLOOKUP($D$7&$D$36&$B$4&SUBSTITUTE($B$38,"Overall care judgement - ","")&$B$6,Table3_data,S37,0)) -> 2 | T38: =IF($D38=0,"",S38/$D38*100) -> 9.090909091
B40: Outcomes for children and young people | D40: =G40+K40+O40+S40 -> 22 | G40: =IF(ISERROR(VLOOKUP($D$7&$D$36&$B$4&SUBSTITUTE($B$40,"Overall care judgement - ","")&$B$6,Table3_data,G37,0))=TRUE,0,VLOOKUP($D$7&$D$36&$B$4&SUBSTITUTE($B$40,"Overall care judgement - ","")&$B$6,Table3_data,G37,0)) -> 5 | H40: =IF($D40=0,"",G40/$D40*100) -> 22.72727273 | K40: =IF(ISERROR(VLOOKUP($D$7&$D$36&$B$4&SUBSTITUTE($B$40,"Overall care judgement - ","")&$B$6,Table3_data,K37,0))=TRUE,0,VLOOKUP($D$7&$D$36&$B$4&SUBSTITUTE($B$40,"Overall care judgement - ","")&$B$6,Table3_data,K37,0)) -> 13 | L40: =IF($D40=0,"",K40/$D40*100) -> 59.09090909 | O40: =IF(ISERROR(VLOOKUP($D$7&$D$36&$B$4&SUBSTITUTE($B$40,"Overall care judgement - ","")&$B$6,Table3_data,O37,0))=TRUE,0,VLOOKUP($D$7&$D$36&$B$4&SUBSTITUTE($B$40,"Overall care judgement - ","")&$B$6,Table3_data,O37,0)) -> 2 | P40: =IF($D40=0,"",O40/$D40*100) -> 9.090909091 | S40: =IF(ISERROR(VLOOKUP($D$7&$D$36&$B$4&SUBSTITUTE($B$40,"Overall care judgement - ","")&$B$6,Table3_data,S37,0))=TRUE,0,VLOOKUP($D$7&$D$36&$B$4&SUBSTITUTE($B$40,"Overall care judgement - ","")&$B$6,Table3_data,S37,0)) -> 2 | T40: =IF($D40=0,"",S40/$D40*100) -> 9.090909091
A42: quality of service | B42: Quality of care | D42: 22 | G42: =IF(ISERROR(VLOOKUP($D$7&$D$36&$B$4&SUBSTITUTE($A$42,"Overall care judgement - ","")&$B$6,Table3_data,G37,0))=TRUE,0,VLOOKUP($D$7&$D$36&$B$4&SUBSTITUTE($A$42,"Overall care judgement - ","")&$B$6,Table3_data,G37,0)) -> 4 | H42: 18.18181818 | K42: =IF(ISERROR(VLOOKUP($D$7&$D$36&$B$4&SUBSTITUTE($A$42,"Overall care judgement - ","")&$B$6,Table3_data,K37,0))=TRUE,0,VLOOKUP($D$7&$D$36&$B$4&SUBSTITUTE($A$42,"Overall care judgement - ","")&$B$6,Table3_data,K37,0)) -> 11 | L42: 50 | O42: =IF(ISERROR(VLOOKUP($D$7&$D$36&$B$4&SUBSTITUTE($A$42,"Overall care judgement - ","")&$B$6,Table3_data,O37,0))=TRUE,0,VLOOKUP($D$7&$D$36&$B$4&SUBSTITUTE($A$42,"Overall care judgement - ","")&$B$6,Table3_data,O37,0)) -> 5 | P42: 22.72727273 | S42: =IF(ISERROR(VLOOKUP($D$7&$D$36&$B$4&SUBSTITUTE($A$42,"Overall care judgement - ","")&$B$6,Table3_data,S37,0))=TRUE,0,VLOOKUP($D$7&$D$36&$B$4&SUBSTITUTE($A$42,"Overall care judgement - ","")&$B$6,Table3_data,S37,0)) -> 2 | T42: 9.090909091
A44: The safety of children and young people | B44: Safeguarding children and young people | D44: 22 | G44: =IF(ISERROR(VLOOKUP($D$7&$D$36&$B$4&SUBSTITUTE($A$44,"Overall care judgement - ","")&$B$6,Table3_data,G37,0))=TRUE,0,VLOOKUP($D$7&$D$36&$B$4&SUBSTITUTE($A$44,"Overall care judgement - ","")&$B$6,Table3_data,G37,0)) -> 3 | H44: 13.63636364 | K44: =IF(ISERROR(VLOOKUP($D$7&$D$36&$B$4&SUBSTITUTE($A$44,"Overall care judgement - ","")&$B$6,Table3_data,K37,0))=TRUE,0,VLOOKUP($D$7&$D$36&$B$4&SUBSTITUTE($A$44,"Overall care judgement - ","")&$B$6,Table3_data,K37,0)) -> 11 | L44: 50 | O44: =IF(ISERROR(VLOOKUP($D$7&$D$36&$B$4&SUBSTITUTE($A$44,"Overall care judgement - ","")&$B$6,Table3_data,O37,0))=TRUE,0,VLOOKUP($D$7&$D$36&$B$4&SUBSTITUTE($A$44,"Overall care judgement - ","")&$B$6,Table3_data,O37,0)) -> 6 | P44: 27.27272727 | S44: =IF(ISERROR(VLOOKUP($D$7&$D$36&$B$4&SUBSTITUTE($A$44,"Overall care judgement - ","")&$B$6,Table3_data,S37,0))=TRUE,0,VLOOKUP($D$7&$D$36&$B$4&SUBSTITUTE($A$44,"Overall care judgement - ","")&$B$6,Table3_data,S37,0)) -> 2 | T44: 9.090909091
B46: Leadership and management | D46: 22 | G46: =IF(ISERROR(VLOOKUP($D$7&$D$36&$B$4&SUBSTITUTE($B$46,"Overall care judgement - ","")&$B$6,Table3_data,G37,0))=TRUE,0,VLOOKUP($D$7&$D$36&$B$4&SUBSTITUTE($B$46,"Overall care judgement - ","")&$B$6,Table3_data,G37,0)) -> 2 | H46: 9.090909091 | K46: =IF(ISERROR(VLOOKUP($D$7&$D$36&$B$4&SUBSTITUTE($B$46,"Overall care judgement - ","")&$B$6,Table3_data,K37,0))=TRUE,0,VLOOKUP($D$7&$D$36&$B$4&SUBSTITUTE($B$46,"Overall care judgement - ","")&$B$6,Table3_data,K37,0)) -> 11 | L46: 50 | O46: =IF(ISERROR(VLOOKUP($D$7&$D$36&$B$4&SUBSTITUTE($B$46,"Overall care judgement - ","")&$B$6,Table3_data,O37,0))=TRUE,0,VLOOKUP($D$7&$D$36&$B$4&SUBSTITUTE($B$46,"Overall care judgement - ","")&$B$6,Table3_data,O37,0)) -> 7 | P46: 31.81818182 | S46: =IF(ISERROR(VLOOKUP($D$7&$D$36&$B$4&SUBSTITUTE($B$46,"Overall care judgement - ","")&$B$6,Table3_data,S37,0))=TRUE,0,VLOOKUP($D$7&$D$36&$B$4&SUBSTITUTE($B$46,"Overall care judgement - ","")&$B$6,Table3_data,S37,0)) -> 2 | T46: 9.090909091
T48: Source: Ofsted inspections
B50: 1. The 'all' figures include all homes, of all ownership type, in the local authority area. Local authority run homes data include a small number of homes run by health authorities.
B51: 2. Percentages are rounded and may not add to exactly 100.
B52: 2. Residential special schools that care for pupils for more than 295 days per year must register as children's homes.

Sheet Table 3d
A1: =B2 -> Table 3d: Interim inspection outcomes of children's homes inspected between 1 April 2012 - 30 June 2012 (final)¹ ² ³
B2: =IF(ISERROR(VLOOKUP(D5,Ranges!F1:G12,2,0)),"Table 3d: Interim inspection outcomes of children's homes inspected between "&D5&" (final)"&CHAR(185)&" "&CHAR(178)&" "&CHAR(179),"Table 3d: Interim inspection outcomes of children's homes inspected in "&D5&" (final)"&CHAR(185)&" "&CHAR(178)&" "&CHAR(179)) -> Table 3d: Interim inspection outcomes of children's homes inspected between 1 April 2012 - 30 June 2012 (final)¹ ² ³
B5: Select period: | D5: 1 April 2012 - 30 June 2012 | R5: =IF($D$5=Ranges!C1,"4",IF($D$5 = Ranges!C2, "1", IF($D$5 = Ranges!C3, "2", IF($D$5 = Ranges!C4, "3","Error")))) -> Error
B6: =VLOOKUP(D5,Periods,2,0) -> 4
B7: Select local authority: | D7: All | N7: =IF($D$7="All", "England",$D$7) -> England | R7: =IF($D$7="All", "England",$D$7) -> England
D9: All
D10: Total number inspected | F10: Good progress | J10: Satisfactory progress | N10: Inadequate progress | R10: Not judged4
F11: Number | G11: % | J11: Number | K11: % | N11: Number | O11: % | R11: Number | S11: %
B13: Children's home | D13: =SUM(D15,D17,D19) -> 47 | F13: =F15+F17+F19 -> 12 | G13: =IF($D13=0,"",F13/$D13*100) -> 25.53191489 | J13: =J15+J17+J19 -> 29 | K13: =IF($D13=0,"",J13/$D13*100) -> 61.70212766 | N13: =N15+N17+N19 -> 3 | O13: =IF($D13=0,"",N13/$D13*100) -> 6.382978723 | R13: =R15+R17+R19 -> 3 | S13: =IF($D13=0,"",R13/$D13*100) -> 6.382978723
A15: Children's home | B15: Children's home | D15: =F15+J15+N15+R15 -> 44 | F15: =IF(ISERROR(VLOOKUP($D$7&D9&$A15&$B$6,Table3d_data,6,FALSE))=TRUE,0,VLOOKUP($D$7&D9&$A15&$B$6,Table3d_data,6,FALSE)) -> 11 | G15: =IF($D15=0,"",F15/$D15*100) -> 25 | J15: =IF(ISERROR(VLOOKUP($D$7&D9&$A15&$B$6,Table3d_data,7,FALSE))=TRUE,0,VLOOKUP($D$7&D9&$A15&$B$6,Table3d_data,7,FALSE)) -> 27 | K15: =IF($D15=0,"",J15/$D15*100) -> 61.36363636 | N15: =IF(ISERROR(VLOOKUP($D$7&D9&$A15&$B$6,Table3d_data,8,FALSE))=TRUE,0,VLOOKUP($D$7&D9&$A15&$B$6,Table3d_data,8,FALSE)) -> 3 | O15: =IF($D15=0,"",N15/$D15*100) -> 6.818181818 | R15: =IF(ISERROR(VLOOKUP($D$7&D9&$A15&$B$6,Table3d_data,9,FALSE))=TRUE,0,VLOOKUP($D$7&D9&$A15&$B$6,Table3d_data,9,FALSE)) -> 3 | S15: =IF($D15=0,"",R15/$D15*100) -> 6.818181818
A17: Secure children's home | B17: Secure children's home | D17: =F17+J17+N17+R17 -> 1 | F17: =IF(ISERROR(VLOOKUP($D$7&D9&$A17&$B$6,Table3d_data,6,FALSE))=TRUE,0,VLOOKUP($D$7&D9&$A17&$B$6,Table3d_data,6,FALSE)) -> 0 | G17: =IF($D17=0,"",F17/$D17*100) -> 0 | J17: =IF(ISERROR(VLOOKUP($D$7&D9&$A17&$B$6,Table3d_data,7,FALSE))=TRUE,0,VLOOKUP($D$7&D9&$A17&$B$6,Table3d_data,7,FALSE)) -> 1 | K17: =IF($D17=0,"",J17/$D17*100) -> 100 | N17: =IF(ISERROR(VLOOKUP($D$7&$D$9&$A17&$B$6,Table3d_data,8,FALSE))=TRUE,0,VLOOKUP($D$7&$D$9&$A17&$B$6,Table3d_data,8,FALSE)) -> 0 | O17: =IF($D17=0,"",N17/$D17*100) -> 0 | R17: =IF(ISERROR(VLOOKUP($D$7&D9&$A17&$B$6,Table3d_data,9,FALSE))=TRUE,0,VLOOKUP($D$7&D9&$A17&$B$6,Table3d_data,9,FALSE)) -> 0 | S17: =IF($D17=0,"",R17/$D17*100) -> 0
A19: Residential special school (>295 days/year) | B19: Residential special school5 | D19: =F19+J19+N19+R19 -> 2 | F19: =IF(ISERROR(VLOOKUP($D$7&D9&$A19&$B$6,Table3d_data,6,FALSE))=TRUE,0,VLOOKUP($D$7&D9&$A19&$B$6,Table3d_data,6,FALSE)) -> 1 | G19: =IF($D19=0,"",F19/$D19*100) -> 50 | J19: =IF(ISERROR(VLOOKUP($D$7&D9&$A19&$B$6,Table3d_data,7,FALSE))=TRUE,0,VLOOKUP($D$7&D9&$A19&$B$6,Table3d_data,7,FALSE)) -> 1 | K19: =IF($D19=0,"",J19/$D19*100) -> 50 | N19: =IF(ISERROR(VLOOKUP($D$7&$D$9&$A19&$B$6,Table3d_data,8,FALSE))=TRUE,0,VLOOKUP($D$7&$D$9&$A19&$B$6,Table3d_data,8,FALSE)) -> 0 | O19: =IF($D19=0,"",N19/$D19*100) -> 0 | R19: =IF(ISERROR(VLOOKUP($D$7&D9&$A19&$B$6,Table3d_data,9,FALSE))=TRUE,0,VLOOKUP($D$7&D9&$A19&$B$6,Table3d_data,9,FALSE)) -> 0 | S19: =IF($D19=0,"",R19/$D19*100) -> 0
D21: Local authority
B23: Children's home | D23: =D25+D27+D29 -> 1 | F23: =F25+F27+F29 -> 0 | G23: =IF($D23=0,"",F23/$D23*100) -> 0 | J23: =J25+J27+J29 -> 1 | K23: =IF($D23=0,"",J23/$D23*100) -> 100 | N23: =N25+N27+N29 -> 0 | O23: =IF($D23=0,"",N23/$D23*100) -> 0 | R23: =R25+R27+R29 -> 0 | S23: =IF($D23=0,"",R23/$D23*100) -> 0
A25: Children's home | B25: Children's home | D25: =F25+J25+N25+R25 -> 1 | F25: =IF(ISERROR(VLOOKUP($D$7&$B$21&A25&$B$6,Table3d_data,6,FALSE))=TRUE,0,VLOOKUP($D$7&$D$21&A25&$B$6,Table3d_data,6,FALSE)) -> 0 | G25: =IF($D25=0,"",F25/$D25*100) -> 0 | J25: =IF(ISERROR(VLOOKUP($D$7&$D$21&A25&$B$6,Table3d_data,7,FALSE))=TRUE,0,VLOOKUP($D$7&$D$21&A25&$B$6,Table3d_data,7,FALSE)) -> 1 | K25: =IF($D25=0,"",J25/$D25*100) -> 100 | N25: =IF(ISERROR(VLOOKUP($D$7&$D$21&A25&$B$6,Table3d_data,8,FALSE))=TRUE,0,VLOOKUP($D$7&$D$21&A25&$B$6,Table3d_data,8,FALSE)) -> 0 | O25: =IF($D25=0,"",N25/$D25*100) -> 0 | R25: =IF(ISERROR(VLOOKUP($D$7&$D$21&A25&$B$6,Table3d_data,9,FALSE))=TRUE,0,VLOOKUP($D$7&$D$21&A25&$B$6,Table3d_data,9,FALSE)) -> 0 | S25: =IF($D25=0,"",R25/$D25*100) -> 0
A27: Secure children's home | B27: Secure children's home | D27: =F27+J27+N27+R27 -> 0 | F27: =IF(ISERROR(VLOOKUP($D$7&$D$21&A27&$B$6,Table3d_data,6,FALSE))=TRUE,0,VLOOKUP($D$7&$D$21&A27&$B$6,Table3d_data,6,FALSE)) -> 0 | G27: =IF($D27=0,"",F27/$D27*100) ->  | J27: =IF(ISERROR(VLOOKUP($D$7&$D$21&A27&$B$6,Table3d_data,7,FALSE))=TRUE,0,VLOOKUP($D$7&$D$21&A27&$B$6,Table3d_data,7,FALSE)) -> 0 | K27: =IF($D27=0,"",J27/$D27*100) ->  | N27: =IF(ISERROR(VLOOKUP($D$7&$A17&$B$6,Table3d_data,8,FALSE))=TRUE,0,VLOOKUP($D$7&$B17&$B$6,Table3d_data,8,FALSE)) -> 0 | O27: =IF($D27=0,"",N27/$D27*100) ->  | R27: =IF(ISERROR(VLOOKUP($D$7&$D$21&A27&$B$6,Table3d_data,9,FALSE))=TRUE,0,VLOOKUP($D$7&$D$21&A27&$B$6,Table3d_data,9,FALSE)) -> 0 | S27: =IF($D27=0,"",R27/$D27*100) -> 
A29: Residential special school (>295 days/year) | B29: Residential special school5 | D29: =F29+J29+N29+R29 -> 0 | F29: =IF(ISERROR(VLOOKUP($D$7&$D$21&A29&$B$6,Table3d_data,6,FALSE))=TRUE,0,VLOOKUP($D$7&$D$21&A29&$B$6,Table3d_data,6,FALSE)) -> 0 | G29: =IF($D29=0,"",F29/$D29*100) ->  | J29: =IF(ISERROR(VLOOKUP($D$7&$D$21&A29&$B$6,Table3d_data,7,FALSE))=TRUE,0,VLOOKUP($D$7&$D$21&A29&$B$6,Table3d_data,7,FALSE)) -> 0 | K29: =IF($D29=0,"",J29/$D29*100) ->  | N29: =IF(ISERROR(VLOOKUP($D$7&$A19&$B$6,Table3d_data,8,FALSE))=TRUE,0,VLOOKUP($D$7&$A19&$B$6,Table3d_data,8,FALSE)) -> 0 | O29: =IF($D29=0,"",N29/$D29*100) ->  | R29: =IF(ISERROR(VLOOKUP($D$7&$D$21&A29&$B$6,Table3d_data,9,FALSE))=TRUE,0,VLOOKUP($D$7&$D$21&A29&$B$6,Table3d_data,9,FALSE)) -> 0 | S29: =IF($D29=0,"",R29/$D29*100) -> 
D31: Private/ voluntary
B33: Children's home | D33: =D35+D37+D39 -> 46 | F33: =F35+F37+F39 -> 12 | G33: =IF($D33=0,"",F33/$D33*100) -> 26.08695652 | J33: =J35+J37+J39 -> 28 | K33: =IF($D33=0,"",J33/$D33*100) -> 60.86956522 | N33: =N35+N37+N39 -> 3 | O33: =IF($D33=0,"",N33/$D33*100) -> 6.52173913 | R33: =R35+R37+R39 -> 3 | S33: =IF($D33=0,"",R33/$D33*100) -> 6.52173913
A35: Children's home | B35: Children's home | D35: =F35+J35+N35+R35 -> 43 | F35: =IF(ISERROR(VLOOKUP($D$7&$D$31&A35&$B$6,Table3d_data,6,FALSE))=TRUE,0,VLOOKUP($D$7&$D$31&A35&$B$6,Table3d_data,6,FALSE)) -> 11 | G35: =IF($D35=0,"",F35/$D35*100) -> 25.58139535 | J35: =IF(ISERROR(VLOOKUP($D$7&$D$31&A35&$B$6,Table3d_data,7,FALSE))=TRUE,0,VLOOKUP($D$7&$D$31&A35&$B$6,Table3d_data,7,FALSE)) -> 26 | K35: =IF($D35=0,"",J35/$D35*100) -> 60.46511628 | N35: =IF(ISERROR(VLOOKUP($D$7&$D$31&A35&$B$6,Table3d_data,8,FALSE))=TRUE,0,VLOOKUP($D$7&$D$31&A35&$B$6,Table3d_data,8,FALSE)) -> 3 | O35: =IF($D35=0,"",N35/$D35*100) -> 6.976744186 | R35: =IF(ISERROR(VLOOKUP($D$7&$D$31&A35&$B$6,Table3d_data,9,FALSE))=TRUE,0,VLOOKUP($D$7&$D$31&A35&$B$6,Table3d_data,9,FALSE)) -> 3 | S35: =IF($D35=0,"",R35/$D35*100) -> 6.976744186
A37: Secure children's home | B37: Secure children's home | D37: =F37+J37+N37+R37 -> 1 | F37: =IF(ISERROR(VLOOKUP($D$7&$D$31&A37&$B$6,Table3d_data,6,FALSE))=TRUE,0,VLOOKUP($D$7&$D$31&A37&$B$6,Table3d_data,6,FALSE)) -> 0 | G37: =IF($D37=0,"",F37/$D37*100) -> 0 | J37: =IF(ISERROR(VLOOKUP($D$7&$D$31&A37&$B$6,Table3d_data,7,FALSE))=TRUE,0,VLOOKUP($D$7&$D$31&A37&$B$6,Table3d_data,7,FALSE)) -> 1 | K37: =IF($D37=0,"",J37/$D37*100) -> 100 | N37: =IF(ISERROR(VLOOKUP($D$7&$D$31&A37&$B$6,Table3d_data,8,FALSE))=TRUE,0,VLOOKUP($D$7&$D$31&A37&$B$6,Table3d_data,8,FALSE)) -> 0 | O37: =IF($D37=0,"",N37/$D37*100) -> 0 | R37: =IF(ISERROR(VLOOKUP($D$7&$D$31&A37&$B$6,Table3d_data,9,FALSE))=TRUE,0,VLOOKUP($D$7&$D$31&A37&$B$6,Table3d_data,9,FALSE)) -> 0 | S37: =IF($D37=0,"",R37/$D37*100) -> 0
A39: Residential special school (>295 days/year) | B39: Residential special school5 | D39: =F39+J39+N39+R39 -> 2 | F39: =IF(ISERROR(VLOOKUP($D$7&$D$31&A39&$B$6,Table3d_data,6,FALSE))=TRUE,0,VLOOKUP($D$7&$D$31&A39&$B$6,Table3d_data,6,FALSE)) -> 1 | G39: =IF($D39=0,"",F39/$D39*100) -> 50 | J39: =IF(ISERROR(VLOOKUP($D$7&$D$31&A39&$B$6,Table3d_data,7,FALSE))=TRUE,0,VLOOKUP($D$7&$D$31&A39&$B$6,Table3d_data,7,FALSE)) -> 1 | K39: =IF($D39=0,"",J39/$D39*100) -> 50 | N39: =IF(ISERROR(VLOOKUP($D$7&$D$31&A39&$B$6,Table3d_data,8,FALSE))=TRUE,0,VLOOKUP($D$7&$D$31&A39&$B$6,Table3d_data,8,FALSE)) -> 0 | O39: =IF($D39=0,"",N39/$D39*100) -> 0 | R39: =IF(ISERROR(VLOOKUP($D$7&$D$31&A39&$B$6,Table3d_data,9,FALSE))=TRUE,0,VLOOKUP($D$7&$D$31&A39&$B$6,Table3d_data,9,FALSE)) -> 0 | S39: =IF($D39=0,"",R39/$D39*100) -> 0
R41: Source: Ofsted inspections
B43: 1. The 'all' figures include all homes, of all ownership type, in the local authority area. Local authority run homes data include a small number of homes run by health authorities.
B44: 2. Percentages are rounded and may not add to exactly 100.
B45: 3. At an interim inspection, progress is judged based on requirements and recommendations made following the last full inspection.
B46: 4. Children's homes not accomodating children at the time of the interim inspection received no judgement.
B47: 5. Residential special schools that care for pupils for more than 295 days per year must register as children's homes.

Sheet Table3d_data (hidden)
A1: Table 3d: lnterim inspection outcomes of children's homes providers between 01/04/2011 and 30/06/2011
A2: Lookup | B2: Local Authority | C2: Sector | D2: Corporate Inspected Provision Type Group Name | E2: Month | F2: Good progress | G2: Satisfactory Progress | H2: Inadequate | I2: Not Judged
A3: AllAllChildren's Home1 | B3: All | C3: All | D3: Children's Home | E3: 1 | F3: 1 | G3: 3 | H3: 0 | I3: 0
A4: AllAllChildren's Home2 | B4: All | C4: All | D4: Children's Home | E4: 2 | F4: 7 | G4: 12 | H4: 0 | I4: 1
A5: AllAllChildren's Home3 | B5: All | C5: All | D5: Children's Home | E5: 3 | F5: 3 | G5: 12 | H5: 3 | I5: 2
A6: AllAllChildren's Home4 | B6: All | C6: All | D6: Children's Home | E6: 4 | F6: 11 | G6: 27 | H6: 3 | I6: 3
A7: AllAllResidential special school (>295 days/year)3 | B7: All | C7: All | D7: Residential special school (>295 days/year) | E7: 3 | F7: 1 | G7: 1 | H7: 0 | I7: 0
A8: AllAllResidential special school (>295 days/year)4 | B8: All | C8: All | D8: Residential special school (>295 days/year) | E8: 4 | F8: 1 | G8: 1 | H8: 0 | I8: 0
A9: AllAllSecure Children's Home2 | B9: All | C9: All | D9: Secure Children's Home | E9: 2 | F9: 0 | G9: 1 | H9: 0 | I9: 0
A10: AllAllSecure Children's Home4 | B10: All | C10: All | D10: Secure Children's Home | E10: 4 | F10: 0 | G10: 1 | H10: 0 | I10: 0
A11: AllLocal AuthorityChildren's Home2 | B11: All | C11: Local Authority | D11: Children's Home | E11: 2 | G11: 1
A12: AllLocal AuthorityChildren's Home4 | B12: All | C12: Local Authority | D12: Children's Home | E12: 4 | G12: 1
A13: AllPrivate/ VoluntaryChildren's Home1 | B13: All | C13: Private/ Voluntary | D13: Children's Home | E13: 1 | F13: 1 | G13: 3 | H13: 0 | I13: 0
A14: AllPrivate/ VoluntaryChildren's Home2 | B14: All | C14: Private/ Voluntary | D14: Children's Home | E14: 2 | F14: 7 | G14: 11 | H14: 0 | I14: 1
A15: AllPrivate/ VoluntaryChildren's Home3 | B15: All | C15: Private/ Voluntary | D15: Children's Home | E15: 3 | F15: 3 | G15: 12 | H15: 3 | I15: 2
A16: AllPrivate/ VoluntaryChildren's Home4 | B16: All | C16: Private/ Voluntary | D16: Children's Home | E16: 4 | F16: 11 | G16: 26 | H16: 3 | I16: 3
A17: AllPrivate/ VoluntaryResidential special school (>295 days/year)3 | B17: All | C17: Private/ Voluntary | D17: Residential special school (>295 days/year) | E17: 3 | F17: 1 | G17: 1 | H17: 0 | I17: 0
A18: AllPrivate/ VoluntaryResidential special school (>295 days/year)4 | B18: All | C18: Private/ Voluntary | D18: Residential special school (>295 days/year) | E18: 4 | F18: 1 | G18: 1 | H18: 0 | I18: 0
A19: AllPrivate/ VoluntarySecure Children's Home2 | B19: All | C19: Private/ Voluntary | D19: Secure Children's Home | E19: 2 | F19: 0 | G19: 1 | H19: 0 | I19: 0
A20: AllPrivate/ VoluntarySecure Children's Home4 | B20: All | C20: Private/ Voluntary | D20: Secure Children's Home | E20: 4 | F20: 0 | G20: 1 | H20: 0 | I20: 0
A21: =CONCATENATE(B21,C21,D21,E21) -> BirminghamAllChildren's Home2 | B21: Birmingham | C21: All | D21: Children's Home | E21: 2 | F21: 0 | G21: 1 | H21: 0 | I21: 0
A22: =CONCATENATE(B22,C22,D22,E22) -> BirminghamAllChildren's Home4 | B22: Birmingham | C22: All | D22: Children's Home | E22: 4 | F22: 0 | G22: 1 | H22: 0 | I22: 0
A23: BirminghamPrivate/ VoluntaryChildren's Home2 | B23: Birmingham | C23: Private/ Voluntary | D23: Children's Home | E23: 2 | F23: 0 | G23: 1 | H23: 0 | I23: 0
A24: BirminghamPrivate/ VoluntaryChildren's Home4 | B24: Birmingham | C24: Private/ Voluntary | D24: Children's Home | E24: 4 | F24: 0 | G24: 1 | H24: 0 | I24: 0
A25: =CONCATENATE(B25,C25,D25,E25) -> BlackpoolAllChildren's Home1 | B25: Blackpool | C25: All | D25: Children's Home | E25: 1 | F25: 0 | G25: 1 | H25: 0 | I25: 0
A26: =CONCATENATE(B26,C26,D26,E26) -> BlackpoolAllChildren's Home4 | B26: Blackpool | C26: All | D26: Children's Home | E26: 4 | F26: 0 | G26: 1 | H26: 0 | I26: 0
A27: BlackpoolPrivate/ VoluntaryChildren's Home1 | B27: Blackpool | C27: Private/ Voluntary | D27: Children's Home | E27: 1 | F27: 0 | G27: 1 | H27: 0 | I27: 0
A28: BlackpoolPrivate/ VoluntaryChildren's Home4 | B28: Blackpool | C28: Private/ Voluntary | D28: Children's Home | E28: 4 | F28: 0 | G28: 1 | H28: 0 | I28: 0
A29: =CONCATENATE(B29,C29,D29,E29) -> Cheshire EastAllChildren's Home2 | B29: Cheshire East | C29: All | D29: Children's Home | E29: 2 | F29: 0 | G29: 1 | H29: 0 | I29: 0
A30: =CONCATENATE(B30,C30,D30,E30) -> Cheshire EastAllChildren's Home4 | B30: Cheshire East | C30: All | D30: Children's Home | E30: 4 | F30: 0 | G30: 1 | H30: 0 | I30: 0
A31: Cheshire EastPrivate/ VoluntaryChildren's Home2 | B31: Cheshire East | C31: Private/ Voluntary | D31: Children's Home | E31: 2 | F31: 0 | G31: 1 | H31: 0 | I31: 0
A32: Cheshire EastPrivate/ VoluntaryChildren's Home4 | B32: Cheshire East | C32: Private/ Voluntary | D32: Children's Home | E32: 4 | F32: 0 | G32: 1 | H32: 0 | I32: 0
A33: =CONCATENATE(B33,C33,D33,E33) -> DudleyAllChildren's Home2 | B33: Dudley | C33: All | D33: Children's Home | E33: 2 | F33: 0 | G33: 1 | H33: 0 | I33: 0
A34: =CONCATENATE(B34,C34,D34,E34) -> DudleyAllChildren's Home4 | B34: Dudley | C34: All | D34: Children's Home | E34: 4 | F34: 0 | G34: 1 | H34: 0 | I34: 0
A35: DudleyPrivate/ VoluntaryChildren's Home2 | B35: Dudley | C35: Private/ Voluntary | D35: Children's Home | E35: 2 | F35: 0 | G35: 1 | H35: 0 | I35: 0
A36: DudleyPrivate/ VoluntaryChildren's Home4 | B36: Dudley | C36: Private/ Voluntary | D36: Children's Home | E36: 4 | F36: 0 | G36: 1 | H36: 0 | I36: 0
A37: =CONCATENATE(B37,C37,D37,E37) -> HaltonAllChildren's Home3 | B37: Halton | C37: All | D37: Children's Home | E37: 3 | F37: 0 | G37: 1 | H37: 0 | I37: 0
A38: =CONCATENATE(B38,C38,D38,E38) -> HaltonAllChildren's Home4 | B38: Halton | C38: All | D38: Children's Home | E38: 4 | F38: 0 | G38: 1 | H38: 0 | I38: 0
A39: HaltonPrivate/ VoluntaryChildren's Home3 | B39: Halton | C39: Private/ Voluntary | D39: Children's Home | E39: 3 | F39: 0 | G39: 1 | H39: 0 | I39: 0
A40: HaltonPrivate/ VoluntaryChildren's Home4 | B40: Halton | C40: Private/ Voluntary | D40: Children's Home | E40: 4 | F40: 0 | G40: 1 | H40: 0 | I40: 0
A41: =CONCATENATE(B41,C41,D41,E41) -> HerefordshireAllChildren's Home2 | B41: Herefordshire | C41: All | D41: Children's Home | E41: 2 | F41: 0 | G41: 1 | H41: 0 | I41: 0
A42: =CONCATENATE(B42,C42,D42,E42) -> HerefordshireAllChildren's Home4 | B42: Herefordshire | C42: All | D42: Children's Home | E42: 4 | F42: 0 | G42: 1 | H42: 0 | I42: 0
A43: HerefordshirePrivate/ VoluntaryChildren's Home2 | B43: Herefordshire | C43: Private/ Voluntary | D43: Children's Home | E43: 2 | F43: 0 | G43: 1 | H43: 0 | I43: 0
A44: HerefordshirePrivate/ VoluntaryChildren's Home4 | B44: Herefordshire | C44: Private/ Voluntary | D44: Children's Home | E44: 4 | F44: 0 | G44: 1 | H44: 0 | I44: 0
A45: =CONCATENATE(B45,C45,D45,E45) -> HertfordshireAllChildren's Home3 | B45: Hertfordshire | C45: All | D45: Children's Home | E45: 3 | F45: 0 | G45: 1 | H45: 0 | I45: 0
A46: =CONCATENATE(B46,C46,D46,E46) -> HertfordshireAllChildren's Home4 | B46: Hertfordshire | C46: All | D46: Children's Home | E46: 4 | F46: 0 | G46: 1 | H46: 0 | I46: 0
A47: HertfordshirePrivate/ VoluntaryChildren's Home3 | B47: Hertfordshire | C47: Private/ Voluntary | D47: Children's Home | E47: 3 | G47: 1
A48: HertfordshirePrivate/ VoluntaryChildren's Home4 | B48: Hertfordshire | C48: Private/ Voluntary | D48: Children's Home | E48: 4 | G48: 1
A49: =CONCATENATE(B49,C49,D49,E49) -> Kingston upon HullAllChildren's Home1 | B49: Kingston upon Hull | C49: All | D49: Children's Home | E49: 1 | F49: 1 | G49: 0 | H49: 0 | I49: 0
A50: =CONCATENATE(B50,C50,D50,E50) -> Kingston upon HullAllChildren's Home4 | B50: Kingston upon Hull | C50: All | D50: Children's Home | E50: 4 | F50: 1 | G50: 0 | H50: 0 | I50: 0
A51: Kingston upon HullPrivate/ VoluntaryChildren's Home1 | B51: Kingston upon Hull | C51: Private/ Voluntary | D51: Children's Home | E51: 1 | F51: 1 | G51: 0 | H51: 0 | I51: 0
A52: Kingston upon HullPrivate/ VoluntaryChildren's Home4 | B52: Kingston upon Hull | C52: Private/ Voluntary | D52: Children's Home | E52: 4 | F52: 1 | G52: 0 | H52: 0 | I52: 0
A53: =CONCATENATE(B53,C53,D53,E53) -> KirkleesAllChildren's Home2 | B53: Kirklees | C53: All | D53: Children's Home | E53: 2 | F53: 1 | G53: 0 | H53: 0 | I53: 0
A54: =CONCATENATE(B54,C54,D54,E54) -> KirkleesAllChildren's Home4 | B54: Kirklees | C54: All | D54: Children's Home | E54: 4 | F54: 1 | G54: 0 | H54: 0 | I54: 0
A55: KirkleesPrivate/ VoluntaryChildren's Home2 | B55: Kirklees | C55: Private/ Voluntary | D55: Children's Home | E55: 2 | F55: 1 | G55: 0 | H55: 0 | I55: 0
A56: KirkleesPrivate/ VoluntaryChildren's Home4 | B56: Kirklees | C56: Private/ Voluntary | D56: Children's Home | E56: 4 | F56: 1 | G56: 0 | H56: 0 | I56: 0
A57: =CONCATENATE(B57,C57,D57,E57) -> LeedsAllChildren's Home3 | B57: Leeds | C57: All | D57: Children's Home | E57: 3 | F57: 1 | G57: 0 | H57: 0 | I57: 0
A58: =CONCATENATE(B58,C58,D58,E58) -> LeedsAllChildren's Home4 | B58: Leeds | C58: All | D58: Children's Home | E58: 4 | F58: 1 | G58: 0 | H58: 0 | I58: 0
A59: LeedsPrivate/ VoluntaryChildren's Home3 | B59: Leeds | C59: Private/ Voluntary | D59: Children's Home | E59: 3 | F59: 1 | G59: 0 | H59: 0 | I59: 0
A60: LeedsPrivate/ VoluntaryChildren's Home4 | B60: Leeds | C60: Private/ Voluntary | D60: Children's Home | E60: 4 | F60: 1 | G60: 0 | H60: 0 | I60: 0
A61: =CONCATENATE(B61,C61,D61,E61) -> LeicestershireAllChildren's Home3 | B61: Leicestershire | C61: All | D61: Children's Home | E61: 3 | F61: 0 | G61: 2 | H61: 0 | I61: 0
A62: =CONCATENATE(B62,C62,D62,E62) -> LeicestershireAllChildren's Home4 | B62: Leicestershire | C62: All | D62: Children's Home | E62: 4 | F62: 0 | G62: 2 | H62: 0 | I62: 0
A63: LeicestershirePrivate/ VoluntaryChildren's Home3 | B63: Leicestershire | C63: Private/ Voluntary | D63: Children's Home | E63: 3 | F63: 0 | G63: 1 | H63: 0 | I63: 0
A64: LeicestershirePrivate/ VoluntaryChildren's Home4 | B64: Leicestershire | C64: Private/ Voluntary | D64: Children's Home | E64: 4 | G64: 1
A65: =CONCATENATE(B65,C65,D65,E65) -> LincolnshireAllChildren's Home2 | B65: Lincolnshire | C65: All | D65: Children's Home | E65: 2 | F65: 1 | G65: 0 | H65: 0 | I65: 0
A66: =CONCATENATE(B66,C66,D66,E66) -> LincolnshireAllChildren's Home4 | B66: Lincolnshire | C66: All | D66: Children's Home | E66: 4 | F66: 1 | G66: 0 | H66: 0 | I66: 0
A67: LincolnshirePrivate/ VoluntaryChildren's Home2 | B67: Lincolnshire | C67: Private/ Voluntary | D67: Children's Home | E67: 2 | F67: 1 | G67: 0 | H67: 0 | I67: 0
A68: LincolnshirePrivate/ VoluntaryChildren's Home4 | B68: Lincolnshire | C68: Private/ Voluntary | D68: Children's Home | E68: 4 | F68: 1 | G68: 0 | H68: 0 | I68: 0
A69: =CONCATENATE(B69,C69,D69,E69) -> LiverpoolAllChildren's Home2 | B69: Liverpool | C69: All | D69: Children's Home | E69: 2 | F69: 0 | G69: 1 | H69: 0 | I69: 0
A70: =CONCATENATE(B70,C70,D70,E70) -> LiverpoolAllChildren's Home3 | B70: Liverpool | C70: All | D70: Children's Home | E70: 3 | F70: 0 | G70: 1 | H70: 0 | I70: 0
A71: =CONCATENATE(B71,C71,D71,E71) -> LiverpoolAllChildren's Home4 | B71: Liverpool | C71: All | D71: Children's Home | E71: 4 | F71: 0 | G71: 2 | H71: 0 | I71: 0
A72: LiverpoolPrivate/ VoluntaryChildren's Home2 | B72: Liverpool | C72: Private/ Voluntary | D72: Children's Home | E72: 2 | F72: 0 | G72: 1 | H72: 0 | I72: 0
A73: LiverpoolPrivate/ VoluntaryChildren's Home3 | B73: Liverpool | C73: Private/ Voluntary | D73: Children's Home | E73: 3 | F73: 0 | G73: 1 | H73: 0 | I73: 0
A74: LiverpoolPrivate/ VoluntaryChildren's Home4 | B74: Liverpool | C74: Private/ Voluntary | D74: Children's Home | E74: 4 | F74: 0 | G74: 2 | H74: 0 | I74: 0
A75: =CONCATENATE(B75,C75,D75,E75) -> ManchesterAllChildren's Home3 | B75: Manchester | C75: All | D75: Children's Home | E75: 3 | F75: 1 | G75: 1 | H75: 0 | I75: 0
A76: =CONCATENATE(B76,C76,D76,E76) -> ManchesterAllChildren's Home4 | B76: Manchester | C76: All | D76: Children's Home | E76: 4 | F76: 1 | G76: 1 | H76: 0 | I76: 0
A77: ManchesterPrivate/ VoluntaryChildren's Home3 | B77: Manchester | C77: Private/ Voluntary | D77: Children's Home | E77: 3 | F77: 1 | G77: 1 | H77: 0 | I77: 0
A78: ManchesterPrivate/ VoluntaryChildren's Home4 | B78: Manchester | C78: Private/ Voluntary | D78: Children's Home | E78: 4 | F78: 1 | G78: 1 | H78: 0 | I78: 0
A79: =CONCATENATE(B79,C79,D79,E79) -> MedwayAllChildren's Home2 | B79: Medway | C79: All | D79: Children's Home | E79: 2 | F79: 0 | G79: 1 | H79: 0 | I79: 0
A80: =CONCATENATE(B80,C80,D80,E80) -> MedwayAllChildren's Home4 | B80: Medway | C80: All | D80: Children's Home | E80: 4 | F80: 0 | G80: 1 | H80: 0 | I80: 0
A81: MedwayPrivate/ VoluntaryChildren's Home2 | B81: Medway | C81: Private/ Voluntary | D81: Children's Home | E81: 2 | F81: 0 | G81: 1 | H81: 0 | I81: 0
A82: MedwayPrivate/ VoluntaryChildren's Home4 | B82: Medway | C82: Private/ Voluntary | D82: Children's Home | E82: 4 | F82: 0 | G82: 1 | H82: 0 | I82: 0
A83: =CONCATENATE(B83,C83,D83,E83) -> NorfolkAllChildren's Home2 | B83: Norfolk | C83: All | D83: Children's Home | E83: 2 | F83: 2 | G83: 0 | H83: 0 | I83: 0
A84: =CONCATENATE(B84,C84,D84,E84) -> NorfolkAllChildren's Home4 | B84: Norfolk | C84: All | D84: Children's Home | E84: 4 | F84: 2 | G84: 0 | H84: 0 | I84: 0
A85: =CONCATENATE(B85,C85,D85,E85) -> NorfolkAllResidential special school (>295 days/year)3 | B85: Norfolk | C85: All | D85: Residential special school (>295 days/year) | E85: 3 | F85: 0 | G85: 1 | H85: 0 | I85: 0
A86: =CONCATENATE(B86,C86,D86,E86) -> NorfolkAllResidential special school (>295 days/year)4 | B86: Norfolk | C86: All | D86: Residential special school (>295 days/year) | E86: 4 | F86: 0 | G86: 1 | H86: 0 | I86: 0
A87: NorfolkPrivate/ VoluntaryChildren's Home2 | B87: Norfolk | C87: Private/ Voluntary | D87: Children's Home | E87: 2 | F87: 2 | G87: 0 | H87: 0 | I87: 0
A88: NorfolkPrivate/ VoluntaryChildren's Home4 | B88: Norfolk | C88: Private/ Voluntary | D88: Children's Home | E88: 4 | F88: 2 | G88: 0 | H88: 0 | I88: 0
A89: NorfolkPrivate/ VoluntaryResidential special school (>295 days/year)3 | B89: Norfolk | C89: Private/ Voluntary | D89: Residential special school (>295 days/year) | E89: 3 | G89: 1
A90: NorfolkPrivate/ VoluntaryResidential special school (>295 days/year)4 | B90: Norfolk | C90: Private/ Voluntary | D90: Residential special school (>295 days/year) | E90: 4 | G90: 1
A91: =CONCATENATE(B91,C91,D91,E91) -> SalfordAllChildren's Home3 | B91: Salford | C91: All | D91: Children's Home | E91: 3 | F91: 0 | G91: 1 | H91: 1 | I91: 0
A92: =CONCATENATE(B92,C92,D92,E92) -> SalfordAllChildren's Home4 | B92: Salford | C92: All | D92: Children's Home | E92: 4 | F92: 0 | G92: 1 | H92: 1 | I92: 0
A93: SalfordPrivate/ VoluntaryChildren's Home3 | B93: Salford | C93: Private/ Voluntary | D93: Children's Home | E93: 3 | F93: 0 | G93: 0 | H93: 1 | I93: 0
A94: SalfordPrivate/ VoluntaryChildren's Home4 | B94: Salford | C94: Private/ Voluntary | D94: Children's Home | E94: 4 | G94: 1 | H94: 1
A95: =CONCATENATE(B95,C95,D95,E95) -> SandwellAllChildren's Home1 | B95: Sandwell | C95: All | D95: Children's Home | E95: 1 | F95: 0 | G95: 2 | H95: 0 | I95: 0
A96: =CONCATENATE(B96,C96,D96,E96) -> SandwellAllChildren's Home4 | B96: Sandwell | C96: All | D96: Children's Home | E96: 4 | F96: 0 | G96: 2 | H96: 0 | I96: 0
A97: SandwellPrivate/ VoluntaryChildren's Home1 | B97: Sandwell | C97: Private/ Voluntary | D97: Children's Home | E97: 1 | F97: 0 | G97: 2 | H97: 0 | I97: 0
A98: SandwellPrivate/ VoluntaryChildren's Home4 | B98: Sandwell | C98: Private/ Voluntary | D98: Children's Home | E98: 4 | F98: 0 | G98: 2 | H98: 0 | I98: 0
A99: =CONCATENATE(B99,C99,D99,E99) -> SeftonAllChildren's Home2 | B99: Sefton | C99: All | D99: Children's Home | E99: 2 | F99: 1 | G99: 1 | H99: 0 | I99: 0
A100: =CONCATENATE(B100,C100,D100,E100) -> SeftonAllChildren's Home3 | B100: Sefton | C100: All | D100: Children's Home | E100: 3 | F100: 0 | G100: 0 | H100: 0 | I100: 1
A101: =CONCATENATE(B101,C101,D101,E101) -> SeftonAllChildren's Home4 | B101: Sefton | C101: All | D101: Children's Home | E101: 4 | F101: 1 | G101: 1 | H101: 0 | I101: 1
A102: SeftonPrivate/ VoluntaryChildren's Home2 | B102: Sefton | C102: Private/ Voluntary | D102: Children's Home | E102: 2 | F102: 1 | G102: 1 | H102: 0 | I102: 0
A103: SeftonPrivate/ VoluntaryChildren's Home3 | B103: Sefton | C103: Private/ Voluntary | D103: Children's Home | E103: 3 | F103: 0 | G103: 0 | H103: 0 | I103: 1
A104: SeftonPrivate/ VoluntaryChildren's Home4 | B104: Sefton | C104: Private/ Voluntary | D104: Children's Home | E104: 4 | F104: 1 | G104: 1 | H104: 0 | I104: 1
A105: =CONCATENATE(B105,C105,D105,E105) -> ShropshireAllChildren's Home2 | B105: Shropshire | C105: All | D105: Children's Home | E105: 2 | F105: 0 | G105: 1 | H105: 0 | I105: 0
A106: =CONCATENATE(B106,C106,D106,E106) -> ShropshireAllChildren's Home4 | B106: Shropshire | C106: All | D106: Children's Home | E106: 4 | F106: 0 | G106: 1 | H106: 0 | I106: 0
A107: ShropshirePrivate/ VoluntaryChildren's Home2 | B107: Shropshire | C107: Private/ Voluntary | D107: Children's Home | E107: 2 | F107: 0 | G107: 1 | H107: 0 | I107: 0
A108: ShropshirePrivate/ VoluntaryChildren's Home4 | B108: Shropshire | C108: Private/ Voluntary | D108: Children's Home | E108: 4 | F108: 0 | G108: 1 | H108: 0 | I108: 0
A109: =CONCATENATE(B109,C109,D109,E109) -> St. HelensAllChildren's Home2 | B109: St. Helens | C109: All | D109: Children's Home | E109: 2 | F109: 0 | G109: 1 | H109: 0 | I109: 0
A110: =CONCATENATE(B110,C110,D110,E110) -> St. HelensAllChildren's Home4 | B110: St. Helens | C110: All | D110: Children's Home | E110: 4 | F110: 0 | G110: 1 | H110: 0 | I110: 0
A111: =CONCATENATE(B111,C111,D111,E111) -> St. HelensAllSecure Children's Home2 | B111: St. Helens | C111: All | D111: Secure Children's Home | E111: 2 | F111: 0 | G111: 1 | H111: 0 | I111: 0
A112: =CONCATENATE(B112,C112,D112,E112) -> St. HelensAllSecure Children's Home4 | B112: St. Helens | C112: All | D112: Secure Children's Home | E112: 4 | F112: 0 | G112: 1 | H112: 0 | I112: 0
A113: St. HelensPrivate/ VoluntaryChildren's Home2 | B113: St. Helens | C113: Private/ Voluntary | D113: Children's Home | E113: 2 | F113: 0 | G113: 1 | H113: 0 | I113: 0
A114: St. HelensPrivate/ VoluntaryChildren's Home4 | B114: St. Helens | C114: Private/ Voluntary | D114: Children's Home | E114: 4 | F114: 0 | G114: 1 | H114: 0 | I114: 0
A115: St. HelensPrivate/ VoluntarySecure Children's Home2 | B115: St. Helens | C115: Private/ Voluntary | D115: Secure Children's Home | E115: 2 | F115: 0 | G115: 1 | H115: 0 | I115: 0
A116: St. HelensPrivate/ VoluntarySecure Children's Home4 | B116: St. Helens | C116: Private/ Voluntary | D116: Secure Children's Home | E116: 4 | F116: 0 | G116: 1 | H116: 0 | I116: 0
A117: =CONCATENATE(B117,C117,D117,E117) -> StaffordshireAllChildren's Home3 | B117: Staffordshire | C117: All | D117: Children's Home | E117: 3 | F117: 1 | G117: 1 | H117: 0 | I117: 0
A118: =CONCATENATE(B118,C118,D118,E118) -> StaffordshireAllChildren's Home4 | B118: Staffordshire | C118: All | D118: Children's Home | E118: 4 | F118: 1 | G118: 1 | H118: 0 | I118: 0
A119: StaffordshirePrivate/ VoluntaryChildren's Home3 | B119: Staffordshire | C119: Private/ Voluntary | D119: Children's Home | E119: 3 | F119: 1 | G119: 1 | H119: 0 | I119: 0
A120: StaffordshirePrivate/ VoluntaryChildren's Home4 | B120: Staffordshire | C120: Private/ Voluntary | D120: Children's Home | E120: 4 | F120: 1 | G120: 1 | H120: 0 | I120: 0
A121: =CONCATENATE(B121,C121,D121,E121) -> StockportAllChildren's Home3 | B121: Stockport | C121: All | D121: Children's Home | E121: 3 | F121: 0 | G121: 1 | H121: 0 | I121: 0
A122: =CONCATENATE(B122,C122,D122,E122) -> StockportAllChildren's Home4 | B122: Stockport | C122: All | D122: Children's Home | E122: 4 | F122: 0 | G122: 1 | H122: 0 | I122: 0
A123: StockportPrivate/ VoluntaryChildren's Home3 | B123: Stockport | C123: Private/ Voluntary | D123: Children's Home | E123: 3 | F123: 0 | G123: 1 | H123: 0 | I123: 0
A124: StockportPrivate/ VoluntaryChildren's Home4 | B124: Stockport | C124: Private/ Voluntary | D124: Children's Home | E124: 4 | F124: 0 | G124: 1 | H124: 0 | I124: 0
A125: =CONCATENATE(B125,C125,D125,E125) -> Stoke-on-TrentAllChildren's Home2 | B125: Stoke-on-Trent | C125: All | D125: Children's Home | E125: 2 | F125: 1 | G125: 0 | H125: 0 | I125: 0
A126: =CONCATENATE(B126,C126,D126,E126) -> Stoke-on-TrentAllChildren's Home4 | B126: Stoke-on-Trent | C126: All | D126: Children's Home | E126: 4 | F126: 1 | G126: 0 | H126: 0 | I126: 0
A127: Stoke-on-TrentPrivate/ VoluntaryChildren's Home2 | B127: Stoke-on-Trent | C127: Private/ Voluntary | D127: Children's Home | E127: 2 | F127: 1 | G127: 0 | H127: 0 | I127: 0
A128: Stoke-on-TrentPrivate/ VoluntaryChildren's Home4 | B128: Stoke-on-Trent | C128: Private/ Voluntary | D128: Children's Home | E128: 4 | F128: 1 | G128: 0 | H128: 0 | I128: 0
A129: =CONCATENATE(B129,C129,D129,E129) -> SuffolkAllChildren's Home2 | B129: Suffolk | C129: All | D129: Children's Home | E129: 2 | F129: 0 | G129: 2 | H129: 0 | I129: 0
A130: =CONCATENATE(B130,C130,D130,E130) -> SuffolkAllChildren's Home4 | B130: Suffolk | C130: All | D130: Children's Home | E130: 4 | F130: 0 | G130: 2 | H130: 0 | I130: 0
A131: =CONCATENATE(B131,C131,D131,E131) -> SuffolkAllResidential special school (>295 days/year)3 | B131: Suffolk | C131: All | D131: Residential special school (>295 days/year) | E131: 3 | F131: 1 | G131: 0 | H131: 0 | I131: 0
A132: =CONCATENATE(B132,C132,D132,E132) -> SuffolkAllResidential special school (>295 days/year)4 | B132: Suffolk | C132: All | D132: Residential special school (>295 days/year) | E132: 4 | F132: 1 | G132: 0 | H132: 0 | I132: 0
A133: SuffolkLocal AuthorityChildren's Home2 | B133: Suffolk | C133: Local Authority | D133: Children's Home | E133: 2 | G133: 1
A134: SuffolkLocal AuthorityChildren's Home4 | B134: Suffolk | C134: Local Authority | D134: Children's Home | E134: 4 | G134: 1
A135: SuffolkPrivate/ VoluntaryChildren's Home2 | B135: Suffolk | C135: Private/ Voluntary | D135: Children's Home | E135: 2 | F135: 0 | G135: 1 | H135: 0 | I135: 0
A136: SuffolkPrivate/ VoluntaryChildren's Home4 | B136: Suffolk | C136: Private/ Voluntary | D136: Children's Home | E136: 4 | F136: 0 | G136: 1 | H136: 0 | I136: 0
A137: SuffolkPrivate/ VoluntaryResidential special school (>295 days/year)3 | B137: Suffolk | C137: Private/ Voluntary | D137: Residential special school (>295 days/year) | E137: 3 | F137: 1 | G137: 0 | H137: 0 | I137: 0
A138: SuffolkPrivate/ VoluntaryResidential special school (>295 days/year)4 | B138: Suffolk | C138: Private/ Voluntary | D138: Residential special school (>295 days/year) | E138: 4 | F138: 1 | G138: 0 | H138: 0 | I138: 0
A139: =CONCATENATE(B139,C139,D139,E139) -> SwindonAllChildren's Home3 | B139: Swindon | C139: All | D139: Children's Home | E139: 3 | F139: 0 | G139: 0 | H139: 0 | I139: 1
A140: =CONCATENATE(B140,C140,D140,E140) -> SwindonAllChildren's Home4 | B140: Swindon | C140: All | D140: Children's Home | E140: 4 | F140: 0 | G140: 0 | H140: 0 | I140: 1
A141: SwindonPrivate/ VoluntaryChildren's Home3 | B141: Swindon | C141: Private/ Voluntary | D141: Children's Home | E141: 3 | F141: 0 | G141: 0 | H141: 0 | I141: 1
A142: SwindonPrivate/ VoluntaryChildren's Home4 | B142: Swindon | C142: Private/ Voluntary | D142: Children's Home | E142: 4 | F142: 0 | G142: 0 | H142: 0 | I142: 1
A143: =CONCATENATE(B143,C143,D143,E143) -> TamesideAllChildren's Home3 | B143: Tameside | C143: All | D143: Children's Home | E143: 3 | F143: 0 | G143: 1 | H143: 1 | I143: 0
A144: =CONCATENATE(B144,C144,D144,E144) -> TamesideAllChildren's Home4 | B144: Tameside | C144: All | D144: Children's Home | E144: 4 | F144: 0 | G144: 1 | H144: 1 | I144: 0
A145: TamesidePrivate/ VoluntaryChildren's Home3 | B145: Tameside | C145: Private/ Voluntary | D145: Children's Home | E145: 3 | F145: 0 | G145: 1 | H145: 1 | I145: 0
A146: TamesidePrivate/ VoluntaryChildren's Home4 | B146: Tameside | C146: Private/ Voluntary | D146: Children's Home | E146: 4 | F146: 0 | G146: 1 | H146: 1 | I146: 0
A147: =CONCATENATE(B147,C147,D147,E147) -> Telford & WrekinAllChildren's Home2 | B147: Telford & Wrekin | C147: All | D147: Children's Home | E147: 2 | F147: 0 | G147: 1 | H147: 0 | I147: 0
A148: =CONCATENATE(B148,C148,D148,E148) -> Telford & WrekinAllChildren's Home4 | B148: Telford & Wrekin | C148: All | D148: Children's Home | E148: 4 | F148: 0 | G148: 1 | H148: 0 | I148: 0
A149: Telford & WrekinPrivate/ VoluntaryChildren's Home2 | B149: Telford & Wrekin | C149: Private/ Voluntary | D149: Children's Home | E149: 2 | F149: 0 | G149: 1 | H149: 0 | I149: 0
A150: Telford & WrekinPrivate/ VoluntaryChildren's Home4 | B150: Telford & Wrekin | C150: Private/ Voluntary | D150: Children's Home | E150: 4 | F150: 0 | G150: 1 | H150: 0 | I150: 0
A151: =CONCATENATE(B151,C151,D151,E151) -> WakefieldAllChildren's Home3 | B151: Wakefield | C151: All | D151: Children's Home | E151: 3 | F151: 0 | G151: 1 | H151: 0 | I151: 0
A152: =CONCATENATE(B152,C152,D152,E152) -> WakefieldAllChildren's Home4 | B152: Wakefield | C152: All | D152: Children's Home | E152: 4 | F152: 0 | G152: 1 | H152: 0 | I152: 0
A153: WakefieldPrivate/ VoluntaryChildren's Home3 | B153: Wakefield | C153: Private/ Voluntary | D153: Children's Home | E153: 3 | F153: 0 | G153: 1 | H153: 0 | I153: 0
A154: WakefieldPrivate/ VoluntaryChildren's Home4 | B154: Wakefield | C154: Private/ Voluntary | D154: Children's Home | E154: 4 | F154: 0 | G154: 1 | H154: 0 | I154: 0
A155: =CONCATENATE(B155,C155,D155,E155) -> WalsallAllChildren's Home3 | B155: Walsall | C155: All | D155: Children's Home | E155: 3 | F155: 0 | G155: 1 | H155: 0 | I155: 0
A156: =CONCATENATE(B156,C156,D156,E156) -> WalsallAllChildren's Home4 | B156: Walsall | C156: All | D156: Children's Home | E156: 4 | F156: 0 | G156: 1 | H156: 0 | I156: 0
A157: WalsallPrivate/ VoluntaryChildren's Home3 | B157: Walsall | C157: Private/ Voluntary | D157: Children's Home | E157: 3 | F157: 0 | G157: 1 | H157: 0 | I157: 0
A158: WalsallPrivate/ VoluntaryChildren's Home4 | B158: Walsall | C158: Private/ Voluntary | D158: Children's Home | E158: 4 | F158: 0 | G158: 1 | H158: 0 | I158: 0
A159: =CONCATENATE(B159,C159,D159,E159) -> Waltham ForestAllChildren's Home2 | B159: Waltham Forest | C159: All | D159: Children's Home | E159: 2 | F159: 0 | G159: 0 | H159: 0 | I159: 1
A160: =CONCATENATE(B160,C160,D160,E160) -> Waltham ForestAllChildren's Home4 | B160: Waltham Forest | C160: All | D160: Children's Home | E160: 4 | F160: 0 | G160: 0 | H160: 0 | I160: 1
A161: Waltham ForestPrivate/ VoluntaryChildren's Home2 | B161: Waltham Forest | C161: Private/ Voluntary | D161: Children's Home | E161: 2 | F161: 0 | G161: 0 | H161: 0 | I161: 1
A162: Waltham ForestPrivate/ VoluntaryChildren's Home4 | B162: Waltham Forest | C162: Private/ Voluntary | D162: Children's Home | E162: 4 | F162: 0 | G162: 0 | H162: 0 | I162: 1
A163: =CONCATENATE(B163,C163,D163,E163) -> WarringtonAllChildren's Home3 | B163: Warrington | C163: All | D163: Children's Home | E163: 3 | F163: 0 | G163: 0 | H163: 1 | I163: 0
A164: =CONCATENATE(B164,C164,D164,E164) -> WarringtonAllChildren's Home4 | B164: Warrington | C164: All | D164: Children's Home | E164: 4 | F164: 0 | G164: 0 | H164: 1 | I164: 0
A165: WarringtonPrivate/ VoluntaryChildren's Home3 | B165: Warrington | C165: Private/ Voluntary | D165: Children's Home | E165: 3 | F165: 0 | G165: 0 | H165: 1 | I165: 0
A166: WarringtonPrivate/ VoluntaryChildren's Home4 | B166: Warrington | C166: Private/ Voluntary | D166: Children's Home | E166: 4 | F166: 0 | G166: 0 | H166: 1 | I166: 0
A167: =CONCATENATE(B167,C167,D167,E167) -> WorcestershireAllChildren's Home2 | B167: Worcestershire | C167: All | D167: Children's Home | E167: 2 | F167: 1 | G167: 0 | H167: 0 | I167: 0
A168: =CONCATENATE(B168,C168,D168,E168) -> WorcestershireAllChildren's Home4 | B168: Worcestershire | C168: All | D168: Children's Home | E168: 4 | F168: 1 | G168: 0 | H168: 0 | I168: 0
A169: WorcestershirePrivate/ VoluntaryChildren's Home2 | B169: Worcestershire | C169: Private/ Voluntary | D169: Children's Home | E169: 2 | F169: 1 | G169: 0 | H169: 0 | I169: 0
A170: WorcestershirePrivate/ VoluntaryChildren's Home4 | B170: Worcestershire | C170: Private/ Voluntary | D170: Children's Home | E170: 4 | F170: 1 | G170: 0 | H170: 0 | I170: 0

Sheet Table3_Data (hidden)
A1: Lookup | B1: Local authority | C1: Sector | D1: Corporate Inspected Provision Type Group Name | E1: Judgement | F1: Month | G1: Outstanding | H1: Good | I1: Adequate | J1: Inadequate | K1: Not judged
A2: AllAllChildren's HomeLeadership and Management1 | B2: All | C2: All | D2: Children's Home | E2: Leadership and Management | F2: 1 | G2: 3 | H2: 30 | I2: 19 | J2: 6 | K2: 0
A3: AllAllChildren's HomeLeadership and Management2 | B3: All | C3: All | D3: Children's Home | E3: Leadership and Management | F3: 2 | G3: 24 | H3: 146 | I3: 98 | J3: 38 | K3: 0
A4: AllAllChildren's HomeLeadership and Management3 | B4: All | C4: All | D4: Children's Home | E4: Leadership and Management | F4: 3 | G4: 35 | H4: 114 | I4: 76 | J4: 18 | K4: 0
A5: AllAllChildren's HomeLeadership and Management4 | B5: All | C5: All | D5: Children's Home | E5: Leadership and Management | F5: 4 | G5: 62 | H5: 290 | I5: 193 | J5: 62 | K5: 0
A6: AllAllChildren's HomeOutcomes for children and young people1 | B6: All | C6: All | D6: Children's Home | E6: Outcomes for children and young people | F6: 1 | G6: 5 | H6: 36 | I6: 14 | J6: 3 | K6: 0
A7: AllAllChildren's HomeOutcomes for children and young people2 | B7: All | C7: All | D7: Children's Home | E7: Outcomes for children and young people | F7: 2 | G7: 34 | H7: 160 | I7: 98 | J7: 14 | K7: 0
A8: AllAllChildren's HomeOutcomes for children and young people3 | B8: All | C8: All | D8: Children's Home | E8: Outcomes for children and young people | F8: 3 | G8: 40 | H8: 118 | I8: 75 | J8: 10 | K8: 0
A9: AllAllChildren's HomeOutcomes for children and young people4 | B9: All | C9: All | D9: Children's Home | E9: Outcomes for children and young people | F9: 4 | G9: 79 | H9: 314 | I9: 187 | J9: 27 | K9: 0
A10: AllAllChildren's HomeOverall effectiveness1 | B10: All | C10: All | D10: Children's Home | E10: Overall effectiveness | F10: 1 | G10: 4 | H10: 33 | I10: 15 | J10: 6 | K10: 0
A11: AllAllChildren's HomeOverall effectiveness2 | B11: All | C11: All | D11: Children's Home | E11: Overall effectiveness | F11: 2 | G11: 20 | H11: 158 | I11: 100 | J11: 28 | K11: 0
A12: AllAllChildren's HomeOverall effectiveness3 | B12: All | C12: All | D12: Children's Home | E12: Overall effectiveness | F12: 3 | G12: 27 | H12: 122 | I12: 80 | J12: 14 | K12: 0
A13: AllAllChildren's HomeOverall effectiveness4 | B13: All | C13: All | D13: Children's Home | E13: Overall effectiveness | F13: 4 | G13: 51 | H13: 313 | I13: 195 | J13: 48 | K13: 0
A14: AllAllChildren's HomeQuality of service1 | B14: All | C14: All | D14: Children's Home | E14: Quality of service | F14: 1 | G14: 8 | H14: 33 | I14: 13 | J14: 4 | K14: 0
A15: AllAllChildren's HomeQuality of service2 | B15: All | C15: All | D15: Children's Home | E15: Quality of service | F15: 2 | G15: 41 | H15: 171 | I15: 71 | J15: 23 | K15: 0
A16: AllAllChildren's HomeQuality of service3 | B16: All | C16: All | D16: Children's Home | E16: Quality of service | F16: 3 | G16: 50 | H16: 122 | I16: 60 | J16: 11 | K16: 0
A17: AllAllChildren's HomeQuality of service4 | B17: All | C17: All | D17: Children's Home | E17: Quality of service | F17: 4 | G17: 99 | H17: 326 | I17: 144 | J17: 38 | K17: 0
A18: AllAllChildren's HomeThe safety of children and young people1 | B18: All | C18: All | D18: Children's Home | E18: The safety of children and young people | F18: 1 | G18: 5 | H18: 34 | I18: 14 | J18: 5 | K18: 0
A19: AllAllChildren's HomeThe safety of children and young people2 | B19: All | C19: All | D19: Children's Home | E19: The safety of children and young people | F19: 2 | G19: 35 | H19: 161 | I19: 83 | J19: 27 | K19: 0
A20: AllAllChildren's HomeThe safety of children and young people3 | B20: All | C20: All | D20: Children's Home | E20: The safety of children and young people | F20: 3 | G20: 31 | H20: 123 | I20: 74 | J20: 15 | K20: 0
A21: AllAllChildren's HomeThe safety of children and young people4 | B21: All | C21: All | D21: Children's Home | E21: The safety of children and young people | F21: 4 | G21: 71 | H21: 318 | I21: 171 | J21: 47 | K21: 0
A22: AllAllResidential special school (>295 days/year)Leadership and Management1 | B22: All | C22: All | D22: Residential special school (>295 days/year) | E22: Leadership and Management | F22: 1 | G22: 0 | H22: 2 | I22: 0 | J22: 0
A23: AllAllResidential special school (>295 days/year)Leadership and Management2 | B23: All | C23: All | D23: Residential special school (>295 days/year) | E23: Leadership and Management | F23: 2 | G23: 0 | H23: 4 | I23: 4 | J23: 2
A24: AllAllResidential special school (>295 days/year)Leadership and Management3 | B24: All | C24: All | D24: Residential special school (>295 days/year) | E24: Leadership and Management | F24: 3 | G24: 2 | H24: 6 | I24: 3 | J24: 0
A25: AllAllResidential special school (>295 days/year)Leadership and Management4 | B25: All | C25: All | D25: Residential special school (>295 days/year) | E25: Leadership and Management | F25: 4 | G25: 2 | H25: 12 | I25: 7 | J25: 2
A26: AllAllResidential special school (>295 days/year)Outcomes for children and young people1 | B26: All | C26: All | D26: Residential special school (>295 days/year) | E26: Outcomes for children and young people | F26: 1 | G26: 0 | H26: 2 | I26: 0 | J26: 0
A27: AllAllResidential special school (>295 days/year)Outcomes for children and young people2 | B27: All | C27: All | D27: Residential special school (>295 days/year) | E27: Outcomes for children and young people | F27: 2 | G27: 1 | H27: 6 | I27: 1 | J27: 2
A28: AllAllResidential special school (>295 days/year)Outcomes for children and young people3 | B28: All | C28: All | D28: Residential special school (>295 days/year) | E28: Outcomes for children and young people | F28: 3 | G28: 4 | H28: 6 | I28: 1 | J28: 0
A29: AllAllResidential special school (>295 days/year)Outcomes for children and young people4 | B29: All | C29: All | D29: Residential special school (>295 days/year) | E29: Outcomes for children and young people | F29: 4 | G29: 5 | H29: 14 | I29: 2 | J29: 2
A30: AllAllResidential special school (>295 days/year)Overall effectiveness1 | B30: All | C30: All | D30: Residential special school (>295 days/year) | E30: Overall effectiveness | F30: 1 | G30: 0 | H30: 2 | I30: 0 | J30: 0
A31: AllAllResidential special school (>295 days/year)Overall effectiveness2 | B31: All | C31: All | D31: Residential special school (>295 days/year) | E31: Overall effectiveness | F31: 2 | G31: 0 | H31: 4 | I31: 4 | J31: 2
A32: AllAllResidential special school (>295 days/year)Overall effectiveness3 | B32: All | C32: All | D32: Residential special school (>295 days/year) | E32: Overall effectiveness | F32: 3 | G32: 2 | H32: 6 | I32: 3 | J32: 0
A33: AllAllResidential special school (>295 days/year)Overall effectiveness4 | B33: All | C33: All | D33: Residential special school (>295 days/year) | E33: Overall effectiveness | F33: 4 | G33: 2 | H33: 12 | I33: 7 | J33: 2
A34: AllAllResidential special school (>295 days/year)Quality of service1 | B34: All | C34: All | D34: Residential special school (>295 days/year) | E34: Quality of service | F34: 1 | G34: 0 | H34: 2 | I34: 0 | J34: 0
A35: AllAllResidential special school (>295 days/year)Quality of service2 | B35: All | C35: All | D35: Residential special school (>295 days/year) | E35: Quality of service | F35: 2 | G35: 0 | H35: 5 | I35: 3 | J35: 2
A36: AllAllResidential special school (>295 days/year)Quality of service3 | B36: All | C36: All | D36: Residential special school (>295 days/year) | E36: Quality of service | F36: 3 | G36: 4 | H36: 5 | I36: 2 | J36: 0
A37: AllAllResidential special school (>295 days/year)Quality of service4 | B37: All | C37: All | D37: Residential special school (>295 days/year) | E37: Quality of service | F37: 4 | G37: 4 | H37: 12 | I37: 5 | J37: 2
A38: AllAllResidential special school (>295 days/year)The safety of children and young people1 | B38: All | C38: All | D38: Residential special school (>295 days/year) | E38: The safety of children and young people | F38: 1 | G38: 0 | H38: 2 | I38: 0 | J38: 0
A39: AllAllResidential special school (>295 days/year)The safety of children and young people2 | B39: All | C39: All | D39: Residential special school (>295 days/year) | E39: The safety of children and young people | F39: 2 | G39: 0 | H39: 4 | I39: 4 | J39: 2
A40: AllAllResidential special school (>295 days/year)The safety of children and young people3 | B40: All | C40: All | D40: Residential special school (>295 days/year) | E40: The safety of children and young people | F40: 3 | G40: 3 | H40: 6 | I40: 2 | J40: 0
A41: AllAllResidential special school (>295 days/year)The safety of children and young people4 | B41: All | C41: All | D41: Residential special school (>295 days/year) | E41: The safety of children and young people | F41: 4 | G41: 3 | H41: 12 | I41: 6 | J41: 2
A42: AllAllSecure children's homeLeadership and Management1 | B42: All | C42: All | D42: Secure children's home | E42: Leadership and Management | F42: 1 | G42: 1 | H42: 0 | I42: 1 | J42: 0
A43: AllAllSecure children's homeLeadership and Management2 | B43: All | C43: All | D43: Secure children's home | E43: Leadership and Management | F43: 2 | G43: 0 | H43: 4 | I43: 0 | J43: 0
A44: AllAllSecure children's homeLeadership and Management3 | B44: All | C44: All | D44: Secure children's home | E44: Leadership and Management | F44: 3 | G44: 0 | H44: 0 | I44: 1 | J44: 0
A45: AllAllSecure children's homeLeadership and Management4 | B45: All | C45: All | D45: Secure children's home | E45: Leadership and Management | F45: 4 | G45: 1 | H45: 4 | I45: 2 | J45: 0
A46: AllAllSecure children's homeOutcomes for children and young people1 | B46: All | C46: All | D46: Secure children's home | E46: Outcomes for children and young people | F46: 1 | G46: 1 | H46: 1 | I46: 0 | J46: 0
A47: AllAllSecure children's homeOutcomes for children and young people2 | B47: All | C47: All | D47: Secure children's home | E47: Outcomes for children and young people | F47: 2 | G47: 0 | H47: 4 | I47: 0 | J47: 0
A48: AllAllSecure children's homeOutcomes for children and young people3 | B48: All | C48: All | D48: Secure children's home | E48: Outcomes for children and young people | F48: 3 | G48: 0 | H48: 1 | I48: 0 | J48: 0
A49: AllAllSecure children's homeOutcomes for children and young people4 | B49: All | C49: All | D49: Secure children's home | E49: Outcomes for children and young people | F49: 4 | G49: 1 | H49: 6 | I49: 0 | J49: 0
A50: AllAllSecure children's homeOverall effectiveness1 | B50: All | C50: All | D50: Secure children's home | E50: Overall effectiveness | F50: 1 | G50: 1 | H50: 0 | I50: 1 | J50: 0
A51: AllAllSecure children's homeOverall effectiveness2 | B51: All | C51: All | D51: Secure children's home | E51: Overall effectiveness | F51: 2 | G51: 0 | H51: 4 | I51: 0 | J51: 0
A52: AllAllSecure children's homeOverall effectiveness3 | B52: All | C52: All | D52: Secure children's home | E52: Overall effectiveness | F52: 3 | G52: 0 | H52: 0 | I52: 1 | J52: 0
A53: AllAllSecure children's homeOverall effectiveness4 | B53: All | C53: All | D53: Secure children's home | E53: Overall effectiveness | F53: 4 | G53: 1 | H53: 4 | I53: 2 | J53: 0
A54: AllAllSecure children's homeQuality of service1 | B54: All | C54: All | D54: Secure children's home | E54: Quality of service | F54: 1 | G54: 1 | H54: 0 | I54: 1 | J54: 0
A55: AllAllSecure children's homeQuality of service2 | B55: All | C55: All | D55: Secure children's home | E55: Quality of service | F55: 2 | G55: 0 | H55: 4 | I55: 0 | J55: 0
A56: AllAllSecure children's homeQuality of service3 | B56: All | C56: All | D56: Secure children's home | E56: Quality of service | F56: 3 | G56: 0 | H56: 0 | I56: 1 | J56: 0
A57: AllAllSecure children's homeQuality of service4 | B57: All | C57: All | D57: Secure children's home | E57: Quality of service | F57: 4 | G57: 1 | H57: 4 | I57: 2 | J57: 0
A58: AllAllSecure children's homeThe safety of children and young people1 | B58: All | C58: All | D58: Secure children's home | E58: The safety of children and young people | F58: 1 | G58: 1 | H58: 0 | I58: 1 | J58: 0
A59: AllAllSecure children's homeThe safety of children and young people2 | B59: All | C59: All | D59: Secure children's home | E59: The safety of children and young people | F59: 2 | G59: 0 | H59: 4 | I59: 0 | J59: 0
A60: AllAllSecure children's homeThe safety of children and young people3 | B60: All | C60: All | D60: Secure children's home | E60: The safety of children and young people | F60: 3 | G60: 0 | H60: 0 | I60: 1 | J60: 0
A61: AllAllSecure children's homeThe safety of children and young people4 | B61: All | C61: All | D61: Secure children's home | E61: The safety of children and young people | F61: 4 | G61: 1 | H61: 4 | I61: 2 | J61: 0
A62: AllLocal authorityChildren's HomeLeadership and Management1 | B62: All | C62: Local authority | D62: Children's Home | E62: Leadership and Management | F62: 1 | G62: 0 | H62: 5 | I62: 4 | J62: 2 | K62: 0
A63: AllLocal authorityChildren's HomeLeadership and Management2 | B63: All | C63: Local authority | D63: Children's Home | E63: Leadership and Management | F63: 2 | G63: 3 | H63: 30 | I63: 16 | J63: 9 | K63: 0
A64: AllLocal authorityChildren's HomeLeadership and Management3 | B64: All | C64: Local authority | D64: Children's Home | E64: Leadership and Management | F64: 3 | G64: 7 | H64: 35 | I64: 22 | J64: 5 | K64: 0
A65: AllLocal authorityChildren's HomeLeadership and Management4 | B65: All | C65: Local authority | D65: Children's Home | E65: Leadership and Management | F65: 4 | G65: 10 | H65: 70 | I65: 42 | J65: 16 | K65: 0
A66: AllLocal authorityChildren's HomeOutcomes for children and young people1 | B66: All | C66: Local authority | D66: Children's Home | E66: Outcomes for children and young people | F66: 1 | G66: 0 | H66: 7 | I66: 3 | J66: 1 | K66: 0
A67: AllLocal authorityChildren's HomeOutcomes for children and young people2 | B67: All | C67: Local authority | D67: Children's Home | E67: Outcomes for children and young people | F67: 2 | G67: 8 | H67: 29 | I67: 21 | J67: 0 | K67: 0
A68: AllLocal authorityChildren's HomeOutcomes for children and young people3 | B68: All | C68: Local authority | D68: Children's Home | E68: Outcomes for children and young people | F68: 3 | G68: 10 | H68: 33 | I68: 23 | J68: 3 | K68: 0
A69: AllLocal authorityChildren's HomeOutcomes for children and young people4 | B69: All | C69: Local authority | D69: Children's Home | E69: Outcomes for children and young people | F69: 4 | G69: 18 | H69: 69 | I69: 47 | J69: 4 | K69: 0
A70: AllLocal authorityChildren's HomeOverall effectiveness1 | B70: All | C70: Local authority | D70: Children's Home | E70: Overall effectiveness | F70: 1 | G70: 0 | H70: 6 | I70: 3 | J70: 2 | K70: 0
A71: AllLocal authorityChildren's HomeOverall effectiveness2 | B71: All | C71: Local authority | D71: Children's Home | E71: Overall effectiveness | F71: 2 | G71: 3 | H71: 32 | I71: 19 | J71: 4 | K71: 0
A72: AllLocal authorityChildren's HomeOverall effectiveness3 | B72: All | C72: Local authority | D72: Children's Home | E72: Overall effectiveness | F72: 3 | G72: 6 | H72: 31 | I72: 27 | J72: 5 | K72: 0
A73: AllLocal authorityChildren's HomeOverall effectiveness4 | B73: All | C73: Local authority | D73: Children's Home | E73: Overall effectiveness | F73: 4 | G73: 9 | H73: 69 | I73: 49 | J73: 11 | K73: 0
A74: AllLocal authorityChildren's HomeQuality of service1 | B74: All | C74: Local authority | D74: Children's Home | E74: Quality of service | F74: 1 | G74: 1 | H74: 5 | I74: 3 | J74: 2 | K74: 0
A75: AllLocal authorityChildren's HomeQuality of service2 | B75: All | C75: Local authority | D75: Children's Home | E75: Quality of service | F75: 2 | G75: 10 | H75: 33 | I75: 13 | J75: 2 | K75: 0
A76: AllLocal authorityChildren's HomeQuality of service3 | B76: All | C76: Local authority | D76: Children's Home | E76: Quality of service | F76: 3 | G76: 15 | H76: 30 | I76: 21 | J76: 3 | K76: 0
A77: AllLocal authorityChildren's HomeQuality of service4 | B77: All | C77: Local authority | D77: Children's Home | E77: Quality of service | F77: 4 | G77: 26 | H77: 68 | I77: 37 | J77: 7 | K77: 0
A78: AllLocal authorityChildren's HomeThe safety of children and young people1 | B78: All | C78: Local authority | D78: Children's Home | E78: The safety of children and young people | F78: 1 | G78: 0 | H78: 6 | I78: 3 | J78: 2 | K78: 0
A79: AllLocal authorityChildren's HomeThe safety of children and young people2 | B79: All | C79: Local authority | D79: Children's Home | E79: The safety of children and young people | F79: 2 | G79: 8 | H79: 29 | I79: 17 | J79: 4 | K79: 0
A80: AllLocal authorityChildren's HomeThe safety of children and young people3 | B80: All | C80: Local authority | D80: Children's Home | E80: The safety of children and young people | F80: 3 | G80: 6 | H80: 34 | I80: 23 | J80: 6 | K80: 0
A81: AllLocal authorityChildren's HomeThe safety of children and young people4 | B81: All | C81: Local authority | D81: Children's Home | E81: The safety of children and young people | F81: 4 | G81: 14 | H81: 69 | I81: 43 | J81: 12 | K81: 0
A82: AllLocal authorityResidential special school (>295 days/year)Leadership and Management3 | B82: All | C82: Local authority | D82: Residential special school (>295 days/year) | E82: Leadership and Management | F82: 3 | G82: 0 | H82: 1 | I82: 0 | J82: 0
A83: AllLocal authorityResidential special school (>295 days/year)Leadership and Management4 | B83: All | C83: Local authority | D83: Residential special school (>295 days/year) | E83: Leadership and Management | F83: 4 | G83: 0 | H83: 1 | I83: 0 | J83: 0
A84: AllLocal authorityResidential special school (>295 days/year)Outcomes for children and young people3 | B84: All | C84: Local authority | D84: Residential special school (>295 days/year) | E84: Outcomes for children and young people | F84: 3 | G84: 0 | H84: 1 | I84: 0 | J84: 0
A85: AllLocal authorityResidential special school (>295 days/year)Outcomes for children and young people4 | B85: All | C85: Local authority | D85: Residential special school (>295 days/year) | E85: Outcomes for children and young people | F85: 4 | G85: 0 | H85: 1 | I85: 0 | J85: 0
A86: AllLocal authorityResidential special school (>295 days/year)Overall effectiveness3 | B86: All | C86: Local authority | D86: Residential special school (>295 days/year) | E86: Overall effectiveness | F86: 3 | G86: 0 | H86: 1 | I86: 0 | J86: 0
A87: AllLocal authorityResidential special school (>295 days/year)Overall effectiveness4 | B87: All | C87: Local authority | D87: Residential special school (>295 days/year) | E87: Overall effectiveness | F87: 4 | G87: 0 | H87: 1 | I87: 0 | J87: 0
A88: AllLocal authorityResidential special school (>295 days/year)Quality of service3 | B88: All | C88: Local authority | D88: Residential special school (>295 days/year) | E88: Quality of service | F88: 3 | G88: 0 | H88: 1 | I88: 0 | J88: 0
A89: AllLocal authorityResidential special school (>295 days/year)Quality of service4 | B89: All | C89: Local authority | D89: Residential special school (>295 days/year) | E89: Quality of service | F89: 4 | G89: 0 | H89: 1 | I89: 0 | J89: 0
A90: AllLocal authorityResidential special school (>295 days/year)The safety of children and young people3 | B90: All | C90: Local authority | D90: Residential special school (>295 days/year) | E90: The safety of children and young people | F90: 3 | G90: 0 | H90: 1 | I90: 0 | J90: 0
A91: AllLocal authorityResidential special school (>295 days/year)The safety of children and young people4 | B91: All | C91: Local authority | D91: Residential special school (>295 days/year) | E91: The safety of children and young people | F91: 4 | G91: 0 | H91: 1 | I91: 0 | J91: 0
A92: AllLocal authoritySecure children's homeLeadership and Management1 | B92: All | C92: Local authority | D92: Secure children's home | E92: Leadership and Management | F92: 1 | G92: 1 | H92: 0 | I92: 1 | J92: 0
A93: AllLocal authoritySecure children's homeLeadership and Management2 | B93: All | C93: Local authority | D93: Secure children's home | E93: Leadership and Management | F93: 2 | G93: 0 | H93: 4 | I93: 0 | J93: 0
A94: AllLocal authoritySecure children's homeLeadership and Management3 | B94: All | C94: Local authority | D94: Secure children's home | E94: Leadership and Management | F94: 3 | G94: 0 | H94: 0 | I94: 1 | J94: 0
A95: AllLocal authoritySecure children's homeLeadership and Management4 | B95: All | C95: Local authority | D95: Secure children's home | E95: Leadership and Management | F95: 4 | G95: 1 | H95: 4 | I95: 2 | J95: 0
A96: AllLocal authoritySecure children's homeOutcomes for children and young people1 | B96: All | C96: Local authority | D96: Secure children's home | E96: Outcomes for children and young people | F96: 1 | G96: 1 | H96: 1 | I96: 0 | J96: 0
A97: AllLocal authoritySecure children's homeOutcomes for children and young people2 | B97: All | C97: Local authority | D97: Secure children's home | E97: Outcomes for children and young people | F97: 2 | G97: 0 | H97: 4 | I97: 0 | J97: 0
A98: AllLocal authoritySecure children's homeOutcomes for children and young people3 | B98: All | C98: Local authority | D98: Secure children's home | E98: Outcomes for children and young people | F98: 3 | G98: 0 | H98: 1 | I98: 0 | J98: 0
A99: AllLocal authoritySecure children's homeOutcomes for children and young people4 | B99: All | C99: Local authority | D99: Secure children's home | E99: Outcomes for children and young people | F99: 4 | G99: 1 | H99: 6 | I99: 0 | J99: 0
A100: AllLocal authoritySecure children's homeOverall effectiveness1 | B100: All | C100: Local authority | D100: Secure children's home | E100: Overall effectiveness | F100: 1 | G100: 1 | H100: 0 | I100: 1 | J100: 0
A101: AllLocal authoritySecure children's homeOverall effectiveness2 | B101: All | C101: Local authority | D101: Secure children's home | E101: Overall effectiveness | F101: 2 | G101: 0 | H101: 4 | I101: 0 | J101: 0
A102: AllLocal authoritySecure children's homeOverall effectiveness3 | B102: All | C102: Local authority | D102: Secure children's home | E102: Overall effectiveness | F102: 3 | G102: 0 | H102: 0 | I102: 1 | J102: 0
A103: AllLocal authoritySecure children's homeOverall effectiveness4 | B103: All | C103: Local authority | D103: Secure children's home | E103: Overall effectiveness | F103: 4 | G103: 1 | H103: 4 | I103: 2 | J103: 0
A104: AllLocal authoritySecure children's homeQuality of service1 | B104: All | C104: Local authority | D104: Secure children's home | E104: Quality of service | F104: 1 | G104: 1 | H104: 0 | I104: 1 | J104: 0
A105: AllLocal authoritySecure children's homeQuality of service2 | B105: All | C105: Local authority | D105: Secure children's home | E105: Quality of service | F105: 2 | G105: 0 | H105: 4 | I105: 0 | J105: 0
A106: AllLocal authoritySecure children's homeQuality of service3 | B106: All | C106: Local authority | D106: Secure children's home | E106: Quality of service | F106: 3 | G106: 0 | H106: 0 | I106: 1 | J106: 0
A107: AllLocal authoritySecure children's homeQuality of service4 | B107: All | C107: Local authority | D107: Secure children's home | E107: Quality of service | F107: 4 | G107: 1 | H107: 4 | I107: 2 | J107: 0
A108: AllLocal authoritySecure children's homeThe safety of children and young people1 | B108: All | C108: Local authority | D108: Secure children's home | E108: The safety of children and young people | F108: 1 | G108: 1 | H108: 0 | I108: 1 | J108: 0
A109: AllLocal authoritySecure children's homeThe safety of children and young people2 | B109: All | C109: Local authority | D109: Secure children's home | E109: The safety of children and young people | F109: 2 | G109: 0 | H109: 4 | I109: 0 | J109: 0
A110: AllLocal authoritySecure children's homeThe safety of children and young people3 | B110: All | C110: Local authority | D110: Secure children's home | E110: The safety of children and young people | F110: 3 | G110: 0 | H110: 0 | I110: 1 | J110: 0
A111: AllLocal authoritySecure children's homeThe safety of children and young people4 | B111: All | C111: Local authority | D111: Secure children's home | E111: The safety of children and young people | F111: 4 | G111: 1 | H111: 4 | I111: 2 | J111: 0
A112: AllPrivate/ VoluntaryChildren's HomeLeadership and Management1 | B112: All | C112: Private/ Voluntary | D112: Children's Home | E112: Leadership and Management | F112: 1 | G112: 3 | H112: 25 | I112: 15 | J112: 4 | K112: 0
A113: AllPrivate/ VoluntaryChildren's HomeLeadership and Management2 | B113: All | C113: Private/ Voluntary | D113: Children's Home | E113: Leadership and Management | F113: 2 | G113: 21 | H113: 116 | I113: 82 | J113: 29 | K113: 0
A114: AllPrivate/ VoluntaryChildren's HomeLeadership and Management3 | B114: All | C114: Private/ Voluntary | D114: Children's Home | E114: Leadership and Management | F114: 3 | G114: 28 | H114: 79 | I114: 54 | J114: 13 | K114: 0
A115: AllPrivate/ VoluntaryChildren's HomeLeadership and Management4 | B115: All | C115: Private/ Voluntary | D115: Children's Home | E115: Leadership and Management | F115: 4 | G115: 52 | H115: 220 | I115: 151 | J115: 46 | K115: 0
A116: AllPrivate/ VoluntaryChildren's HomeOutcomes for children and young people1 | B116: All | C116: Private/ Voluntary | D116: Children's Home | E116: Outcomes for children and young people | F116: 1 | G116: 5 | H116: 29 | I116: 11 | J116: 2 | K116: 0
A117: AllPrivate/ VoluntaryChildren's HomeOutcomes for children and young people2 | B117: All | C117: Private/ Voluntary | D117: Children's Home | E117: Outcomes for children and young people | F117: 2 | G117: 26 | H117: 131 | I117: 77 | J117: 14 | K117: 0
A118: AllPrivate/ VoluntaryChildren's HomeOutcomes for children and young people3 | B118: All | C118: Private/ Voluntary | D118: Children's Home | E118: Outcomes for children and young people | F118: 3 | G118: 30 | H118: 85 | I118: 52 | J118: 7 | K118: 0
A119: AllPrivate/ VoluntaryChildren's HomeOutcomes for children and young people4 | B119: All | C119: Private/ Voluntary | D119: Children's Home | E119: Outcomes for children and young people | F119: 4 | G119: 61 | H119: 245 | I119: 140 | J119: 23 | K119: 0
A120: AllPrivate/ VoluntaryChildren's HomeOverall effectiveness1 | B120: All | C120: Private/ Voluntary | D120: Children's Home | E120: Overall effectiveness | F120: 1 | G120: 4 | H120: 27 | I120: 12 | J120: 4 | K120: 0
A121: AllPrivate/ VoluntaryChildren's HomeOverall effectiveness2 | B121: All | C121: Private/ Voluntary | D121: Children's Home | E121: Overall effectiveness | F121: 2 | G121: 17 | H121: 126 | I121: 81 | J121: 24 | K121: 0
A122: AllPrivate/ VoluntaryChildren's HomeOverall effectiveness3 | B122: All | C122: Private/ Voluntary | D122: Children's Home | E122: Overall effectiveness | F122: 3 | G122: 21 | H122: 91 | I122: 53 | J122: 9 | K122: 0
A123: AllPrivate/ VoluntaryChildren's HomeOverall effectiveness4 | B123: All | C123: Private/ Voluntary | D123: Children's Home | E123: Overall effectiveness | F123: 4 | G123: 42 | H123: 244 | I123: 146 | J123: 37 | K123: 0
A124: AllPrivate/ VoluntaryChildren's HomeQuality of service1 | B124: All | C124: Private/ Voluntary | D124: Children's Home | E124: Quality of service | F124: 1 | G124: 7 | H124: 28 | I124: 10 | J124: 2 | K124: 0
A125: AllPrivate/ VoluntaryChildren's HomeQuality of service2 | B125: All | C125: Private/ Voluntary | D125: Children's Home | E125: Quality of service | F125: 2 | G125: 31 | H125: 138 | I125: 58 | J125: 21 | K125: 0
A126: AllPrivate/ VoluntaryChildren's HomeQuality of service3 | B126: All | C126: Private/ Voluntary | D126: Children's Home | E126: Quality of service | F126: 3 | G126: 35 | H126: 92 | I126: 39 | J126: 8 | K126: 0
A127: AllPrivate/ VoluntaryChildren's HomeQuality of service4 | B127: All | C127: Private/ Voluntary | D127: Children's Home | E127: Quality of service | F127: 4 | G127: 73 | H127: 258 | I127: 107 | J127: 31 | K127: 0
A128: AllPrivate/ VoluntaryChildren's HomeThe safety of children and young people1 | B128: All | C128: Private/ Voluntary | D128: Children's Home | E128: The safety of children and young people | F128: 1 | G128: 5 | H128: 28 | I128: 11 | J128: 3 | K128: 0
A129: AllPrivate/ VoluntaryChildren's HomeThe safety of children and young people2 | B129: All | C129: Private/ Voluntary | D129: Children's Home | E129: The safety of children and young people | F129: 2 | G129: 27 | H129: 132 | I129: 66 | J129: 23 | K129: 0
A130: AllPrivate/ VoluntaryChildren's HomeThe safety of children and young people3 | B130: All | C130: Private/ Voluntary | D130: Children's Home | E130: The safety of children and young people | F130: 3 | G130: 25 | H130: 89 | I130: 51 | J130: 9 | K130: 0
A131: AllPrivate/ VoluntaryChildren's HomeThe safety of children and young people4 | B131: All | C131: Private/ Voluntary | D131: Children's Home | E131: The safety of children and young people | F131: 4 | G131: 57 | H131: 249 | I131: 128 | J131: 35 | K131: 0
A132: AllPrivate/ VoluntaryResidential special school (>295 days/year)Leadership and Management1 | B132: All | C132: Private/ Voluntary | D132: Residential special school (>295 days/year) | E132: Leadership and Management | F132: 1 | G132: 0 | H132: 2 | I132: 0 | J132: 0
A133: AllPrivate/ VoluntaryResidential special school (>295 days/year)Leadership and Management2 | B133: All | C133: Private/ Voluntary | D133: Residential special school (>295 days/year) | E133: Leadership and Management | F133: 2 | G133: 0 | H133: 4 | I133: 4 | J133: 2
A134: AllPrivate/ VoluntaryResidential special school (>295 days/year)Leadership and Management3 | B134: All | C134: Private/ Voluntary | D134: Residential special school (>295 days/year) | E134: Leadership and Management | F134: 3 | G134: 2 | H134: 5 | I134: 3 | J134: 0
A135: AllPrivate/ VoluntaryResidential special school (>295 days/year)Leadership and Management4 | B135: All | C135: Private/ Voluntary | D135: Residential special school (>295 days/year) | E135: Leadership and Management | F135: 4 | G135: 2 | H135: 11 | I135: 7 | J135: 2
A136: AllPrivate/ VoluntaryResidential special school (>295 days/year)Outcomes for children and young people1 | B136: All | C136: Private/ Voluntary | D136: Residential special school (>295 days/year) | E136: Outcomes for children and young people | F136: 1 | G136: 0 | H136: 2 | I136: 0 | J136: 0
A137: AllPrivate/ VoluntaryResidential special school (>295 days/year)Outcomes for children and young people2 | B137: All | C137: Private/ Voluntary | D137: Residential special school (>295 days/year) | E137: Outcomes for children and young people | F137: 2 | G137: 1 | H137: 6 | I137: 1 | J137: 2
A138: AllPrivate/ VoluntaryResidential special school (>295 days/year)Outcomes for children and young people3 | B138: All | C138: Private/ Voluntary | D138: Residential special school (>295 days/year) | E138: Outcomes for children and young people | F138: 3 | G138: 4 | H138: 5 | I138: 1 | J138: 0
A139: AllPrivate/ VoluntaryResidential special school (>295 days/year)Outcomes for children and young people4 | B139: All | C139: Private/ Voluntary | D139: Residential special school (>295 days/year) | E139: Outcomes for children and young people | F139: 4 | G139: 5 | H139: 13 | I139: 2 | J139: 2
A140: AllPrivate/ VoluntaryResidential special school (>295 days/year)Overall effectiveness1 | B140: All | C140: Private/ Voluntary | D140: Residential special school (>295 days/year) | E140: Overall effectiveness | F140: 1 | G140: 0 | H140: 2 | I140: 0 | J140: 0
A141: AllPrivate/ VoluntaryResidential special school (>295 days/year)Overall effectiveness2 | B141: All | C141: Private/ Voluntary | D141: Residential special school (>295 days/year) | E141: Overall effectiveness | F141: 2 | G141: 0 | H141: 4 | I141: 4 | J141: 2
A142: AllPrivate/ VoluntaryResidential special school (>295 days/year)Overall effectiveness3 | B142: All | C142: Private/ Voluntary | D142: Residential special school (>295 days/year) | E142: Overall effectiveness | F142: 3 | G142: 2 | H142: 5 | I142: 3 | J142: 0
A143: AllPrivate/ VoluntaryResidential special school (>295 days/year)Overall effectiveness4 | B143: All | C143: Private/ Voluntary | D143: Residential special school (>295 days/year) | E143: Overall effectiveness | F143: 4 | G143: 2 | H143: 11 | I143: 7 | J143: 2
A144: AllPrivate/ VoluntaryResidential special school (>295 days/year)Quality of service1 | B144: All | C144: Private/ Voluntary | D144: Residential special school (>295 days/year) | E144: Quality of service | F144: 1 | G144: 0 | H144: 2 | I144: 0 | J144: 0
A145: AllPrivate/ VoluntaryResidential special school (>295 days/year)Quality of service2 | B145: All | C145: Private/ Voluntary | D145: Residential special school (>295 days/year) | E145: Quality of service | F145: 2 | G145: 0 | H145: 5 | I145: 3 | J145: 2
A146: AllPrivate/ VoluntaryResidential special school (>295 days/year)Quality of service3 | B146: All | C146: Private/ Voluntary | D146: Residential special school (>295 days/year) | E146: Quality of service | F146: 3 | G146: 4 | H146: 4 | I146: 2 | J146: 0
A147: AllPrivate/ VoluntaryResidential special school (>295 days/year)Quality of service4 | B147: All | C147: Private/ Voluntary | D147: Residential special school (>295 days/year) | E147: Quality of service | F147: 4 | G147: 4 | H147: 11 | I147: 5 | J147: 2
A148: AllPrivate/ VoluntaryResidential special school (>295 days/year)The safety of children and young people1 | B148: All | C148: Private/ Voluntary | D148: Residential special school (>295 days/year) | E148: The safety of children and young people | F148: 1 | G148: 0 | H148: 2 | I148: 0 | J148: 0
A149: AllPrivate/ VoluntaryResidential special school (>295 days/year)The safety of children and young people2 | B149: All | C149: Private/ Voluntary | D149: Residential special school (>295 days/year) | E149: The safety of children and young people | F149: 2 | G149: 0 | H149: 4 | I149: 4 | J149: 2
A150: AllPrivate/ VoluntaryResidential special school (>295 days/year)The safety of children and young people3 | B150: All | C150: Private/ Voluntary | D150: Residential special school (>295 days/year) | E150: The safety of children and young people | F150: 3 | G150: 3 | H150: 5 | I150: 2 | J150: 0
A151: AllPrivate/ VoluntaryResidential special school (>295 days/year)The safety of children and young people4 | B151: All | C151: Private/ Voluntary | D151: Residential special school (>295 days/year) | E151: The safety of children and young people | F151: 4 | G151: 3 | H151: 11 | I151: 6 | J151: 2
A152: Barking & DagenhamAllChildren's HomeLeadership and Management2 | B152: Barking & Dagenham | C152: All | D152: Children's Home | E152: Leadership and Management | F152: 2 | G152: 0 | H152: 1 | I152: 0 | J152: 0 | K152: 0
A153: Barking & DagenhamAllChildren's HomeLeadership and Management3 | B153: Barking & Dagenham | C153: All | D153: Children's Home | E153: Leadership and Management | F153: 3 | G153: 0 | H153: 0 | I153: 1 | J153: 0 | K153: 0
A154: Barking & DagenhamAllChildren's HomeLeadership and Management4 | B154: Barking & Dagenham | C154: All | D154: Children's Home | E154: Leadership and Management | F154: 4 | G154: 0 | H154: 1 | I154: 1 | J154: 0 | K154: 0
A155: Barking & DagenhamAllChildren's HomeOutcomes for children and young people2 | B155: Barking & Dagenham | C155: All | D155: Children's Home | E155: Outcomes for children and young people | F155: 2 | G155: 1 | H155: 0 | I155: 0 | J155: 0 | K155: 0
A156: Barking & DagenhamAllChildren's HomeOutcomes for children and young people3 | B156: Barking & Dagenham | C156: All | D156: Children's Home | E156: Outcomes for children and young people | F156: 3 | G156: 0 | H156: 1 | I156: 0 | J156: 0 | K156: 0
A157: Barking & DagenhamAllChildren's HomeOutcomes for children and young people4 | B157: Barking & Dagenham | C157: All | D157: Children's Home | E157: Outcomes for children and young people | F157: 4 | G157: 1 | H157: 1 | I157: 0 | J157: 0 | K157: 0
A158: Barking & DagenhamAllChildren's HomeOverall effectiveness2 | B158: Barking & Dagenham | C158: All | D158: Children's Home | E158: Overall effectiveness | F158: 2 | G158: 0 | H158: 1 | I158: 0 | J158: 0 | K158: 0
A159: Barking & DagenhamAllChildren's HomeOverall effectiveness3 | B159: Barking & Dagenham | C159: All | D159: Children's Home | E159: Overall effectiveness | F159: 3 | G159: 0 | H159: 0 | I159: 1 | J159: 0 | K159: 0
A160: Barking & DagenhamAllChildren's HomeOverall effectiveness4 | B160: Barking & Dagenham | C160: All | D160: Children's Home | E160: Overall effectiveness | F160: 4 | G160: 0 | H160: 1 | I160: 1 | J160: 0 | K160: 0
A161: Barking & DagenhamAllChildren's HomeQuality of service2 | B161: Barking & Dagenham | C161: All | D161: Children's Home | E161: Quality of service | F161: 2 | G161: 0 | H161: 1 | I161: 0 | J161: 0 | K161: 0
A162: Barking & DagenhamAllChildren's HomeQuality of service3 | B162: Barking & Dagenham | C162: All | D162: Children's Home | E162: Quality of service | F162: 3 | G162: 0 | H162: 1 | I162: 0 | J162: 0 | K162: 0
A163: Barking & DagenhamAllChildren's HomeQuality of service4 | B163: Barking & Dagenham | C163: All | D163: Children's Home | E163: Quality of service | F163: 4 | G163: 0 | H163: 2 | I163: 0 | J163: 0 | K163: 0
A164: Barking & DagenhamAllChildren's HomeThe safety of children and young people2 | B164: Barking & Dagenham | C164: All | D164: Children's Home | E164: The safety of children and young people | F164: 2 | G164: 1 | H164: 0 | I164: 0 | J164: 0 | K164: 0
A165: Barking & DagenhamAllChildren's HomeThe safety of children and young people3 | B165: Barking & Dagenham | C165: All | D165: Children's Home | E165: The safety of children and young people | F165: 3 | G165: 0 | H165: 0 | I165: 1 | J165: 0 | K165: 0
A166: Barking & DagenhamAllChildren's HomeThe safety of children and young people4 | B166: Barking & Dagenham | C166: All | D166: Children's Home | E166: The safety of children and young people | F166: 4 | G166: 1 | H166: 0 | I166: 1 | J166: 0 | K166: 0
A167: Barking & DagenhamPrivate/ VoluntaryChildren's HomeLeadership and Management2 | B167: Barking & Dagenham | C167: Private/ Voluntary | D167: Children's Home | E167: Leadership and Management | F167: 2 | G167: 0 | H167: 1 | I167: 0 | J167: 0 | K167: 0
A168: Barking & DagenhamPrivate/ VoluntaryChildren's HomeLeadership and Management3 | B168: Barking & Dagenham | C168: Private/ Voluntary | D168: Children's Home | E168: Leadership and Management | F168: 3 | G168: 0 | H168: 0 | I168: 1 | J168: 0 | K168: 0
A169: Barking & DagenhamPrivate/ VoluntaryChildren's HomeLeadership and Management4 | B169: Barking & Dagenham | C169: Private/ Voluntary | D169: Children's Home | E169: Leadership and Management | F169: 4 | G169: 0 | H169: 1 | I169: 1 | J169: 0 | K169: 0
A170: Barking & DagenhamPrivate/ VoluntaryChildren's HomeOutcomes for children and young people2 | B170: Barking & Dagenham | C170: Private/ Voluntary | D170: Children's Home | E170: Outcomes for children and young people | F170: 2 | G170: 1 | H170: 0 | I170: 0 | J170: 0 | K170: 0
A171: Barking & DagenhamPrivate/ VoluntaryChildren's HomeOutcomes for children and young people3 | B171: Barking & Dagenham | C171: Private/ Voluntary | D171: Children's Home | E171: Outcomes for children and young people | F171: 3 | G171: 0 | H171: 1 | I171: 0 | J171: 0 | K171: 0
A172: Barking & DagenhamPrivate/ VoluntaryChildren's HomeOutcomes for children and young people4 | B172: Barking & Dagenham | C172: Private/ Voluntary | D172: Children's Home | E172: Outcomes for children and young people | F172: 4 | G172: 1 | H172: 1 | I172: 0 | J172: 0 | K172: 0
A173: Barking & DagenhamPrivate/ VoluntaryChildren's HomeOverall effectiveness2 | B173: Barking & Dagenham | C173: Private/ Voluntary | D173: Children's Home | E173: Overall effectiveness | F173: 2 | G173: 0 | H173: 1 | I173: 0 | J173: 0 | K173: 0
A174: Barking & DagenhamPrivate/ VoluntaryChildren's HomeOverall effectiveness3 | B174: Barking & Dagenham | C174: Private/ Voluntary | D174: Children's Home | E174: Overall effectiveness | F174: 3 | G174: 0 | H174: 0 | I174: 1 | J174: 0 | K174: 0
A175: Barking & DagenhamPrivate/ VoluntaryChildren's HomeOverall effectiveness4 | B175: Barking & Dagenham | C175: Private/ Voluntary | D175: Children's Home | E175: Overall effectiveness | F175: 4 | G175: 0 | H175: 1 | I175: 1 | J175: 0 | K175: 0
A176: Barking & DagenhamPrivate/ VoluntaryChildren's HomeQuality of service2 | B176: Barking & Dagenham | C176: Private/ Voluntary | D176: Children's Home | E176: Quality of service | F176: 2 | G176: 0 | H176: 1 | I176: 0 | J176: 0 | K176: 0
A177: Barking & DagenhamPrivate/ VoluntaryChildren's HomeQuality of service3 | B177: Barking & Dagenham | C177: Private/ Voluntary | D177: Children's Home | E177: Quality of service | F177: 3 | G177: 0 | H177: 1 | I177: 0 | J177: 0 | K177: 0
A178: Barking & DagenhamPrivate/ VoluntaryChildren's HomeQuality of service4 | B178: Barking & Dagenham | C178: Private/ Voluntary | D178: Children's Home | E178: Quality of service | F178: 4 | G178: 0 | H178: 2 | I178: 0 | J178: 0 | K178: 0
A179: Barking & DagenhamPrivate/ VoluntaryChildren's HomeThe safety of children and young people2 | B179: Barking & Dagenham | C179: Private/ Voluntary | D179: Children's Home | E179: The safety of children and young people | F179: 2 | G179: 1 | H179: 0 | I179: 0 | J179: 0 | K179: 0
A180: Barking & DagenhamPrivate/ VoluntaryChildren's HomeThe safety of children and young people3 | B180: Barking & Dagenham | C180: Private/ Voluntary | D180: Children's Home | E180: The safety of children and young people | F180: 3 | G180: 0 | H180: 0 | I180: 1 | J180: 0 | K180: 0
A181: Barking & DagenhamPrivate/ VoluntaryChildren's HomeThe safety of children and young people4 | B181: Barking & Dagenham | C181: Private/ Voluntary | D181: Children's Home | E181: The safety of children and young people | F181: 4 | G181: 1 | H181: 0 | I181: 1 | J181: 0 | K181: 0
A182: BarnetAllChildren's HomeLeadership and Management2 | B182: Barnet | C182: All | D182: Children's Home | E182: Leadership and Management | F182: 2 | G182: 0 | H182: 1 | I182: 0 | J182: 0 | K182: 0
A183: BarnetAllChildren's HomeLeadership and Management4 | B183: Barnet | C183: All | D183: Children's Home | E183: Leadership and Management | F183: 4 | G183: 0 | H183: 1 | I183: 0 | J183: 0 | K183: 0
A184: BarnetAllChildren's HomeOutcomes for children and young people2 | B184: Barnet | C184: All | D184: Children's Home | E184: Outcomes for children and young people | F184: 2 | G184: 0 | H184: 1 | I184: 0 | J184: 0 | K184: 0
A185: BarnetAllChildren's HomeOutcomes for children and young people4 | B185: Barnet | C185: All | D185: Children's Home | E185: Outcomes for children and young people | F185: 4 | G185: 0 | H185: 1 | I185: 0 | J185: 0 | K185: 0
A186: BarnetAllChildren's HomeOverall effectiveness2 | B186: Barnet | C186: All | D186: Children's Home | E186: Overall effectiveness | F186: 2 | G186: 0 | H186: 1 | I186: 0 | J186: 0 | K186: 0
A187: BarnetAllChildren's HomeOverall effectiveness4 | B187: Barnet | C187: All | D187: Children's Home | E187: Overall effectiveness | F187: 4 | G187: 0 | H187: 1 | I187: 0 | J187: 0 | K187: 0
A188: BarnetAllChildren's HomeQuality of service2 | B188: Barnet | C188: All | D188: Children's Home | E188: Quality of service | F188: 2 | G188: 0 | H188: 1 | I188: 0 | J188: 0 | K188: 0
A189: BarnetAllChildren's HomeQuality of service4 | B189: Barnet | C189: All | D189: Children's Home | E189: Quality of service | F189: 4 | G189: 0 | H189: 1 | I189: 0 | J189: 0 | K189: 0
A190: BarnetAllChildren's HomeThe safety of children and young people2 | B190: Barnet | C190: All | D190: Children's Home | E190: The safety of children and young people | F190: 2 | G190: 0 | H190: 1 | I190: 0 | J190: 0 | K190: 0
A191: BarnetAllChildren's HomeThe safety of children and young people4 | B191: Barnet | C191: All | D191: Children's Home | E191: The safety of children and young people | F191: 4 | G191: 0 | H191: 1 | I191: 0 | J191: 0 | K191: 0
A192: BarnetPrivate/ VoluntaryChildren's HomeLeadership and Management2 | B192: Barnet | C192: Private/ Voluntary | D192: Children's Home | E192: Leadership and Management | F192: 2 | G192: 0 | H192: 1 | I192: 0 | J192: 0 | K192: 0
A193: BarnetPrivate/ VoluntaryChildren's HomeLeadership and Management4 | B193: Barnet | C193: Private/ Voluntary | D193: Children's Home | E193: Leadership and Management | F193: 4 | G193: 0 | H193: 1 | I193: 0 | J193: 0 | K193: 0
A194: BarnetPrivate/ VoluntaryChildren's HomeOutcomes for children and young people2 | B194: Barnet | C194: Private/ Voluntary | D194: Children's Home | E194: Outcomes for children and young people | F194: 2 | G194: 0 | H194: 1 | I194: 0 | J194: 0 | K194: 0
A195: BarnetPrivate/ VoluntaryChildren's HomeOutcomes for children and young people4 | B195: Barnet | C195: Private/ Voluntary | D195: Children's Home | E195: Outcomes for children and young people | F195: 4 | G195: 0 | H195: 1 | I195: 0 | J195: 0 | K195: 0
A196: BarnetPrivate/ VoluntaryChildren's HomeOverall effectiveness2 | B196: Barnet | C196: Private/ Voluntary | D196: Children's Home | E196: Overall effectiveness | F196: 2 | G196: 0 | H196: 1 | I196: 0 | J196: 0 | K196: 0
A197: BarnetPrivate/ VoluntaryChildren's HomeOverall effectiveness4 | B197: Barnet | C197: Private/ Voluntary | D197: Children's Home | E197: Overall effectiveness | F197: 4 | G197: 0 | H197: 1 | I197: 0 | J197: 0 | K197: 0
A198: BarnetPrivate/ VoluntaryChildren's HomeQuality of service2 | B198: Barnet | C198: Private/ Voluntary | D198: Children's Home | E198: Quality of service | F198: 2 | G198: 0 | H198: 1 | I198: 0 | J198: 0 | K198: 0
A199: BarnetPrivate/ VoluntaryChildren's HomeQuality of service4 | B199: Barnet | C199: Private/ Voluntary | D199: Children's Home | E199: Quality of service | F199: 4 | G199: 0 | H199: 1 | I199: 0 | J199: 0 | K199: 0
A200: BarnetPrivate/ VoluntaryChildren's HomeThe safety of children and young people2 | B200: Barnet | C200: Private/ Voluntary | D200: Children's Home | E200: The safety of children and young people | F200: 2 | G200: 0 | H200: 1 | I200: 0 | J200: 0 | K200: 0
... 4716 more rows

Sheet Table 4
A1: =B2 -> Table 4: Overall effectiveness of children’s homes at full inspections between 1 April 2012 - 30 June 2012 by region and local authority (final)¹ ²
B2: =IF(ISERROR(VLOOKUP(D5,Ranges!F1:G12,2,0)), "Table 4: Overall effectiveness of children’s homes at full inspections between "&D5 & " by region and local authority (final)"&CHAR(185) &" "&CHAR(178),"Table 4: Overall effectiveness of children’s homes at full inspections in "&D5 & ", by region and local authority (final)"&CHAR(185)&" "&CHAR(178)) -> Table 4: Overall effectiveness of children’s homes at full inspections between 1 April 2012 - 30 June 2012 by region and local authority (final)¹ ²
B5: Select period: | D5: 1 April 2012 - 30 June 2012
B6: =VLOOKUP(D5,Periods,2,0) -> 4
B7: Select provider type: | D7: Children's home
B9: Select sector: | D9: All
D12: Total number inspected | F12: Outstanding | H12: Good | J12: Adequate | L12: Inadequate
F13: 6 | H13: 7 | J13: 8 | L13: 9
A14: England | B14: England | D14: =F14+H14+J14+L14 -> 607 | F14: =F16+F30+F55+F72+F83+F99+F112+F147+F168+F186 -> 51 | H14: =H16+H30+H55+H72+H83+H99+H112+H147+H168+H186 -> 313 | J14: =J16+J30+J55+J72+J83+J99+J112+J147+J168+J186 -> 195 | L14: =L16+L30+L55+L72+L83+L99+L112+L147+L168+L186 -> 48
A16: North East | B16: North East | D16: =F16+H16+J16+L16 -> 46 | F16: =SUM(F17:F28) -> 0 | H16: =SUM(H17:H28) -> 30 | J16: =SUM(J17:J28) -> 13 | L16: =SUM(L17:L28) -> 3
A17: Darlington | B17: Darlington | D17: 7 | F17: =IF(ISERROR(VLOOKUP($A17&$D$9&$D$7&$B$6,Table4_data,F$13,0)),0,VLOOKUP($A17&$D$9&$D$7&$B$6,Table4_data,F$13,0)) -> 0 | H17: =IF(ISERROR(VLOOKUP($A17&$D$9&$D$7&$B$6,Table4_data,H$13,0)),0,VLOOKUP($A17&$D$9&$D$7&$B$6,Table4_data,H$13,0)) -> 4 | J17: =IF(ISERROR(VLOOKUP($A17&$D$9&$D$7&$B$6,Table4_data,J$13,0)),0,VLOOKUP($A17&$D$9&$D$7&$B$6,Table4_data,J$13,0)) -> 2 | L17: =IF(ISERROR(VLOOKUP($A17&$D$9&$D$7&$B$6,Table4_data,L$13,0)),0,VLOOKUP($A17&$D$9&$D$7&$B$6,Table4_data,L$13,0)) -> 1
A18: Durham | B18: Durham | D18: 14 | F18: 0 | H18: 13 | J18: 0 | L18: 1
A19: Gateshead | B19: Gateshead | D19: 1 | F19: 0 | H19: 1 | J19: 0 | L19: 0
A20: Hartlepool | B20: Hartlepool | D20: 0 | F20: 0 | H20: 0 | J20: 0 | L20: 0
A21: Middlesbrough | B21: Middlesbrough | D21: 4 | F21: 0 | H21: 2 | J21: 2 | L21: 0
A22: Newcastle upon Tyne | B22: Newcastle upon Tyne | D22: 2 | F22: 0 | H22: 1 | J22: 1 | L22: 0
A23: North Tyneside | B23: North Tyneside | D23: 1 | F23: 0 | H23: 1 | J23: 0 | L23: 0
A24: Northumberland | B24: Northumberland | D24: 7 | F24: 0 | H24: 2 | J24: 4 | L24: 1
A25: Redcar & Cleveland | B25: Redcar & Cleveland | D25: 0 | F25: 0 | H25: 0 | J25: 0 | L25: 0
A26: South Tyneside | B26: South Tyneside | D26: 1 | F26: 0 | H26: 1 | J26: 0 | L26: 0
A27: Stockton-on-Tees | B27: Stockton-on-Tees | D27: 2 | F27: 0 | H27: 1 | J27: 1 | L27: 0
A28: Sunderland | B28: Sunderland | D28: 7 | F28: 0 | H28: 4 | J28: 3 | L28: 0
A30: North West | B30: North West | D30: 126 | F30: =SUM(F31:F53) -> 10 | H30: =SUM(H31:H53) -> 64 | J30: =SUM(J31:J53) -> 42 | L30: =SUM(L31:L53) -> 10
A31: Blackburn with Darwen | B31: Blackburn with Darwen | D31: 1 | F31: =IF(ISERROR(VLOOKUP($A31&$D$9&$D$7&$B$6,Table4_data,F$13,0)),0,VLOOKUP($A31&$D$9&$D$7&$B$6,Table4_data,F$13,0)) -> 1 | H31: =IF(ISERROR(VLOOKUP($A31&$D$9&$D$7&$B$6,Table4_data,H$13,0)),0,VLOOKUP($A31&$D$9&$D$7&$B$6,Table4_data,H$13,0)) -> 0 | J31: =IF(ISERROR(VLOOKUP($A31&$D$9&$D$7&$B$6,Table4_data,J$13,0)),0,VLOOKUP($A31&$D$9&$D$7&$B$6,Table4_data,J$13,0)) -> 0 | L31: =IF(ISERROR(VLOOKUP($A31&$D$9&$D$7&$B$6,Table4_data,L$13,0)),0,VLOOKUP($A31&$D$9&$D$7&$B$6,Table4_data,L$13,0)) -> 0
A32: Blackpool | B32: Blackpool | D32: 4 | F32: 1 | H32: 0 | J32: 2 | L32: 1
A33: Bolton | B33: Bolton | D33: 5 | F33: 0 | H33: 4 | J33: 1 | L33: 0
A34: Bury | B34: Bury | D34: 1 | F34: 0 | H34: 1 | J34: 0 | L34: 0
A35: Cheshire East | B35: Cheshire East | D35: 1 | F35: 1 | H35: 0 | J35: 0 | L35: 0
A36: Cheshire West and Chester | B36: Cheshire West and Chester | D36: 1 | F36: 0 | H36: 1 | J36: 0 | L36: 0
A37: Cumbria | B37: Cumbria | D37: 4 | F37: 0 | H37: 1 | J37: 3 | L37: 0
A38: Halton | B38: Halton | D38: 3 | F38: 0 | H38: 2 | J38: 1 | L38: 0
A39: Knowsley | B39: Knowsley | D39: 4 | F39: 0 | H39: 2 | J39: 2 | L39: 0
A40: Lancashire | B40: Lancashire | D40: 18 | F40: 0 | H40: 12 | J40: 4 | L40: 2
A41: Liverpool | B41: Liverpool | D41: 6 | F41: 1 | H41: 2 | J41: 2 | L41: 1
A42: Manchester | B42: Manchester | D42: 9 | F42: 0 | H42: 5 | J42: 3 | L42: 1
A43: Oldham | B43: Oldham | D43: 4 | F43: 3 | H43: 0 | J43: 0 | L43: 1
A44: Rochdale | B44: Rochdale | D44: 15 | F44: 1 | H44: 7 | J44: 5 | L44: 2
A45: Salford | B45: Salford | D45: 6 | F45: 0 | H45: 3 | J45: 3 | L45: 0
A46: Sefton | B46: Sefton | D46: 6 | F46: 0 | H46: 3 | J46: 3 | L46: 0
A47: St. Helens | B47: St. Helens | D47: 6 | F47: 0 | H47: 3 | J47: 3 | L47: 0
A48: Stockport | B48: Stockport | D48: 9 | F48: 0 | H48: 5 | J48: 4 | L48: 0
A49: Tameside | B49: Tameside | D49: 4 | F49: 1 | H49: 3 | J49: 0 | L49: 0
A50: Trafford | B50: Trafford | D50: 4 | F50: 0 | H50: 3 | J50: 1 | L50: 0
A51: Warrington | B51: Warrington | D51: 7 | F51: 1 | H51: 3 | J51: 2 | L51: 1
A52: Wigan | B52: Wigan | D52: 5 | F52: 0 | H52: 1 | J52: 3 | L52: 1
A53: Wirral | B53: Wirral | D53: 3 | F53: 0 | H53: 3 | J53: 0 | L53: 0
A55: Yorkshire and the Humber | B55: Yorkshire and The Humber | D55: 59 | F55: =SUM(F56:F70) -> 2 | H55: =SUM(H56:H70) -> 26 | J55: =SUM(J56:J70) -> 27 | L55: =SUM(L56:L70) -> 4
A56: Barnsley | B56: Barnsley | D56: 8 | F56: =IF(ISERROR(VLOOKUP($A56&$D$9&$D$7&$B$6,Table4_data,F$13,0)),0,VLOOKUP($A56&$D$9&$D$7&$B$6,Table4_data,F$13,0)) -> 2 | H56: =IF(ISERROR(VLOOKUP($A56&$D$9&$D$7&$B$6,Table4_data,H$13,0)),0,VLOOKUP($A56&$D$9&$D$7&$B$6,Table4_data,H$13,0)) -> 3 | J56: =IF(ISERROR(VLOOKUP($A56&$D$9&$D$7&$B$6,Table4_data,J$13,0)),0,VLOOKUP($A56&$D$9&$D$7&$B$6,Table4_data,J$13,0)) -> 3 | L56: =IF(ISERROR(VLOOKUP($A56&$D$9&$D$7&$B$6,Table4_data,L$13,0)),0,VLOOKUP($A56&$D$9&$D$7&$B$6,Table4_data,L$13,0)) -> 0
A57: Bradford | B57: Bradford | D57: 4 | F57: 0 | H57: 3 | J57: 0 | L57: 1
A58: Calderdale | B58: Calderdale | D58: 4 | F58: 0 | H58: 3 | J58: 1 | L58: 0
A59: Doncaster | B59: Doncaster | D59: 4 | F59: 0 | H59: 2 | J59: 2 | L59: 0
A60: East Riding of Yorkshire | B60: East Riding of Yorkshire | D60: 6 | F60: 0 | H60: 2 | J60: 4 | L60: 0
A61: Kingston upon Hull | B61: Kingston upon Hull | D61: 3 | F61: 0 | H61: 1 | J61: 2 | L61: 0
A62: Kirklees | B62: Kirklees | D62: 5 | F62: 0 | H62: 2 | J62: 2 | L62: 1
A63: Leeds | B63: Leeds | D63: 10 | F63: 0 | H63: 2 | J63: 7 | L63: 1
A64: North East Lincolnshire | B64: North East Lincolnshire | D64: 2 | F64: 0 | H64: 1 | J64: 1 | L64: 0
A65: North Lincolnshire | B65: North Lincolnshire | D65: 1 | F65: 0 | H65: 1 | J65: 0 | L65: 0
A66: North Yorkshire | B66: North Yorkshire | D66: 2 | F66: 0 | H66: 0 | J66: 2 | L66: 0
A67: Rotherham | B67: Rotherham | D67: 1 | F67: 0 | H67: 1 | J67: 0 | L67: 0
A68: Sheffield | B68: Sheffield | D68: 4 | F68: 0 | H68: 1 | J68: 3 | L68: 0
A69: Wakefield | B69: Wakefield | D69: 5 | F69: 0 | H69: 4 | J69: 0 | L69: 1
A70: York | B70: York | D70: 0 | F70: 0 | H70: 0 | J70: 0 | L70: 0
A72: East Midlands | B72: East Midlands | D72: 49 | F72: =SUM(F73:F81) -> 7 | H72: =SUM(H73:H81) -> 23 | J72: =SUM(J73:J81) -> 11 | L72: =SUM(L73:L81) -> 8
A73: Derby city | B73: Derby City | D73: 4 | F73: =IF(ISERROR(VLOOKUP($A73&$D$9&$D$7&$B$6,Table4_data,F$13,0)),0,VLOOKUP($A73&$D$9&$D$7&$B$6,Table4_data,F$13,0)) -> 0 | H73: =IF(ISERROR(VLOOKUP($A73&$D$9&$D$7&$B$6,Table4_data,H$13,0)),0,VLOOKUP($A73&$D$9&$D$7&$B$6,Table4_data,H$13,0)) -> 0 | J73: =IF(ISERROR(VLOOKUP($A73&$D$9&$D$7&$B$6,Table4_data,J$13,0)),0,VLOOKUP($A73&$D$9&$D$7&$B$6,Table4_data,J$13,0)) -> 1 | L73: =IF(ISERROR(VLOOKUP($A73&$D$9&$D$7&$B$6,Table4_data,L$13,0)),0,VLOOKUP($A73&$D$9&$D$7&$B$6,Table4_data,L$13,0)) -> 3
A74: Derbyshire | B74: Derbyshire | D74: 9 | F74: 0 | H74: 7 | J74: 1 | L74: 1
A75: Leicester | B75: Leicester City | D75: 0 | F75: 0 | H75: 0 | J75: 0 | L75: 0
A76: Leicestershire | B76: Leicestershire | D76: 11 | F76: 2 | H76: 6 | J76: 3 | L76: 0
A77: Lincolnshire | B77: Lincolnshire | D77: 9 | F77: 2 | H77: 5 | J77: 2 | L77: 0
A78: Northamptonshire | B78: Northamptonshire | D78: 5 | F78: 0 | H78: 4 | J78: 1 | L78: 0
A79: Nottingham City | B79: Nottingham City | D79: =F79+H79+J79+L79 -> 1 | F79: 1 | H79: 0 | J79: 0 | L79: 0
A80: Nottinghamshire | B80: Nottinghamshire | D80: 10 | F80: 2 | H80: 1 | J80: 3 | L80: 4
A81: Rutland | B81: Rutland | D81: 0 | F81: 0 | H81: 0 | J81: 0 | L81: 0
A83: West Midlands | B83: West Midlands | D83: 100 | F83: =SUM(F84:F97) -> 12 | H83: =SUM(H84:H97) -> 58 | J83: =SUM(J84:J97) -> 24 | L83: =SUM(L84:L97) -> 6
A84: Birmingham | B84: Birmingham | D84: 17 | F84: =IF(ISERROR(VLOOKUP($A84&$D$9&$D$7&$B$6,Table4_data,F$13,0)),0,VLOOKUP($A84&$D$9&$D$7&$B$6,Table4_data,F$13,0)) -> 3 | H84: =IF(ISERROR(VLOOKUP($A84&$D$9&$D$7&$B$6,Table4_data,H$13,0)),0,VLOOKUP($A84&$D$9&$D$7&$B$6,Table4_data,H$13,0)) -> 7 | J84: =IF(ISERROR(VLOOKUP($A84&$D$9&$D$7&$B$6,Table4_data,J$13,0)),0,VLOOKUP($A84&$D$9&$D$7&$B$6,Table4_data,J$13,0)) -> 7 | L84: =IF(ISERROR(VLOOKUP($A84&$D$9&$D$7&$B$6,Table4_data,L$13,0)),0,VLOOKUP($A84&$D$9&$D$7&$B$6,Table4_data,L$13,0)) -> 0
A85: Coventry | B85: Coventry | D85: 0 | F85: 0 | H85: 0 | J85: 0 | L85: 0
A86: Dudley | B86: Dudley | D86: 4 | F86: 0 | H86: 0 | J86: 2 | L86: 2
A87: Herefordshire | B87: Herefordshire | D87: 6 | F87: 0 | H87: 5 | J87: 1 | L87: 0
A88: Sandwell | B88: Sandwell | D88: 4 | F88: 0 | H88: 0 | J88: 3 | L88: 1
A89: Shropshire | B89: Shropshire | D89: 25 | F89: 4 | H89: 17 | J89: 3 | L89: 1
A90: Solihull | B90: Solihull | D90: 2 | F90: 0 | H90: 2 | J90: 0 | L90: 0
A91: Staffordshire | B91: Staffordshire | D91: 20 | F91: 1 | H91: 13 | J91: 5 | L91: 1
A92: Stoke-on-Trent | B92: Stoke-on-Trent | D92: 7 | F92: 1 | H92: 6 | J92: 0 | L92: 0
A93: Telford & Wrekin | B93: Telford & Wrekin | D93: 8 | F93: 2 | H93: 4 | J93: 1 | L93: 1
A94: Walsall | B94: Walsall | D94: 1 | F94: 0 | H94: 0 | J94: 1 | L94: 0
A95: Warwickshire | B95: Warwickshire | D95: 0 | F95: 0 | H95: 0 | J95: 0 | L95: 0
A96: Wolverhampton | B96: Wolverhampton | D96: 4 | F96: 0 | H96: 3 | J96: 1 | L96: 0
A97: Worcestershire | B97: Worcestershire | D97: 2 | F97: 1 | H97: 1 | J97: 0 | L97: 0
A99: East of England | B99: East of England | D99: 34 | F99: =SUM(F100:F110) -> 4 | H99: =SUM(H100:H110) -> 16 | J99: =SUM(J100:J110) -> 10 | L99: =SUM(L100:L110) -> 4
A100: Bedford Borough | B100: Bedford Borough | D100: 1 | F100: =IF(ISERROR(VLOOKUP($A100&$D$9&$D$7&$B$6,Table4_data,F$13,0)),0,VLOOKUP($A100&$D$9&$D$7&$B$6,Table4_data,F$13,0)) -> 1 | H100: =IF(ISERROR(VLOOKUP($A100&$D$9&$D$7&$B$6,Table4_data,H$13,0)),0,VLOOKUP($A100&$D$9&$D$7&$B$6,Table4_data,H$13,0)) -> 0 | J100: =IF(ISERROR(VLOOKUP($A100&$D$9&$D$7&$B$6,Table4_data,J$13,0)),0,VLOOKUP($A100&$D$9&$D$7&$B$6,Table4_data,J$13,0)) -> 0 | L100: =IF(ISERROR(VLOOKUP($A100&$D$9&$D$7&$B$6,Table4_data,L$13,0)),0,VLOOKUP($A100&$D$9&$D$7&$B$6,Table4_data,L$13,0)) -> 0
A101: Cambridgeshire | B101: Cambridgeshire | D101: 7 | F101: 0 | H101: 5 | J101: 1 | L101: 1
A102: Central Bedfordshire | B102: Central Bedfordshire | D102: 1 | F102: 0 | H102: 0 | J102: 0 | L102: 1
A103: Essex | B103: Essex | D103: 5 | F103: 1 | H103: 1 | J103: 2 | L103: 1
A104: Hertfordshire | B104: Hertfordshire | D104: 3 | F104: 0 | H104: 1 | J104: 1 | L104: 1
A105: Luton | B105: Luton | D105: 1 | F105: 0 | H105: 1 | J105: 0 | L105: 0
A106: Norfolk | B106: Norfolk | D106: 10 | F106: 2 | H106: 5 | J106: 3 | L106: 0
A107: Peterborough | B107: Peterborough | D107: 3 | F107: 0 | H107: 2 | J107: 1 | L107: 0
A108: Southend | B108: Southend | D108: 0 | F108: 0 | H108: 0 | J108: 0 | L108: 0
A109: Suffolk | B109: Suffolk | D109: 3 | F109: 0 | H109: 1 | J109: 2 | L109: 0
A110: Thurrock | B110: Thurrock | D110: 0 | F110: 0 | H110: 0 | J110: 0 | L110: 0
A112: London | B112: London | D112: 44 | F112: =SUM(F113:F145) -> 1 | H112: =SUM(H113:H145) -> 18 | J112: =SUM(J113:J145) -> 22 | L112: =SUM(L113:L145) -> 3
A113: Barking & Dagenham | B113: Barking & Dagenham | D113: 2 | F113: =IF(ISERROR(VLOOKUP($A113&$D$9&$D$7&$B$6,Table4_data,F$13,0)),0,VLOOKUP($A113&$D$9&$D$7&$B$6,Table4_data,F$13,0)) -> 0 | H113: =IF(ISERROR(VLOOKUP($A113&$D$9&$D$7&$B$6,Table4_data,H$13,0)),0,VLOOKUP($A113&$D$9&$D$7&$B$6,Table4_data,H$13,0)) -> 1 | J113: =IF(ISERROR(VLOOKUP($A113&$D$9&$D$7&$B$6,Table4_data,J$13,0)),0,VLOOKUP($A113&$D$9&$D$7&$B$6,Table4_data,J$13,0)) -> 1 | L113: =IF(ISERROR(VLOOKUP($A113&$D$9&$D$7&$B$6,Table4_data,L$13,0)),0,VLOOKUP($A113&$D$9&$D$7&$B$6,Table4_data,L$13,0)) -> 0
A114: Barnet | B114: Barnet | D114: 1 | F114: 0 | H114: 1 | J114: 0 | L114: 0
A115: Bexley | B115: Bexley | D115: 2 | F115: 0 | H115: 0 | J115: 1 | L115: 1
A116: Brent | B116: Brent | D116: 2 | F116: 0 | H116: 0 | J116: 2 | L116: 0
A117: Bromley | B117: Bromley | D117: 0 | F117: 0 | H117: 0 | J117: 0 | L117: 0
A118: Camden | B118: Camden | D118: 0 | F118: 0 | H118: 0 | J118: 0 | L118: 0
A119: City of London | B119: City of London | D119: 0 | F119: 0 | H119: 0 | J119: 0 | L119: 0
A120: Croydon | B120: Croydon | D120: 3 | F120: 0 | H120: 0 | J120: 2 | L120: 1
A121: Ealing | B121: Ealing | D121: 2 | F121: 0 | H121: 0 | J121: 2 | L121: 0
A122: Enfield | B122: Enfield | D122: 2 | F122: 0 | H122: 2 | J122: 0 | L122: 0
A123: Greenwich | B123: Greenwich | D123: 2 | F123: 1 | H123: 1 | J123: 0 | L123: 0
A124: Hackney | B124: Hackney | D124: 0 | F124: 0 | H124: 0 | J124: 0 | L124: 0
A125: Hammersmith & Fulham | B125: Hammersmith & Fulham | D125: 1 | F125: 0 | H125: 0 | J125: 1 | L125: 0
A126: Haringey | B126: Haringey | D126: 4 | F126: 0 | H126: 0 | J126: 4 | L126: 0
A127: Harrow | B127: Harrow | D127: 1 | F127: 0 | H127: 1 | J127: 0 | L127: 0
A128: Havering | B128: Havering | D128: 0 | F128: 0 | H128: 0 | J128: 0 | L128: 0
A129: Hillingdon | B129: Hillingdon | D129: 3 | F129: 0 | H129: 2 | J129: 1 | L129: 0
A130: Hounslow | B130: Hounslow | D130: 1 | F130: 0 | H130: 1 | J130: 0 | L130: 0
A131: Islington | B131: Islington | D131: 0 | F131: 0 | H131: 0 | J131: 0 | L131: 0
A132: Kensington and Chelsea | B132: Kensington and Chelsea | D132: 0 | F132: 0 | H132: 0 | J132: 0 | L132: 0
A133: Kingston upon Thames | B133: Kingston upon Thames | D133: 0 | F133: 0 | H133: 0 | J133: 0 | L133: 0
A134: Lambeth | B134: Lambeth | D134: 0 | F134: 0 | H134: 0 | J134: 0 | L134: 0
A135: Lewisham | B135: Lewisham | D135: 1 | F135: 0 | H135: 1 | J135: 0 | L135: 0
A136: Merton | B136: Merton | D136: 2 | F136: 0 | H136: 1 | J136: 1 | L136: 0
A137: Newham | B137: Newham | D137: 4 | F137: 0 | H137: 1 | J137: 3 | L137: 0
A138: Redbridge | B138: Redbridge | D138: 4 | F138: 0 | H138: 2 | J138: 2 | L138: 0
A139: Richmond upon Thames | B139: Richmond upon Thames | D139: 0 | F139: 0 | H139: 0 | J139: 0 | L139: 0
A140: Southwark | B140: Southwark | D140: 1 | F140: 0 | H140: 1 | J140: 0 | L140: 0
A141: Sutton | B141: Sutton | D141: 0 | F141: 0 | H141: 0 | J141: 0 | L141: 0
A142: Tower Hamlets | B142: Tower Hamlets | D142: 1 | F142: 0 | H142: 1 | J142: 0 | L142: 0
A143: Waltham Forest | B143: Waltham Forest | D143: =F143+H143+J143+L143 -> 4 | F143: 0 | H143: 2 | J143: 1 | L143: 1
A144: Wandsworth | B144: Wandsworth | D144: 1 | F144: 0 | H144: 0 | J144: 1 | L144: 0
A145: Westminster | B145: Westminster | D145: 0 | F145: 0 | H145: 0 | J145: 0 | L145: 0
A147: South East | B147: South East | D147: 83 | F147: =SUM(F148:F166) -> 13 | H147: =SUM(H148:H166) -> 47 | J147: =SUM(J148:J166) -> 20 | L147: =SUM(L148:L166) -> 3
A148: Bracknell Forest | B148: Bracknell Forest | D148: 1 | F148: =IF(ISERROR(VLOOKUP($A148&$D$9&$D$7&$B$6,Table4_data,F$13,0)),0,VLOOKUP($A148&$D$9&$D$7&$B$6,Table4_data,F$13,0)) -> 0 | H148: =IF(ISERROR(VLOOKUP($A148&$D$9&$D$7&$B$6,Table4_data,H$13,0)),0,VLOOKUP($A148&$D$9&$D$7&$B$6,Table4_data,H$13,0)) -> 0 | J148: =IF(ISERROR(VLOOKUP($A148&$D$9&$D$7&$B$6,Table4_data,J$13,0)),0,VLOOKUP($A148&$D$9&$D$7&$B$6,Table4_data,J$13,0)) -> 1 | L148: =IF(ISERROR(VLOOKUP($A148&$D$9&$D$7&$B$6,Table4_data,L$13,0)),0,VLOOKUP($A148&$D$9&$D$7&$B$6,Table4_data,L$13,0)) -> 0
A149: Brighton & Hove | B149: Brighton & Hove | D149: 2 | F149: 2 | H149: 0 | J149: 0 | L149: 0
A150: Buckinghamshire | B150: Buckinghamshire | D150: 5 | F150: 0 | H150: 1 | J150: 4 | L150: 0
A151: East Sussex | B151: East Sussex | D151: 5 | F151: 0 | H151: 5 | J151: 0 | L151: 0
A152: Hampshire | B152: Hampshire | D152: 9 | F152: 4 | H152: 4 | J152: 1 | L152: 0
A153: Isle of Wight | B153: Isle of Wight | D153: 1 | F153: 0 | H153: 1 | J153: 0 | L153: 0
A154: Kent | B154: Kent | D154: 22 | F154: 2 | H154: 14 | J154: 5 | L154: 1
A155: Medway | B155: Medway | D155: 0 | F155: 0 | H155: 0 | J155: 0 | L155: 0
A156: Milton Keynes | B156: Milton Keynes | D156: 2 | F156: 0 | H156: 2 | J156: 0 | L156: 0
A157: Oxfordshire | B157: Oxfordshire | D157: 6 | F157: 3 | H157: 3 | J157: 0 | L157: 0
A158: Portsmouth | B158: Portsmouth | D158: 1 | F158: 0 | H158: 0 | J158: 1 | L158: 0
A159: Reading | B159: Reading | D159: 2 | F159: 0 | H159: 1 | J159: 1 | L159: 0
A160: Slough | B160: Slough | D160: 1 | F160: 0 | H160: 1 | J160: 0 | L160: 0
A161: Southampton | B161: Southampton | D161: 5 | F161: 1 | H161: 1 | J161: 1 | L161: 2
A162: Surrey | B162: Surrey | D162: 5 | F162: 0 | H162: 3 | J162: 2 | L162: 0
A163: West Berkshire | B163: West Berkshire | D163: 1 | F163: 0 | H163: 1 | J163: 0 | L163: 0
A164: West Sussex | B164: West Sussex | D164: 14 | F164: 1 | H164: 10 | J164: 3 | L164: 0
A165: Windsor and Maidenhead | B165: Windsor and Maidenhead | D165: 0 | F165: 0 | H165: 0 | J165: 0 | L165: 0
A166: Wokingham | B166: Wokingham | D166: 1 | F166: 0 | H166: 0 | J166: 1 | L166: 0
A168: South West | B168: South West | D168: 66 | F168: =SUM(F169:F184) -> 2 | H168: =SUM(H169:H184) -> 31 | J168: =SUM(J169:J184) -> 26 | L168: =SUM(L169:L184) -> 7
A169: Bath & North East Somerset | B169: Bath & North East Somerset | D169: 0 | F169: =IF(ISERROR(VLOOKUP($A169&$D$9&$D$7&$B$6,Table4_data,F$13,0)),0,VLOOKUP($A169&$D$9&$D$7&$B$6,Table4_data,F$13,0)) -> 0 | H169: =IF(ISERROR(VLOOKUP($A169&$D$9&$D$7&$B$6,Table4_data,H$13,0)),0,VLOOKUP($A169&$D$9&$D$7&$B$6,Table4_data,H$13,0)) -> 0 | J169: =IF(ISERROR(VLOOKUP($A169&$D$9&$D$7&$B$6,Table4_data,J$13,0)),0,VLOOKUP($A169&$D$9&$D$7&$B$6,Table4_data,J$13,0)) -> 0 | L169: =IF(ISERROR(VLOOKUP($A169&$D$9&$D$7&$B$6,Table4_data,L$13,0)),0,VLOOKUP($A169&$D$9&$D$7&$B$6,Table4_data,L$13,0)) -> 0
A170: Bournemouth | B170: Bournemouth | D170: 2 | F170: 0 | H170: 0 | J170: 1 | L170: 1
A171: Bristol | B171: Bristol | D171: 5 | F171: 0 | H171: 4 | J171: 1 | L171: 0
A172: Cornwall | B172: Cornwall | D172: 8 | F172: 0 | H172: 2 | J172: 3 | L172: 3
A173: Devon | B173: Devon | D173: 13 | F173: 0 | H173: 6 | J173: 6 | L173: 1
A174: Dorset | B174: Dorset | D174: 2 | F174: 0 | H174: 1 | J174: 1 | L174: 0
A175: Gloucestershire | B175: Gloucestershire | D175: 5 | F175: 0 | H175: 3 | J175: 1 | L175: 1
A176: Isles Of Scilly | B176: Isles Of Scilly | D176: 0 | F176: 0 | H176: 0 | J176: 0 | L176: 0
A177: North Somerset | B177: North Somerset | D177: 2 | F177: 0 | H177: 1 | J177: 1 | L177: 0
A178: Plymouth | B178: Plymouth | D178: 1 | F178: 0 | H178: 1 | J178: 0 | L178: 0
A179: Poole | B179: Poole | D179: 0 | F179: 0 | H179: 0 | J179: 0 | L179: 0
A180: Somerset | B180: Somerset | D180: 22 | F180: 1 | H180: 10 | J180: 10 | L180: 1
A181: South Gloucestershire | B181: South Gloucestershire | D181: 0 | F181: 0 | H181: 0 | J181: 0 | L181: 0
A182: Swindon | B182: Swindon | D182: 1 | F182: 0 | H182: 1 | J182: 0 | L182: 0
A183: Torbay | B183: Torbay | D183: 2 | F183: 0 | H183: 1 | J183: 1 | L183: 0
A184: Wiltshire | B184: Wiltshire | D184: 3 | F184: 1 | H184: 1 | J184: 1 | L184: 0
A186: nr | B186: Region not recorded | D186: 0 | F186: =SUM(F187) -> 0 | H186: =SUM(H187) -> 0 | J186: =SUM(J187) -> 0 | L186: =SUM(L187) -> 0
A187: LA not recorded | B187: Local authority not recorded | D187: 0 | F187: =IF(ISERROR(VLOOKUP($A187&$D$9&$D$7&$B$6,Table4_data,F$13,0)),0,VLOOKUP($A187&$D$9&$D$7&$B$6,Table4_data,F$13,0)) -> 0 | H187: =IF(ISERROR(VLOOKUP($A187&$D$9&$D$7&$B$6,Table4_data,H$13,0)),0,VLOOKUP($A187&$D$9&$D$7&$B$6,Table4_data,H$13,0)) -> 0 | J187: =IF(ISERROR(VLOOKUP($A187&$D$9&$D$7&$B$6,Table4_data,J$13,0)),0,VLOOKUP($A187&$D$9&$D$7&$B$6,Table4_data,J$13,0)) -> 0 | L187: =IF(ISERROR(VLOOKUP($A187&$D$9&$D$7&$B$6,Table4_data,L$13,0)),0,VLOOKUP($A187&$D$9&$D$7&$B$6,Table4_data,L$13,0)) -> 0
L189: Source: Ofsted inspections
B191: 1. The 'all' figures include all homes, of all ownership type, in the local authority area. Local authority run homes data include a small number of homes run by health authorities.
B192: 2. Residential special schools that care for pupils for more than 295 days per year must register as children's homes and are separately designated in the drop-down list as 'residential special school (>295 days/year)'.

Sheet Table4_Data (hidden)
A1: Table 4: overall care outcome of children's social care providers inspected between 01/04/2011 and 30/06/2011 by region and local authority (provisional)
A2: Lookup | B2: Local Authority | C2: Sector | D2: Corporate Inspected Provision Type Group Name | E2: Month | F2: Outstanding | G2: Good | H2: Adequate | I2: Inadequate
A3: AllAllChildren's Home1 | B3: All | C3: All | D3: Children's Home | E3: 1 | F3: 4 | G3: 33 | H3: 15 | I3: 6
A4: AllAllChildren's Home2 | B4: All | C4: All | D4: Children's Home | E4: 2 | F4: 20 | G4: 158 | H4: 100 | I4: 28
A5: AllAllChildren's Home3 | B5: All | C5: All | D5: Children's Home | E5: 3 | F5: 27 | G5: 122 | H5: 80 | I5: 14
A6: AllAllChildren's Home4 | B6: All | C6: All | D6: Children's Home | E6: 4 | F6: 51 | G6: 313 | H6: 195 | I6: 48
A7: AllAllResidential special school (>295 days/year)1 | B7: All | C7: All | D7: Residential special school (>295 days/year) | E7: 1 | F7: 0 | G7: 2 | H7: 0 | I7: 0
A8: AllAllResidential special school (>295 days/year)2 | B8: All | C8: All | D8: Residential special school (>295 days/year) | E8: 2 | F8: 0 | G8: 4 | H8: 4 | I8: 2
A9: AllAllResidential special school (>295 days/year)3 | B9: All | C9: All | D9: Residential special school (>295 days/year) | E9: 3 | F9: 2 | G9: 6 | H9: 3 | I9: 0
A10: AllAllResidential special school (>295 days/year)4 | B10: All | C10: All | D10: Residential special school (>295 days/year) | E10: 4 | F10: 2 | G10: 12 | H10: 7 | I10: 2
A11: AllAllSecure Children's Home1 | B11: All | C11: All | D11: Secure Children's Home | E11: 1 | F11: 1 | G11: 0 | H11: 1 | I11: 0
A12: AllAllSecure Children's Home2 | B12: All | C12: All | D12: Secure Children's Home | E12: 2 | F12: 0 | G12: 4 | H12: 0 | I12: 0
A13: AllAllSecure Children's Home3 | B13: All | C13: All | D13: Secure Children's Home | E13: 3 | F13: 0 | G13: 0 | H13: 1 | I13: 0
A14: AllAllSecure Children's Home4 | B14: All | C14: All | D14: Secure Children's Home | E14: 4 | F14: 1 | G14: 4 | H14: 2 | I14: 0
A15: AllLocal AuthorityChildren's Home1 | B15: All | C15: Local Authority | D15: Children's Home | E15: 1 | F15: 0 | G15: 6 | H15: 3 | I15: 2
A16: AllLocal AuthorityChildren's Home2 | B16: All | C16: Local Authority | D16: Children's Home | E16: 2 | F16: 3 | G16: 32 | H16: 19 | I16: 4
A17: AllLocal AuthorityChildren's Home3 | B17: All | C17: Local Authority | D17: Children's Home | E17: 3 | F17: 6 | G17: 31 | H17: 27 | I17: 5
A18: AllLocal AuthorityChildren's Home4 | B18: All | C18: Local Authority | D18: Children's Home | E18: 4 | F18: 9 | G18: 69 | H18: 49 | I18: 11
A19: AllLocal AuthorityResidential special school (>295 days/year)3 | B19: All | C19: Local Authority | D19: Residential special school (>295 days/year) | E19: 3 | F19: 0 | G19: 1 | H19: 0 | I19: 0
A20: AllLocal AuthorityResidential special school (>295 days/year)4 | B20: All | C20: Local Authority | D20: Residential special school (>295 days/year) | E20: 4 | F20: 0 | G20: 1 | H20: 0 | I20: 0
A21: AllLocal AuthoritySecure Children's Home1 | B21: All | C21: Local Authority | D21: Secure Children's Home | E21: 1 | F21: 1 | G21: 0 | H21: 1 | I21: 0
A22: AllLocal AuthoritySecure Children's Home2 | B22: All | C22: Local Authority | D22: Secure Children's Home | E22: 2 | F22: 0 | G22: 4 | H22: 0 | I22: 0
A23: AllLocal AuthoritySecure Children's Home3 | B23: All | C23: Local Authority | D23: Secure Children's Home | E23: 3 | F23: 0 | G23: 0 | H23: 1 | I23: 0
A24: AllLocal AuthoritySecure Children's Home4 | B24: All | C24: Local Authority | D24: Secure Children's Home | E24: 4 | F24: 1 | G24: 4 | H24: 2 | I24: 0
A25: AllPrivate/ VoluntaryChildren's Home1 | B25: All | C25: Private/ Voluntary | D25: Children's Home | E25: 1 | F25: 4 | G25: 27 | H25: 12 | I25: 4
A26: AllPrivate/ VoluntaryChildren's Home2 | B26: All | C26: Private/ Voluntary | D26: Children's Home | E26: 2 | F26: 17 | G26: 126 | H26: 81 | I26: 24
A27: AllPrivate/ VoluntaryChildren's Home3 | B27: All | C27: Private/ Voluntary | D27: Children's Home | E27: 3 | F27: 21 | G27: 91 | H27: 53 | I27: 9
A28: AllPrivate/ VoluntaryChildren's Home4 | B28: All | C28: Private/ Voluntary | D28: Children's Home | E28: 4 | F28: 42 | G28: 244 | H28: 146 | I28: 37
A29: AllPrivate/ VoluntaryResidential special school (>295 days/year)1 | B29: All | C29: Private/ Voluntary | D29: Residential special school (>295 days/year) | E29: 1 | F29: 0 | G29: 2 | H29: 0 | I29: 0
A30: AllPrivate/ VoluntaryResidential special school (>295 days/year)2 | B30: All | C30: Private/ Voluntary | D30: Residential special school (>295 days/year) | E30: 2 | F30: 0 | G30: 4 | H30: 4 | I30: 2
A31: AllPrivate/ VoluntaryResidential special school (>295 days/year)3 | B31: All | C31: Private/ Voluntary | D31: Residential special school (>295 days/year) | E31: 3 | F31: 2 | G31: 5 | H31: 3 | I31: 0
A32: AllPrivate/ VoluntaryResidential special school (>295 days/year)4 | B32: All | C32: Private/ Voluntary | D32: Residential special school (>295 days/year) | E32: 4 | F32: 2 | G32: 11 | H32: 7 | I32: 2
A33: Barking & DagenhamAllChildren's Home2 | B33: Barking & Dagenham | C33: All | D33: Children's Home | E33: 2 | F33: 0 | G33: 1 | H33: 0 | I33: 0
A34: Barking & DagenhamAllChildren's Home3 | B34: Barking & Dagenham | C34: All | D34: Children's Home | E34: 3 | F34: 0 | G34: 0 | H34: 1 | I34: 0
A35: Barking & DagenhamAllChildren's Home4 | B35: Barking & Dagenham | C35: All | D35: Children's Home | E35: 4 | F35: 0 | G35: 1 | H35: 1 | I35: 0
A36: Barking & DagenhamPrivate/ VoluntaryChildren's Home2 | B36: Barking & Dagenham | C36: Private/ Voluntary | D36: Children's Home | E36: 2 | F36: 0 | G36: 1 | H36: 0 | I36: 0
A37: Barking & DagenhamPrivate/ VoluntaryChildren's Home3 | B37: Barking & Dagenham | C37: Private/ Voluntary | D37: Children's Home | E37: 3 | F37: 0 | G37: 0 | H37: 1 | I37: 0
A38: Barking & DagenhamPrivate/ VoluntaryChildren's Home4 | B38: Barking & Dagenham | C38: Private/ Voluntary | D38: Children's Home | E38: 4 | F38: 0 | G38: 1 | H38: 1 | I38: 0
A39: BarnetAllChildren's Home2 | B39: Barnet | C39: All | D39: Children's Home | E39: 2 | F39: 0 | G39: 1 | H39: 0 | I39: 0
A40: BarnetAllChildren's Home4 | B40: Barnet | C40: All | D40: Children's Home | E40: 4 | F40: 0 | G40: 1 | H40: 0 | I40: 0
A41: BarnetPrivate/ VoluntaryChildren's Home2 | B41: Barnet | C41: Private/ Voluntary | D41: Children's Home | E41: 2 | F41: 0 | G41: 1 | H41: 0 | I41: 0
A42: BarnetPrivate/ VoluntaryChildren's Home4 | B42: Barnet | C42: Private/ Voluntary | D42: Children's Home | E42: 4 | F42: 0 | G42: 1 | H42: 0 | I42: 0
A43: BarnsleyAllChildren's Home2 | B43: Barnsley | C43: All | D43: Children's Home | E43: 2 | F43: 0 | G43: 0 | H43: 1 | I43: 0
A44: BarnsleyAllChildren's Home3 | B44: Barnsley | C44: All | D44: Children's Home | E44: 3 | F44: 2 | G44: 3 | H44: 2 | I44: 0
A45: BarnsleyAllChildren's Home4 | B45: Barnsley | C45: All | D45: Children's Home | E45: 4 | F45: 2 | G45: 3 | H45: 3 | I45: 0
A46: BarnsleyLocal AuthorityChildren's Home3 | B46: Barnsley | C46: Local Authority | D46: Children's Home | E46: 3 | F46: 0 | G46: 1 | H46: 0 | I46: 0
A47: BarnsleyLocal AuthorityChildren's Home4 | B47: Barnsley | C47: Local Authority | D47: Children's Home | E47: 4 | F47: 0 | G47: 1 | H47: 0 | I47: 0
A48: BarnsleyPrivate/ VoluntaryChildren's Home2 | B48: Barnsley | C48: Private/ Voluntary | D48: Children's Home | E48: 2 | F48: 0 | G48: 0 | H48: 1 | I48: 0
A49: BarnsleyPrivate/ VoluntaryChildren's Home3 | B49: Barnsley | C49: Private/ Voluntary | D49: Children's Home | E49: 3 | F49: 2 | G49: 2 | H49: 2 | I49: 0
A50: BarnsleyPrivate/ VoluntaryChildren's Home4 | B50: Barnsley | C50: Private/ Voluntary | D50: Children's Home | E50: 4 | F50: 2 | G50: 2 | H50: 3 | I50: 0
A51: Bedford boroughAllChildren's Home3 | B51: Bedford borough | C51: All | D51: Children's Home | E51: 3 | F51: 1 | G51: 0 | H51: 0 | I51: 0
A52: Bedford boroughAllChildren's Home4 | B52: Bedford borough | C52: All | D52: Children's Home | E52: 4 | F52: 1 | G52: 0 | H52: 0 | I52: 0
A53: Bedford boroughPrivate/ VoluntaryChildren's Home3 | B53: Bedford borough | C53: Private/ Voluntary | D53: Children's Home | E53: 3 | F53: 1 | G53: 0 | H53: 0 | I53: 0
A54: Bedford boroughPrivate/ VoluntaryChildren's Home4 | B54: Bedford borough | C54: Private/ Voluntary | D54: Children's Home | E54: 4 | F54: 1 | G54: 0 | H54: 0 | I54: 0
A55: BexleyAllChildren's Home2 | B55: Bexley | C55: All | D55: Children's Home | E55: 2 | F55: 0 | G55: 0 | H55: 1 | I55: 0
A56: BexleyAllChildren's Home3 | B56: Bexley | C56: All | D56: Children's Home | E56: 3 | F56: 0 | G56: 0 | H56: 0 | I56: 1
A57: BexleyAllChildren's Home4 | B57: Bexley | C57: All | D57: Children's Home | E57: 4 | F57: 0 | G57: 0 | H57: 1 | I57: 1
A58: BexleyPrivate/ VoluntaryChildren's Home2 | B58: Bexley | C58: Private/ Voluntary | D58: Children's Home | E58: 2 | F58: 0 | G58: 0 | H58: 1 | I58: 0
A59: BexleyPrivate/ VoluntaryChildren's Home3 | B59: Bexley | C59: Private/ Voluntary | D59: Children's Home | E59: 3 | F59: 0 | G59: 0 | H59: 0 | I59: 1
A60: BexleyPrivate/ VoluntaryChildren's Home4 | B60: Bexley | C60: Private/ Voluntary | D60: Children's Home | E60: 4 | F60: 0 | G60: 0 | H60: 1 | I60: 1
A61: BirminghamAllChildren's Home1 | B61: Birmingham | C61: All | D61: Children's Home | E61: 1 | F61: 1 | G61: 0 | H61: 1 | I61: 0
A62: BirminghamAllChildren's Home2 | B62: Birmingham | C62: All | D62: Children's Home | E62: 2 | F62: 1 | G62: 4 | H62: 6 | I62: 0
A63: BirminghamAllChildren's Home3 | B63: Birmingham | C63: All | D63: Children's Home | E63: 3 | F63: 1 | G63: 3 | H63: 0 | I63: 0
A64: BirminghamAllChildren's Home4 | B64: Birmingham | C64: All | D64: Children's Home | E64: 4 | F64: 3 | G64: 7 | H64: 7 | I64: 0
A65: BirminghamLocal AuthorityChildren's Home1 | B65: Birmingham | C65: Local Authority | D65: Children's Home | E65: 1 | F65: 0 | G65: 0 | H65: 1 | I65: 0
A66: BirminghamLocal AuthorityChildren's Home2 | B66: Birmingham | C66: Local Authority | D66: Children's Home | E66: 2 | F66: 0 | G66: 1 | H66: 1 | I66: 0
A67: BirminghamLocal AuthorityChildren's Home3 | B67: Birmingham | C67: Local Authority | D67: Children's Home | E67: 3 | F67: 0 | G67: 1 | H67: 0 | I67: 0
A68: BirminghamLocal AuthorityChildren's Home4 | B68: Birmingham | C68: Local Authority | D68: Children's Home | E68: 4 | F68: 0 | G68: 2 | H68: 2 | I68: 0
A69: BirminghamPrivate/ VoluntaryChildren's Home1 | B69: Birmingham | C69: Private/ Voluntary | D69: Children's Home | E69: 1 | F69: 1 | G69: 0 | H69: 0 | I69: 0
A70: BirminghamPrivate/ VoluntaryChildren's Home2 | B70: Birmingham | C70: Private/ Voluntary | D70: Children's Home | E70: 2 | F70: 1 | G70: 3 | H70: 5 | I70: 0
A71: BirminghamPrivate/ VoluntaryChildren's Home3 | B71: Birmingham | C71: Private/ Voluntary | D71: Children's Home | E71: 3 | F71: 1 | G71: 2 | H71: 0 | I71: 0
A72: BirminghamPrivate/ VoluntaryChildren's Home4 | B72: Birmingham | C72: Private/ Voluntary | D72: Children's Home | E72: 4 | F72: 3 | G72: 5 | H72: 5 | I72: 0
A73: Blackburn with DarwenAllChildren's Home2 | B73: Blackburn with Darwen | C73: All | D73: Children's Home | E73: 2 | F73: 1 | G73: 0 | H73: 0 | I73: 0
A74: Blackburn with DarwenAllChildren's Home4 | B74: Blackburn with Darwen | C74: All | D74: Children's Home | E74: 4 | F74: 1 | G74: 0 | H74: 0 | I74: 0
A75: Blackburn with DarwenPrivate/ VoluntaryChildren's Home2 | B75: Blackburn with Darwen | C75: Private/ Voluntary | D75: Children's Home | E75: 2 | F75: 1 | G75: 0 | H75: 0 | I75: 0
A76: Blackburn with DarwenPrivate/ VoluntaryChildren's Home4 | B76: Blackburn with Darwen | C76: Private/ Voluntary | D76: Children's Home | E76: 4 | F76: 1 | G76: 0 | H76: 0 | I76: 0
A77: BlackpoolAllChildren's Home1 | B77: Blackpool | C77: All | D77: Children's Home | E77: 1 | F77: 0 | G77: 0 | H77: 0 | I77: 1
A78: BlackpoolAllChildren's Home3 | B78: Blackpool | C78: All | D78: Children's Home | E78: 3 | F78: 1 | G78: 0 | H78: 2 | I78: 0
A79: BlackpoolAllChildren's Home4 | B79: Blackpool | C79: All | D79: Children's Home | E79: 4 | F79: 1 | G79: 0 | H79: 2 | I79: 1
A80: BlackpoolLocal AuthorityChildren's Home3 | B80: Blackpool | C80: Local Authority | D80: Children's Home | E80: 3 | F80: 0 | G80: 0 | H80: 1 | I80: 0
A81: BlackpoolLocal AuthorityChildren's Home4 | B81: Blackpool | C81: Local Authority | D81: Children's Home | E81: 4 | F81: 0 | G81: 0 | H81: 1 | I81: 0
A82: BlackpoolPrivate/ VoluntaryChildren's Home1 | B82: Blackpool | C82: Private/ Voluntary | D82: Children's Home | E82: 1 | F82: 0 | G82: 0 | H82: 0 | I82: 1
A83: BlackpoolPrivate/ VoluntaryChildren's Home3 | B83: Blackpool | C83: Private/ Voluntary | D83: Children's Home | E83: 3 | F83: 1 | G83: 0 | H83: 1 | I83: 0
A84: BlackpoolPrivate/ VoluntaryChildren's Home4 | B84: Blackpool | C84: Private/ Voluntary | D84: Children's Home | E84: 4 | F84: 1 | G84: 0 | H84: 1 | I84: 1
A85: BoltonAllChildren's Home2 | B85: Bolton | C85: All | D85: Children's Home | E85: 2 | F85: 0 | G85: 2 | H85: 0 | I85: 0
A86: BoltonAllChildren's Home3 | B86: Bolton | C86: All | D86: Children's Home | E86: 3 | F86: 0 | G86: 2 | H86: 1 | I86: 0
A87: BoltonAllChildren's Home4 | B87: Bolton | C87: All | D87: Children's Home | E87: 4 | F87: 0 | G87: 4 | H87: 1 | I87: 0
A88: BoltonAllResidential special school (>295 days/year)3 | B88: Bolton | C88: All | D88: Residential special school (>295 days/year) | E88: 3 | F88: 0 | G88: 1 | H88: 0 | I88: 0
A89: BoltonAllResidential special school (>295 days/year)4 | B89: Bolton | C89: All | D89: Residential special school (>295 days/year) | E89: 4 | F89: 0 | G89: 1 | H89: 0 | I89: 0
A90: BoltonLocal AuthorityChildren's Home2 | B90: Bolton | C90: Local Authority | D90: Children's Home | E90: 2 | F90: 0 | G90: 1 | H90: 0 | I90: 0
A91: BoltonLocal AuthorityChildren's Home4 | B91: Bolton | C91: Local Authority | D91: Children's Home | E91: 4 | F91: 0 | G91: 1 | H91: 0 | I91: 0
A92: BoltonPrivate/ VoluntaryChildren's Home2 | B92: Bolton | C92: Private/ Voluntary | D92: Children's Home | E92: 2 | F92: 0 | G92: 1 | H92: 0 | I92: 0
A93: BoltonPrivate/ VoluntaryChildren's Home3 | B93: Bolton | C93: Private/ Voluntary | D93: Children's Home | E93: 3 | F93: 0 | G93: 2 | H93: 1 | I93: 0
A94: BoltonPrivate/ VoluntaryChildren's Home4 | B94: Bolton | C94: Private/ Voluntary | D94: Children's Home | E94: 4 | F94: 0 | G94: 3 | H94: 1 | I94: 0
A95: BoltonPrivate/ VoluntaryResidential special school (>295 days/year)3 | B95: Bolton | C95: Private/ Voluntary | D95: Residential special school (>295 days/year) | E95: 3 | F95: 0 | G95: 1 | H95: 0 | I95: 0
A96: BoltonPrivate/ VoluntaryResidential special school (>295 days/year)4 | B96: Bolton | C96: Private/ Voluntary | D96: Residential special school (>295 days/year) | E96: 4 | F96: 0 | G96: 1 | H96: 0 | I96: 0
A97: BournemouthAllChildren's Home2 | B97: Bournemouth | C97: All | D97: Children's Home | E97: 2 | F97: 0 | G97: 0 | H97: 0 | I97: 1
A98: BournemouthAllChildren's Home3 | B98: Bournemouth | C98: All | D98: Children's Home | E98: 3 | F98: 0 | G98: 0 | H98: 1 | I98: 0
A99: BournemouthAllChildren's Home4 | B99: Bournemouth | C99: All | D99: Children's Home | E99: 4 | F99: 0 | G99: 0 | H99: 1 | I99: 1
A100: BournemouthPrivate/ VoluntaryChildren's Home2 | B100: Bournemouth | C100: Private/ Voluntary | D100: Children's Home | E100: 2 | F100: 0 | G100: 0 | H100: 0 | I100: 1
A101: BournemouthPrivate/ VoluntaryChildren's Home3 | B101: Bournemouth | C101: Private/ Voluntary | D101: Children's Home | E101: 3 | F101: 0 | G101: 0 | H101: 1 | I101: 0
A102: BournemouthPrivate/ VoluntaryChildren's Home4 | B102: Bournemouth | C102: Private/ Voluntary | D102: Children's Home | E102: 4 | F102: 0 | G102: 0 | H102: 1 | I102: 1
A103: Bracknell ForestAllChildren's Home3 | B103: Bracknell Forest | C103: All | D103: Children's Home | E103: 3 | F103: 0 | G103: 0 | H103: 1 | I103: 0
A104: Bracknell ForestAllChildren's Home4 | B104: Bracknell Forest | C104: All | D104: Children's Home | E104: 4 | F104: 0 | G104: 0 | H104: 1 | I104: 0
A105: Bracknell ForestPrivate/ VoluntaryChildren's Home3 | B105: Bracknell Forest | C105: Private/ Voluntary | D105: Children's Home | E105: 3 | F105: 0 | G105: 0 | H105: 1 | I105: 0
A106: Bracknell ForestPrivate/ VoluntaryChildren's Home4 | B106: Bracknell Forest | C106: Private/ Voluntary | D106: Children's Home | E106: 4 | F106: 0 | G106: 0 | H106: 1 | I106: 0
A107: BradfordAllChildren's Home2 | B107: Bradford | C107: All | D107: Children's Home | E107: 2 | F107: 0 | G107: 2 | H107: 0 | I107: 0
A108: BradfordAllChildren's Home3 | B108: Bradford | C108: All | D108: Children's Home | E108: 3 | F108: 0 | G108: 1 | H108: 0 | I108: 1
A109: BradfordAllChildren's Home4 | B109: Bradford | C109: All | D109: Children's Home | E109: 4 | F109: 0 | G109: 3 | H109: 0 | I109: 1
A110: BradfordLocal AuthorityChildren's Home2 | B110: Bradford | C110: Local Authority | D110: Children's Home | E110: 2 | F110: 0 | G110: 1 | H110: 0 | I110: 0
A111: BradfordLocal AuthorityChildren's Home4 | B111: Bradford | C111: Local Authority | D111: Children's Home | E111: 4 | F111: 0 | G111: 1 | H111: 0 | I111: 0
A112: BradfordPrivate/ VoluntaryChildren's Home2 | B112: Bradford | C112: Private/ Voluntary | D112: Children's Home | E112: 2 | F112: 0 | G112: 1 | H112: 0 | I112: 0
A113: BradfordPrivate/ VoluntaryChildren's Home3 | B113: Bradford | C113: Private/ Voluntary | D113: Children's Home | E113: 3 | F113: 0 | G113: 1 | H113: 0 | I113: 1
A114: BradfordPrivate/ VoluntaryChildren's Home4 | B114: Bradford | C114: Private/ Voluntary | D114: Children's Home | E114: 4 | F114: 0 | G114: 2 | H114: 0 | I114: 1
A115: BrentAllChildren's Home1 | B115: Brent | C115: All | D115: Children's Home | E115: 1 | F115: 0 | G115: 0 | H115: 1 | I115: 0
A116: BrentAllChildren's Home2 | B116: Brent | C116: All | D116: Children's Home | E116: 2 | F116: 0 | G116: 0 | H116: 1 | I116: 0
A117: BrentAllChildren's Home4 | B117: Brent | C117: All | D117: Children's Home | E117: 4 | F117: 0 | G117: 0 | H117: 2 | I117: 0
A118: BrentPrivate/ VoluntaryChildren's Home1 | B118: Brent | C118: Private/ Voluntary | D118: Children's Home | E118: 1 | F118: 0 | G118: 0 | H118: 1 | I118: 0
A119: BrentPrivate/ VoluntaryChildren's Home2 | B119: Brent | C119: Private/ Voluntary | D119: Children's Home | E119: 2 | F119: 0 | G119: 0 | H119: 1 | I119: 0
A120: BrentPrivate/ VoluntaryChildren's Home4 | B120: Brent | C120: Private/ Voluntary | D120: Children's Home | E120: 4 | F120: 0 | G120: 0 | H120: 2 | I120: 0
A121: Brighton & HoveAllChildren's Home3 | B121: Brighton & Hove | C121: All | D121: Children's Home | E121: 3 | F121: 2 | G121: 0 | H121: 0 | I121: 0
A122: Brighton & HoveAllChildren's Home4 | B122: Brighton & Hove | C122: All | D122: Children's Home | E122: 4 | F122: 2 | G122: 0 | H122: 0 | I122: 0
A123: Brighton & HoveAllResidential special school (>295 days/year)1 | B123: Brighton & Hove | C123: All | D123: Residential special school (>295 days/year) | E123: 1 | F123: 0 | G123: 1 | H123: 0 | I123: 0
A124: Brighton & HoveAllResidential special school (>295 days/year)4 | B124: Brighton & Hove | C124: All | D124: Residential special school (>295 days/year) | E124: 4 | F124: 0 | G124: 1 | H124: 0 | I124: 0
A125: Brighton & HoveLocal AuthorityChildren's Home3 | B125: Brighton & Hove | C125: Local Authority | D125: Children's Home | E125: 3 | F125: 1 | G125: 0 | H125: 0 | I125: 0
A126: Brighton & HoveLocal AuthorityChildren's Home4 | B126: Brighton & Hove | C126: Local Authority | D126: Children's Home | E126: 4 | F126: 1 | G126: 0 | H126: 0 | I126: 0
A127: Brighton & HovePrivate/ VoluntaryChildren's Home3 | B127: Brighton & Hove | C127: Private/ Voluntary | D127: Children's Home | E127: 3 | F127: 1 | G127: 0 | H127: 0 | I127: 0
A128: Brighton & HovePrivate/ VoluntaryChildren's Home4 | B128: Brighton & Hove | C128: Private/ Voluntary | D128: Children's Home | E128: 4 | F128: 1 | G128: 0 | H128: 0 | I128: 0
A129: Brighton & HovePrivate/ VoluntaryResidential special school (>295 days/year)1 | B129: Brighton & Hove | C129: Private/ Voluntary | D129: Residential special school (>295 days/year) | E129: 1 | F129: 0 | G129: 1 | H129: 0 | I129: 0
A130: Brighton & HovePrivate/ VoluntaryResidential special school (>295 days/year)4 | B130: Brighton & Hove | C130: Private/ Voluntary | D130: Residential special school (>295 days/year) | E130: 4 | F130: 0 | G130: 1 | H130: 0 | I130: 0
A131: BristolAllChildren's Home2 | B131: Bristol | C131: All | D131: Children's Home | E131: 2 | F131: 0 | G131: 1 | H131: 0 | I131: 0
A132: BristolAllChildren's Home3 | B132: Bristol | C132: All | D132: Children's Home | E132: 3 | F132: 0 | G132: 3 | H132: 1 | I132: 0
A133: BristolAllChildren's Home4 | B133: Bristol | C133: All | D133: Children's Home | E133: 4 | F133: 0 | G133: 4 | H133: 1 | I133: 0
A134: BristolLocal AuthorityChildren's Home3 | B134: Bristol | C134: Local Authority | D134: Children's Home | E134: 3 | F134: 0 | G134: 2 | H134: 0 | I134: 0
A135: BristolLocal AuthorityChildren's Home4 | B135: Bristol | C135: Local Authority | D135: Children's Home | E135: 4 | F135: 0 | G135: 2 | H135: 0 | I135: 0
A136: BristolPrivate/ VoluntaryChildren's Home2 | B136: Bristol | C136: Private/ Voluntary | D136: Children's Home | E136: 2 | F136: 0 | G136: 1 | H136: 0 | I136: 0
A137: BristolPrivate/ VoluntaryChildren's Home3 | B137: Bristol | C137: Private/ Voluntary | D137: Children's Home | E137: 3 | F137: 0 | G137: 1 | H137: 1 | I137: 0
A138: BristolPrivate/ VoluntaryChildren's Home4 | B138: Bristol | C138: Private/ Voluntary | D138: Children's Home | E138: 4 | F138: 0 | G138: 2 | H138: 1 | I138: 0
A139: BuckinghamshireAllChildren's Home1 | B139: Buckinghamshire | C139: All | D139: Children's Home | E139: 1 | F139: 0 | G139: 0 | H139: 2 | I139: 0
A140: BuckinghamshireAllChildren's Home3 | B140: Buckinghamshire | C140: All | D140: Children's Home | E140: 3 | F140: 0 | G140: 1 | H140: 2 | I140: 0
A141: BuckinghamshireAllChildren's Home4 | B141: Buckinghamshire | C141: All | D141: Children's Home | E141: 4 | F141: 0 | G141: 1 | H141: 4 | I141: 0
A142: BuckinghamshirePrivate/ VoluntaryChildren's Home1 | B142: Buckinghamshire | C142: Private/ Voluntary | D142: Children's Home | E142: 1 | F142: 0 | G142: 0 | H142: 2 | I142: 0
A143: BuckinghamshirePrivate/ VoluntaryChildren's Home3 | B143: Buckinghamshire | C143: Private/ Voluntary | D143: Children's Home | E143: 3 | F143: 0 | G143: 1 | H143: 2 | I143: 0
A144: BuckinghamshirePrivate/ VoluntaryChildren's Home4 | B144: Buckinghamshire | C144: Private/ Voluntary | D144: Children's Home | E144: 4 | F144: 0 | G144: 1 | H144: 4 | I144: 0
A145: BuryAllChildren's Home2 | B145: Bury | C145: All | D145: Children's Home | E145: 2 | F145: 0 | G145: 1 | H145: 0 | I145: 0
A146: BuryAllChildren's Home4 | B146: Bury | C146: All | D146: Children's Home | E146: 4 | F146: 0 | G146: 1 | H146: 0 | I146: 0
A147: BuryPrivate/ VoluntaryChildren's Home2 | B147: Bury | C147: Private/ Voluntary | D147: Children's Home | E147: 2 | F147: 0 | G147: 1 | H147: 0 | I147: 0
A148: BuryPrivate/ VoluntaryChildren's Home4 | B148: Bury | C148: Private/ Voluntary | D148: Children's Home | E148: 4 | F148: 0 | G148: 1 | H148: 0 | I148: 0
A149: CalderdaleAllChildren's Home1 | B149: Calderdale | C149: All | D149: Children's Home | E149: 1 | F149: 0 | G149: 1 | H149: 0 | I149: 0
A150: CalderdaleAllChildren's Home2 | B150: Calderdale | C150: All | D150: Children's Home | E150: 2 | F150: 0 | G150: 2 | H150: 1 | I150: 0
A151: CalderdaleAllChildren's Home4 | B151: Calderdale | C151: All | D151: Children's Home | E151: 4 | F151: 0 | G151: 3 | H151: 1 | I151: 0
A152: CalderdaleLocal AuthorityChildren's Home1 | B152: Calderdale | C152: Local Authority | D152: Children's Home | E152: 1 | F152: 0 | G152: 1 | H152: 0 | I152: 0
A153: CalderdaleLocal AuthorityChildren's Home2 | B153: Calderdale | C153: Local Authority | D153: Children's Home | E153: 2 | F153: 0 | G153: 0 | H153: 1 | I153: 0
A154: CalderdaleLocal AuthorityChildren's Home4 | B154: Calderdale | C154: Local Authority | D154: Children's Home | E154: 4 | F154: 0 | G154: 1 | H154: 1 | I154: 0
A155: CalderdalePrivate/ VoluntaryChildren's Home2 | B155: Calderdale | C155: Private/ Voluntary | D155: Children's Home | E155: 2 | F155: 0 | G155: 2 | H155: 0 | I155: 0
A156: CalderdalePrivate/ VoluntaryChildren's Home4 | B156: Calderdale | C156: Private/ Voluntary | D156: Children's Home | E156: 4 | F156: 0 | G156: 2 | H156: 0 | I156: 0
A157: CambridgeshireAllChildren's Home1 | B157: Cambridgeshire | C157: All | D157: Children's Home | E157: 1 | F157: 0 | G157: 1 | H157: 0 | I157: 0
A158: CambridgeshireAllChildren's Home2 | B158: Cambridgeshire | C158: All | D158: Children's Home | E158: 2 | F158: 0 | G158: 1 | H158: 1 | I158: 1
A159: CambridgeshireAllChildren's Home3 | B159: Cambridgeshire | C159: All | D159: Children's Home | E159: 3 | F159: 0 | G159: 3 | H159: 0 | I159: 0
A160: CambridgeshireAllChildren's Home4 | B160: Cambridgeshire | C160: All | D160: Children's Home | E160: 4 | F160: 0 | G160: 5 | H160: 1 | I160: 1
A161: CambridgeshireAllResidential special school (>295 days/year)2 | B161: Cambridgeshire | C161: All | D161: Residential special school (>295 days/year) | E161: 2 | F161: 0 | G161: 1 | H161: 0 | I161: 0
A162: CambridgeshireAllResidential special school (>295 days/year)4 | B162: Cambridgeshire | C162: All | D162: Residential special school (>295 days/year) | E162: 4 | F162: 0 | G162: 1 | H162: 0 | I162: 0
A163: CambridgeshireLocal AuthorityChildren's Home1 | B163: Cambridgeshire | C163: Local Authority | D163: Children's Home | E163: 1 | F163: 0 | G163: 1 | H163: 0 | I163: 0
A164: CambridgeshireLocal AuthorityChildren's Home2 | B164: Cambridgeshire | C164: Local Authority | D164: Children's Home | E164: 2 | F164: 0 | G164: 0 | H164: 0 | I164: 1
A165: CambridgeshireLocal AuthorityChildren's Home4 | B165: Cambridgeshire | C165: Local Authority | D165: Children's Home | E165: 4 | F165: 0 | G165: 1 | H165: 0 | I165: 1
A166: CambridgeshirePrivate/ VoluntaryChildren's Home2 | B166: Cambridgeshire | C166: Private/ Voluntary | D166: Children's Home | E166: 2 | F166: 0 | G166: 1 | H166: 1 | I166: 0
A167: CambridgeshirePrivate/ VoluntaryChildren's Home3 | B167: Cambridgeshire | C167: Private/ Voluntary | D167: Children's Home | E167: 3 | F167: 0 | G167: 3 | H167: 0 | I167: 0
A168: CambridgeshirePrivate/ VoluntaryChildren's Home4 | B168: Cambridgeshire | C168: Private/ Voluntary | D168: Children's Home | E168: 4 | F168: 0 | G168: 4 | H168: 1 | I168: 0
A169: CambridgeshirePrivate/ VoluntaryResidential special school (>295 days/year)2 | B169: Cambridgeshire | C169: Private/ Voluntary | D169: Residential special school (>295 days/year) | E169: 2 | F169: 0 | G169: 1 | H169: 0 | I169: 0
A170: CambridgeshirePrivate/ VoluntaryResidential special school (>295 days/year)4 | B170: Cambridgeshire | C170: Private/ Voluntary | D170: Residential special school (>295 days/year) | E170: 4 | F170: 0 | G170: 1 | H170: 0 | I170: 0
A171: Central BedfordshireAllChildren's Home2 | B171: Central Bedfordshire | C171: All | D171: Children's Home | E171: 2 | F171: 0 | G171: 0 | H171: 0 | I171: 1
A172: Central BedfordshireAllChildren's Home4 | B172: Central Bedfordshire | C172: All | D172: Children's Home | E172: 4 | F172: 0 | G172: 0 | H172: 0 | I172: 1
A173: Central BedfordshirePrivate/ VoluntaryChildren's Home2 | B173: Central Bedfordshire | C173: Private/ Voluntary | D173: Children's Home | E173: 2 | F173: 0 | G173: 0 | H173: 0 | I173: 1
A174: Central BedfordshirePrivate/ VoluntaryChildren's Home4 | B174: Central Bedfordshire | C174: Private/ Voluntary | D174: Children's Home | E174: 4 | F174: 0 | G174: 0 | H174: 0 | I174: 1
A175: Cheshire EastAllChildren's Home3 | B175: Cheshire East | C175: All | D175: Children's Home | E175: 3 | F175: 1 | G175: 0 | H175: 0 | I175: 0
A176: Cheshire EastAllChildren's Home4 | B176: Cheshire East | C176: All | D176: Children's Home | E176: 4 | F176: 1 | G176: 0 | H176: 0 | I176: 0
A177: Cheshire EastPrivate/ VoluntaryChildren's Home3 | B177: Cheshire East | C177: Private/ Voluntary | D177: Children's Home | E177: 3 | F177: 1 | G177: 0 | H177: 0 | I177: 0
A178: Cheshire EastPrivate/ VoluntaryChildren's Home4 | B178: Cheshire East | C178: Private/ Voluntary | D178: Children's Home | E178: 4 | F178: 1 | G178: 0 | H178: 0 | I178: 0
A179: Cheshire West and ChesterAllChildren's Home3 | B179: Cheshire West and Chester | C179: All | D179: Children's Home | E179: 3 | F179: 0 | G179: 1 | H179: 0 | I179: 0
A180: Cheshire West and ChesterAllChildren's Home4 | B180: Cheshire West and Chester | C180: All | D180: Children's Home | E180: 4 | F180: 0 | G180: 1 | H180: 0 | I180: 0
A181: Cheshire West and ChesterLocal AuthorityChildren's Home3 | B181: Cheshire West and Chester | C181: Local Authority | D181: Children's Home | E181: 3 | F181: 0 | G181: 1 | H181: 0 | I181: 0
A182: Cheshire West and ChesterLocal AuthorityChildren's Home4 | B182: Cheshire West and Chester | C182: Local Authority | D182: Children's Home | E182: 4 | F182: 0 | G182: 1 | H182: 0 | I182: 0
A183: CornwallAllChildren's Home1 | B183: Cornwall | C183: All | D183: Children's Home | E183: 1 | F183: 0 | G183: 0 | H183: 0 | I183: 1
A184: CornwallAllChildren's Home2 | B184: Cornwall | C184: All | D184: Children's Home | E184: 2 | F184: 0 | G184: 2 | H184: 2 | I184: 1
A185: CornwallAllChildren's Home3 | B185: Cornwall | C185: All | D185: Children's Home | E185: 3 | F185: 0 | G185: 0 | H185: 1 | I185: 1
A186: CornwallAllChildren's Home4 | B186: Cornwall | C186: All | D186: Children's Home | E186: 4 | F186: 0 | G186: 2 | H186: 3 | I186: 3
A187: CornwallLocal AuthorityChildren's Home1 | B187: Cornwall | C187: Local Authority | D187: Children's Home | E187: 1 | F187: 0 | G187: 0 | H187: 0 | I187: 1
A188: CornwallLocal AuthorityChildren's Home2 | B188: Cornwall | C188: Local Authority | D188: Children's Home | E188: 2 | F188: 0 | G188: 1 | H188: 2 | I188: 0
A189: CornwallLocal AuthorityChildren's Home4 | B189: Cornwall | C189: Local Authority | D189: Children's Home | E189: 4 | F189: 0 | G189: 1 | H189: 2 | I189: 1
A190: CornwallPrivate/ VoluntaryChildren's Home2 | B190: Cornwall | C190: Private/ Voluntary | D190: Children's Home | E190: 2 | F190: 0 | G190: 1 | H190: 0 | I190: 1
A191: CornwallPrivate/ VoluntaryChildren's Home3 | B191: Cornwall | C191: Private/ Voluntary | D191: Children's Home | E191: 3 | F191: 0 | G191: 0 | H191: 1 | I191: 1
A192: CornwallPrivate/ VoluntaryChildren's Home4 | B192: Cornwall | C192: Private/ Voluntary | D192: Children's Home | E192: 4 | F192: 0 | G192: 1 | H192: 1 | I192: 2
A193: CroydonAllChildren's Home1 | B193: Croydon | C193: All | D193: Children's Home | E193: 1 | F193: 0 | G193: 0 | H193: 1 | I193: 0
A194: CroydonAllChildren's Home2 | B194: Croydon | C194: All | D194: Children's Home | E194: 2 | F194: 0 | G194: 0 | H194: 1 | I194: 1
A195: CroydonAllChildren's Home4 | B195: Croydon | C195: All | D195: Children's Home | E195: 4 | F195: 0 | G195: 0 | H195: 2 | I195: 1
A196: CroydonPrivate/ VoluntaryChildren's Home1 | B196: Croydon | C196: Private/ Voluntary | D196: Children's Home | E196: 1 | F196: 0 | G196: 0 | H196: 1 | I196: 0
A197: CroydonPrivate/ VoluntaryChildren's Home2 | B197: Croydon | C197: Private/ Voluntary | D197: Children's Home | E197: 2 | F197: 0 | G197: 0 | H197: 1 | I197: 1
A198: CroydonPrivate/ VoluntaryChildren's Home4 | B198: Croydon | C198: Private/ Voluntary | D198: Children's Home | E198: 4 | F198: 0 | G198: 0 | H198: 2 | I198: 1
A199: CumbriaAllChildren's Home2 | B199: Cumbria | C199: All | D199: Children's Home | E199: 2 | F199: 0 | G199: 0 | H199: 1 | I199: 0
A200: CumbriaAllChildren's Home3 | B200: Cumbria | C200: All | D200: Children's Home | E200: 3 | F200: 0 | G200: 1 | H200: 2 | I200: 0
... 785 more rows

Sheet Chart3&4Data (hidden)
B2: LA | I2: Calculations
C3: Outstanding | D3: Good | E3: Satisfactory | F3: Inadequate | G3: Total inspected | I3: 7 | J3: 57 | K3: 40 | L3: 9
B4: ="1 April 2012 - 30 June 2012" -> 1 April 2012 - 30 June 2012 | C4: 10 | D4: 74 | E4: 51 | F4: 11 | G4: =SUM(C4:F4) -> 146 | H4: =SUM(G4,G25) -> 637 | I4: 1 | J4: 4 | K4: 2 | L4: 0 | M4: =SUM(I3:L4) -> 120
B5: ="1 January 2012 - 31 March 2012" -> 1 January 2012 - 31 March 2012 | C5: 7 | D5: 13 | E5: 5 | F5: 1 | G5: =SUM(C5:F5) -> 26 | I5: 0 | J5: 0 | K5: 0 | L5: 0
B6: 1 October 2011 - 31 December 2011 | C6: 79 | D6: 114 | E6: 24 | F6: 1 | G6: =SUM(C6:F6) -> 218
B7: 1 July 2011 - 30 September 2011 | C7: 48 | D7: 110 | E7: 30 | F7: 5 | G7: =SUM(C7:F7) -> 193
B8: 1 April 2011 - 30 June 2011 | C8: 21 | D8: 55 | E8: 29 | F8: 3 | G8: =SUM(C8:F8) -> 108
C11: Outstanding | D11: Good | E11: Satisfactory | F11: Inadequate | G11: Total inspected
B12: =+"1 April 2012 - 30 June 2012" & " (" &G4 &")" -> 1 April 2012 - 30 June 2012 (146) | C12: =IF(C4=0,"0",C4/$G4*100) -> 6.849315068 | D12: =IF(D4=0,"0",D4/$G4*100) -> 50.68493151 | E12: =IF(E4=0,"0",E4/$G4*100) -> 34.93150685 | F12: =IF(F4=0,"0",F4/$G4*100) -> 7.534246575 | G12: =IF(G4=0,"0",G4/$G4*100) -> 100
B14: =+"1 January 2012 - 31 March 2012" & " (" &G5 &")" -> 1 January 2012 - 31 March 2012 (26) | C14: =IF($G5=0,"0",C5/$G5*100) -> 26.92307692 | D14: 50 | E14: 19.23076923 | F14: 3.846153846 | G14: 100
B15: =+"1 October 2011 - 31 December 2011" & " (" &G6 &")" -> 1 October 2011 - 31 December 2011 (218) | C15: 36.23853211 | D15: 52.29357798 | E15: 11.00917431 | F15: 0.4587155963 | G15: 100
B16: =+"1 July 2011 - 30 September 2011" & " (" &G7 &")" -> 1 July 2011 - 30 September 2011 (193) | C16: 24.87046632 | D16: 56.99481865 | E16: 15.54404145 | F16: 2.590673575 | G16: 100
B17: =+"1 April 2011 - 30 June 2011" & " (" &G8 & ")" -> 1 April 2011 - 30 June 2011 (108) | C17: 19.44444444 | D17: 50.92592593 | E17: 26.85185185 | F17: 2.777777778 | G17: 100
B23: Private/voluntary
C24: Outstanding | D24: Good | E24: Satisfactory | F24: Inadequate | G24: Total inspected | I24: 0 | J24: 38 | K24: 2 | L24: 212 | M24: 3 | N24: 122 | O24: 0 | P24: 32
B25: ="1 April 2012 - 30 June 2012" -> 1 April 2012 - 30 June 2012 | C25: 44 | D25: 255 | E25: 153 | F25: 39 | G25: =SUM(C25:F25) -> 491 | I25: 0 | J25: 0 | K25: 0 | L25: 0 | M25: 0 | N25: 0 | O25: 0 | P25: 0
B26: ="1 January 2012 - 31 March 2012" -> 1 January 2012 - 31 March 2012 | C26: 7 | D26: 45 | E26: 23 | F26: 8 | G26: =SUM(C26:F26) -> 83 | I26: 0 | J26: 1 | K26: 0 | L26: 9 | M26: 0 | N26: 5 | O26: 0 | P26: 2
B27: 1 October 2011 - 31 December 2011 | C27: 178 | D27: 298 | E27: 77 | F27: 10 | G27: =SUM(C27:F27) -> 563 | P27: =SUM(I24:P26) -> 426
B28: 1 July 2011 - 30 September 2011 | C28: 115 | D28: 248 | E28: 82 | F28: 6 | G28: =SUM(C28:F28) -> 451
B29: 1 April 2011 - 30 June 2011 | C29: 63 | D29: 201 | E29: 74 | F29: 10 | G29: =SUM(C29:F29) -> 348
C32: Outstanding | D32: Good | E32: Satisfactory | F32: Inadequate | G32: Total inspected
B33: =+"1 April 2012 - 30 June 2012" & " (" &G25 &")" -> 1 April 2012 - 30 June 2012 (491) | C33: =IF($G25=0,"0",C25/$G25*100) -> 8.961303462 | D33: =IF($G25=0,"0",D25/$G25*100) -> 51.93482688 | E33: =IF($G25=0,"0",E25/$G25*100) -> 31.16089613 | F33: =IF($G25=0,"0",F25/$G25*100) -> 7.942973523 | G33: =IF($G4=0,"0",G4/$G4*100) -> 100
B35: =+"1 January 2012 - 31 March 2012" & " (" &G26 &")" -> 1 January 2012 - 31 March 2012 (83) | C35: =IF($G26=0,"0",C26/$G26*100) -> 8.43373494 | D35: 54.21686747 | E35: 27.71084337 | F35: 9.638554217 | G35: 100
B36: =+"1 October 2011 - 31 December 2011" & " (" &G27 &")" -> 1 October 2011 - 31 December 2011 (563) | C36: 31.61634103 | D36: 52.93072824 | E36: 13.67673179 | F36: 1.776198934 | G36: 100
B37: =+"1 July 2011 - 30 September 2011" & " (" &G28 &")" -> 1 July 2011 - 30 September 2011 (451) | C37: 25.49889135 | D37: 54.98891353 | E37: 18.18181818 | F37: 1.33037694 | G37: 100
B38: =+"1 April 2011 - 30 June 2011" & " (" &G29 & ")" -> 1 April 2011 - 30 June 2011 (348) | C38: 18.10344828 | D38: 57.75862069 | E38: 21.26436782 | F38: 2.873563218 | G38: 100

Sheet Chart1&2Data (hidden)
H1: Calculations
B2: Outstanding | C2: Good | D2: Satisfactory | E2: Inadequate | F2: Total | H2: 47 | I2: 284 | J2: 172 | K2: 43
A3: 1 April - 30 September 2012 | B3: =SUM(B4:B5) -> 173 | C3: =SUM(C4:C5) -> 728 | D3: =SUM(D4:D5) -> 340 | E3: =SUM(E4:E5) -> 81 | F3: =SUM(B3:E3) -> 1322
A4: 1 July - 30 September 2012 | B4: 119 | C4: 399 | D4: 136 | E4: 31 | F4: =SUM(B4:E4) -> 685
A5: 1 April 2012 - 30 June 2012 | B5: 54 | C5: 329 | D5: 204 | E5: 50 | F5: =SUM(B5:E5) -> 637
A6: 1 April 2011 - 31 March 2012 | B6: =SUM(L6,B28) -> 518 | C6: =SUM(M6,C28) -> 1084 | D6: =SUM(N6,D28) -> 344 | E6: =SUM(O6,E28) -> 44 | F6: =SUM(B6:E6) -> 1990 | H6: 82 | I6: 249 | J6: 100 | K6: 13 | L6: =SUM(B29:B31) -> 504 | M6: =SUM(C29:C31) -> 1026 | N6: =SUM(D29:D31) -> 316 | O6: =SUM(E29:E31) -> 35
L7: 237 | M7: 391 | N7: 100 | O7: 11
A8: 1 April 2010 - 31 March 2011 | B8: 697 | C8: 2329 | D8: 988 | E8: 167 | F8: =SUM(B8:E8) -> 4181 | H8: 12 | I8: 56 | J8: 26 | K8: 9
A9: 1 April 2009 - 31 March 2010 | B9: 405 | C9: 2075 | D9: 1020 | E9: 255 | F9: =SUM(B9:E9) -> 3755 | H9: 257 | I9: 412 | J9: 101 | K9: 11
A10: 1 April 2008 - 31 March 2009 | B10: 290 | C10: 1896 | D10: 1187 | E10: 333 | F10: =SUM(B10:E10) -> 3706 | H10: 163 | I10: 358 | J10: 112 | K10: 11
A11: 1 April 2007 - 31 March 2008 | B11: 289 | C11: 1997 | D11: 1098 | E11: 368 | F11: =SUM(B11:E11) -> 3752 | H11: 84 | I11: 256 | J11: 103 | K11: 13
B13: Outstanding | C13: Good | D13: Satisfactory | E13: Inadequate | F13: Total
A14: ="1 April 2012 - 30 June 2012 ("&F5 &")" -> 1 April 2012 - 30 June 2012 (637) | B14: =IF($F5=0,"0",B5/$F5*100) -> 8.477237049 | C14: =IF($F5=0,"0",C5/$F5*100) -> 51.64835165 | D14: =IF($F5=0,"0",D5/$F5*100) -> 32.02511774 | E14: =IF($F5=0,"0",E5/$F5*100) -> 7.849293564 | F14: =IF($F5=0,"0",F5/$F5*100) -> 100
A16: ="1 April 2011 - 31 March 2012 ("&F6 &")" -> 1 April 2011 - 31 March 2012 (1990) | B16: =IF($F6=0,"0",B6/$F6*100) -> 26.03015075 | C16: =IF($F6=0,"0",C6/$F6*100) -> 54.47236181 | D16: =IF($F6=0,"0",D6/$F6*100) -> 17.28643216 | E16: =IF($F6=0,"0",E6/$F6*100) -> 2.211055276 | F16: =IF($F6=0,"0",F6/$F6*100) -> 100
A18: ="1 April 2010 - 31 March 2011 ("&F8 &")" -> 1 April 2010 - 31 March 2011 (4181) | B18: =IF($F8=0,"0",B8/$F8*100) -> 16.67065295 | C18: 55.70437694 | D18: 23.63071036 | E18: 3.994259746 | F18: 100
A19: ="1 April 2009 - 31 March 2010 ("&F9 &")" -> 1 April 2009 - 31 March 2010 (3755) | B19: 10.78561917 | C19: 55.25965379 | D19: 27.16378162 | E19: 6.790945406 | F19: 100
A20: ="1 April 2008 - 31 March 2009 ("&F10 &")" -> 1 April 2008 - 31 March 2009 (3706) | B20: 7.825148408 | C20: 51.16028063 | D20: 32.02914193 | E20: 8.985429034 | F20: 100
A21: ="1 April 2007 - 31 March 2008 ("&F11 &")" -> 1 April 2007 - 31 March 2008 (3752) | B21: 7.702558635 | C21: 53.2249467 | D21: 29.26439232 | E21: 9.808102345 | F21: 100
H22: 1 | I22: 2 | J22: 3 | K22: 0
H23: 141 | I23: 314 | J23: 98 | K23: 9
B24: Outstanding | C24: Good | D24: Satisfactory | E24: Inadequate | F24: Total | H24: 83 | I24: 251 | J24: 103 | K24: 13
A25: 1 April - 30 September 2012 | B25: =B3/$F$3*100 -> 13.08623298 | C25: =C3/$F$3*100 -> 55.06807867 | D25: =D3/$F$3*100 -> 25.71860817 | E25: =E3/$F$3*100 -> 6.127080182 | F25: =SUM(B25:E25) -> 100
A26: 1 July - 30 September 2012 | B26: =B4/$F$4*100 -> 17.37226277 | C26: =C4/$F$4*100 -> 58.24817518 | D26: =D4/$F$4*100 -> 19.8540146 | E26: =E4/$F$4*100 -> 4.525547445 | F26: =F4/$F$4*100 -> 100
A27: 1 April 2012 - 30 June 2012 | B27: 54 | C27: 329 | D27: 204 | E27: 50 | F27: =F5 -> 637 | H27: 712 | I27: 228 | J27: 377 | K27: 97
A28: 1 January 2012 - 31 March 2012 | B28: =SUM(J39:J41) -> 14 | C28: =SUM(K39:K41) -> 58 | D28: =SUM(L39:L41) -> 28 | E28: =SUM(M39:M41) -> 9 | F28: =SUM(B28:E28) -> 109 | H28: ) | I28: =SUM(I24:I27) -> 479 | J28: =SUM(J24:J27) -> 480 | K28: =SUM(K24:K27) -> 110
A29: 1 October 2011 - 31 December 2011 | B29: =H9 -> 257 | C29: 412 | D29: 101 | E29: 11 | F29: =SUM(B29:E29) -> 781
A30: 1 July 2011 - 30 September 2011 | B30: 163 | C30: 358 | D30: 112 | E30: 11 | F30: =SUM(B30:E30) -> 644
A31: 1 April 2011 - 30 June 2011 | B31: 84 | C31: 256 | D31: 103 | E31: 13 | F31: =SUM(B31:E31) -> 456 | H31: =SUM(B29:B31) -> 504 | I31: =SUM(C29:C31) -> 1026 | J31: =SUM(D29:D31) -> 316 | K31: =SUM(E29:E31) -> 35
A33: 1 January 2011 - 31 March 2011 | B33: 279 | C33: 881 | D33: 394 | E33: 46 | F33: =SUM(B33:E33) -> 1600 | H33: =SUM(R18:R19) -> 0 | I33: =SUM(S18:S19) -> 0 | J33: =SUM(T18:T19) -> 0 | K33: =SUM(U18:U19) -> 0
A34: 1 October 2010 - 31 December 2010 | B34: 198 | C34: 648 | D34: 247 | E34: 38 | F34: 1131 | H34: =SUM(N33:N34) -> 0 | I34: =SUM(O33:O34) -> 0 | J34: =SUM(P33:P34) -> 0 | K34: =SUM(Q18:Q19) -> 0
A35: 1 July 2010 - 30 September 2010 | B35: 143 | C35: 454 | D35: 177 | E35: 47 | F35: 821
A36: 1 April 2010 - 30 June 2010 | B36: 77 | C36: 346 | D36: 170 | E36: 36 | F36: 629
A37: 1 January 2010 - 31 March 2010 | B37: 155 | C37: 726 | D37: 340 | E37: 73 | F37: 1294
A38: 1 October 2009 - 31 December 2009 | B38: 126 | C38: 619 | D38: 287 | E38: 76 | F38: 1108
A39: 1 July 2009 - 30 September 2009 | B39: 95 | C39: 481 | D39: 263 | E39: 52 | F39: 891 | H39: Children's homes | I39: 86 | J39: 12 | K39: 54 | L39: 26 | M39: 9
A40: 1 April 2009 - 30 June 2009 | B40: 62 | C40: 404 | D40: 208 | E40: 72 | F40: 746 | H40: Secure children's homes | I40: 2 | J40: 0 | K40: 2 | L40: 0 | M40: 0
A41: 1 January 2009 - 31 March 2009 | B41: 106 | C41: 617 | D41: 366 | E41: 97 | F41: 1186 | H41: RSS | I41: 6 | J41: 2 | K41: 2 | L41: 2 | M41: 0
A42: 1 October 2008 - 31 December 2008 | B42: 87 | C42: 582 | D42: 400 | E42: 101 | F42: 1170
A43: 1 July 2008 - 30 September 2008 | B43: 72 | C43: 456 | D43: 298 | E43: 80 | F43: 906 | H43: 82 | I43: 249 | J43: 100 | K43: 13 | L43: 140 | M43: 308 | N43: 98 | O43: 9
A44: 1 April 2008 - 30 June 2008 | B44: 46 | C44: 384 | D44: 225 | E44: 77 | F44: 732 | H44: 1 | I44: 2 | J44: 3 | K44: 0 | L44: 1 | M44: 6 | N44: 0 | O44: 0
A45: 1 January 2008 - 31 March 2008 | B45: 103 | C45: 657 | D45: 342 | E45: 97 | F45: 1199
A46: 1 October 2007 - 31 December 2007 | B46: 88 | C46: 579 | D46: 279 | E46: 93 | F46: 1039
A47: 1 July 2007 - 30 September 2007 | B47: 68 | C47: 484 | D47: 249 | E47: 103 | F47: 904 | H47: 228 | I47: 374 | J47: 96 | K47: 10 | L47: 10
A48: 1 April 2007 - 30 June 2007 | B48: 49 | C48: 399 | D48: 293 | E48: 103 | F48: 844 | H48: 0 | I48: 3 | J48: 1 | K48: 0 | L48: 0
H49: 21 | I49: 18 | J49: 1 | K49: 0
B50: Outstanding | C50: Good | D50: Satisfactory | E50: Inadequate | F50: Total | H50: =SUM(H47:H48) -> 228 | I50: =SUM(I47:I48) -> 377 | J50: =SUM(J47:J48) -> 97 | K50: =SUM(K47:K48) -> 10 | L50: =SUM(L47:L48) -> 10
A51: =+"1 April 2012 - 30 June 2012" & " (" &F27 &")" -> 1 April 2012 - 30 June 2012 (637) | B51: =IF($F27=0,"0",B27/$F27*100) -> 8.477237049 | C51: =IF($F27=0,"0",C27/$F27*100) -> 51.64835165 | D51: =IF($F27=0,"0",D27/$F27*100) -> 32.02511774 | E51: =IF($F27=0,"0",E27/$F27*100) -> 7.849293564 | F51: =IF($F27=0,"0",F27/$F27*100) -> 100
A53: =+"1 January 2012 - 31 March 2012" & " (" &F28 &")" -> 1 January 2012 - 31 March 2012 (109) | B53: =IF($F28=0,"0",B28/$F28*100) -> 12.8440367 | C53: 53.21100917 | D53: 25.68807339 | E53: 8.256880734 | F53: 100
A54: =+"1 October 2011 - 31 December 2011" & " (" &F29 &")" -> 1 October 2011 - 31 December 2011 (781) | B54: 32.90653009 | C54: 52.75288092 | D54: 12.93213828 | E54: 1.408450704 | F54: 100
A55: =+"1 July 2011 - 30 September 2011" & " (" &F30 &")" -> 1 July 2011 - 30 September 2011 (644) | B55: 25.31055901 | C55: 55.59006211 | D55: 17.39130435 | E55: 1.708074534 | F55: 100
A56: =+"1 April 2011 - 30 June 2011" & " (" & F31 & ")" -> 1 April 2011 - 30 June 2011 (456) | B56: =IF($F31=0,"0",B31/$F31*100) -> 18.42105263 | C56: =IF($F31=0,"0",C31/$F31*100) -> 56.14035088 | D56: =IF($F31=0,"0",D31/$F31*100) -> 22.5877193 | E56: =IF($F31=0,"0",E31/$F31*100) -> 2.850877193
A58: =+"1 January 2011 - 31 March 2011 ("&F33 &")" -> 1 January 2011 - 31 March 2011 (1600) | B58: =IF($F33=0,"0",B33/$F33*100) -> 17.4375 | C58: 55.0625 | D58: 24.625 | E58: 2.875 | F58: 100
A59: ="1 October 2010 - 31 December 2010 ("&F34 &")" -> 1 October 2010 - 31 December 2010 (1131) | B59: 17.5066313 | C59: 57.29442971 | D59: 21.83908046 | E59: 3.359858532 | F59: 100
A60: ="1 July 2010 - 30 September 2010 ("&F35 &")" -> 1 July 2010 - 30 September 2010 (821) | B60: 17.41778319 | C60: 55.29841657 | D60: 21.5590743 | E60: 5.724725944 | F60: 100
A61: ="1 April 2010 - 30 June 2010 ("&F36 &")" -> 1 April 2010 - 30 June 2010 (629) | B61: 12.24165342 | C61: 55.00794913 | D61: 27.02702703 | E61: 5.723370429 | F61: 100
A62: ="1 January 2010 - 31 March 2010 ("&F37 &")" -> 1 January 2010 - 31 March 2010 (1294) | B62: 11.97836167 | C62: 56.10510046 | D62: 26.27511592 | E62: 5.641421947 | F62: 100
A63: ="1 October 2009 - 31 December 2009 ("&F38 &")" -> 1 October 2009 - 31 December 2009 (1108) | B63: 11.37184116 | C63: 55.86642599 | D63: 25.90252708 | E63: 6.859205776 | F63: 100
A64: ="1 July 2009 - 30 September 2009 ("&F39 &")" -> 1 July 2009 - 30 September 2009 (891) | B64: 10.66217733 | C64: 53.98428732 | D64: 29.51739618 | E64: 5.836139169 | F64: 100
A65: ="1 April 2009 - 30 June 2009 ("&F40 &")" -> 1 April 2009 - 30 June 2009 (746) | B65: 8.310991957 | C65: 54.15549598 | D65: 27.88203753 | E65: 9.651474531 | F65: 100
A66: ="1 January 2009 - 31 March 2009 ("&F41 &")" -> 1 January 2009 - 31 March 2009 (1186) | B66: 8.937605396 | C66: 52.02360877 | D66: 30.86003373 | E66: 8.178752108 | F66: 100
A67: ="1 October 2008 - 31 December 2008 ("&F42 &")" -> 1 October 2008 - 31 December 2008 (1170) | B67: 7.435897436 | C67: 49.74358974 | D67: 34.18803419 | E67: 8.632478632 | F67: 100
A68: ="1 July 2008 - 30 September 2008 ("&F43 &")" -> 1 July 2008 - 30 September 2008 (906) | B68: 7.947019868 | C68: 50.33112583 | D68: 32.89183223 | E68: 8.830022075 | F68: 100
A69: ="1 April 2008 - 30 June 2008 ("&F44 &")" -> 1 April 2008 - 30 June 2008 (732) | B69: 6.284153005 | C69: 52.45901639 | D69: 30.73770492 | E69: 10.51912568 | F69: 100
A70: ="1 January 2008 - 31 March 2008 ("&F45 &")" -> 1 January 2008 - 31 March 2008 (1199) | B70: 8.590492077 | C70: 54.79566305 | D70: 28.52376981 | E70: 8.090075063 | F70: 100
A71: ="1 October 2007 - 31 December 2007 ("&F46 &")" -> 1 October 2007 - 31 December 2007 (1039) | B71: 8.469682387 | C71: 55.72666025 | D71: 26.85274302 | E71: 8.950914341 | F71: 100
A72: ="1 July 2007 - 30 September 2007 ("&F47 &")" -> 1 July 2007 - 30 September 2007 (904) | B72: 7.522123894 | C72: 53.53982301 | D72: 27.54424779 | E72: 11.39380531 | F72: 100
A73: ="1 April 2007 - 30 June 2007 ("&F48 &")" -> 1 April 2007 - 30 June 2007 (844) | B73: 5.805687204 | C73: 47.27488152 | D73: 34.71563981 | E73: 12.20379147 | F73: 100

Sheet Chart 1
B2: Chart 1: Overall effectiveness of all children's homes inspected between 1 April 2007 and 30 June 2012, by financial year (final)1 2
B7: Number of children's homes
B8: Year | C8: Outstanding | D8: Good | E8: Satisfactory/ Adequate | F8: Inadequate | G8: Total number inspected
B10: 1 April 2012 - 30 June 2012 | C10: ='Chart1&2Data'!B5 -> 54 | D10: ='Chart1&2Data'!C5 -> 329 | E10: ='Chart1&2Data'!D5 -> 204 | F10: ='Chart1&2Data'!E5 -> 50 | G10: ='Chart1&2Data'!F5 -> 637
B13: ='Chart1&2Data'!A6 -> 1 April 2011 - 31 March 2012 | C13: ='Chart1&2Data'!B6 -> 518 | D13: ='Chart1&2Data'!C6 -> 1084 | E13: ='Chart1&2Data'!D6 -> 344 | F13: ='Chart1&2Data'!E6 -> 44 | G13: ='Chart1&2Data'!F6 -> 1990
B16: ='Chart1&2Data'!A8 -> 1 April 2010 - 31 March 2011 | C16: ='Chart1&2Data'!B8 -> 697 | D16: ='Chart1&2Data'!C8 -> 2329 | E16: ='Chart1&2Data'!D8 -> 988 | F16: ='Chart1&2Data'!E8 -> 167 | G16: ='Chart1&2Data'!F8 -> 4181
B17: ='Chart1&2Data'!A9 -> 1 April 2009 - 31 March 2010 | C17: ='Chart1&2Data'!B9 -> 405 | D17: ='Chart1&2Data'!C9 -> 2075 | E17: ='Chart1&2Data'!D9 -> 1020 | F17: ='Chart1&2Data'!E9 -> 255 | G17: ='Chart1&2Data'!F9 -> 3755
B18: ='Chart1&2Data'!A10 -> 1 April 2008 - 31 March 2009 | C18: ='Chart1&2Data'!B10 -> 290 | D18: ='Chart1&2Data'!C10 -> 1896 | E18: ='Chart1&2Data'!D10 -> 1187 | F18: ='Chart1&2Data'!E10 -> 333 | G18: ='Chart1&2Data'!F10 -> 3706
B19: ='Chart1&2Data'!A11 -> 1 April 2007 - 31 March 2008 | C19: ='Chart1&2Data'!B11 -> 289 | D19: ='Chart1&2Data'!C11 -> 1997 | E19: ='Chart1&2Data'!D11 -> 1098 | F19: ='Chart1&2Data'!E11 -> 368 | G19: ='Chart1&2Data'!F11 -> 3752
G21: Source: Ofsted inspections
B23: Percentage of children's homes
B35: 1. Percentages are rounded and may not add to 100.
B36: 2. Inspections since the inspection framework change on 1 April 2011 include only full inspections, inspections prior to 1 April 2011 include both interim and full inspection.

Sheet Chart 2
B2: Chart 2: Overall effectiveness of all children's homes inspected between 1 April 2007 and 30 June 2012, by quarter (provisional)1 2
B6: Number of children's homes
B7: Quarter | C7: Outstanding | D7: Good | E7: Satisfactory/ Adequate | F7: Inadequate | G7: Total number inspected
B9: ='[1]Chart1&2Data'!A27 -> 1 April 2012 - 30 June 2012 | C9: ='Chart1&2Data'!B5 -> 54 | D9: ='Chart1&2Data'!C5 -> 329 | E9: ='Chart1&2Data'!D5 -> 204 | F9: ='Chart1&2Data'!E5 -> 50 | G9: ='Chart1&2Data'!F5 -> 637
B11: ='[1]Chart1&2Data'!A28 -> 1 January 2012 - 31 March 2012 | C11: ='[1]Chart1&2Data'!B28 -> 14 | D11: ='[1]Chart1&2Data'!C28 -> 58 | E11: ='[1]Chart1&2Data'!D28 -> 28 | F11: ='[1]Chart1&2Data'!E28 -> 9 | G11: ='[1]Chart1&2Data'!F28 -> 109
B12: ='[1]Chart1&2Data'!A29 -> 1 October 2011 - 31 December 2011 | C12: ='[1]Chart1&2Data'!B29 -> 257 | D12: ='[1]Chart1&2Data'!C29 -> 412 | E12: ='[1]Chart1&2Data'!D29 -> 101 | F12: ='[1]Chart1&2Data'!E29 -> 11 | G12: ='[1]Chart1&2Data'!F29 -> 781
B13: ='[1]Chart1&2Data'!A30 -> 1 July 2011 - 30 September 2011 | C13: ='[1]Chart1&2Data'!B30 -> 163 | D13: ='[1]Chart1&2Data'!C30 -> 358 | E13: ='[1]Chart1&2Data'!D30 -> 112 | F13: ='[1]Chart1&2Data'!E30 -> 11 | G13: ='[1]Chart1&2Data'!F30 -> 644
B14: ='[1]Chart1&2Data'!A31 -> 1 April 2011 - 30 June 2011 | C14: ='[1]Chart1&2Data'!B31 -> 84 | D14: ='[1]Chart1&2Data'!C31 -> 256 | E14: ='[1]Chart1&2Data'!D31 -> 103 | F14: ='[1]Chart1&2Data'!E31 -> 13 | G14: ='[1]Chart1&2Data'!F31 -> 456
B16: ='[1]Chart1&2Data'!A33 -> 1 January 2011 - 31 March 2011 | C16: 279 | D16: 881 | E16: 394 | F16: 46 | G16: =SUM(C16:F16) -> 1600
B17: ='[1]Chart1&2Data'!A34 -> 1 October 2010 - 31 December 2010 | C17: 198 | D17: 648 | E17: 247 | F17: 38 | G17: 1131
B18: ='[1]Chart1&2Data'!A35 -> 1 July 2010 - 30 September 2010 | C18: 143 | D18: 454 | E18: 177 | F18: 47 | G18: 821
B19: ='[1]Chart1&2Data'!A36 -> 1 April 2010 - 30 June 2010 | C19: 77 | D19: 346 | E19: 170 | F19: 36 | G19: 629
B20: ='[1]Chart1&2Data'!A37 -> 1 January 2010 - 31 March 2010 | C20: 155 | D20: 726 | E20: 340 | F20: 73 | G20: 1294
B21: ='[1]Chart1&2Data'!A38 -> 1 October 2009 - 31 December 2009 | C21: 126 | D21: 619 | E21: 287 | F21: 76 | G21: 1108
B22: ='[1]Chart1&2Data'!A39 -> 1 July 2009 - 30 September 2009 | C22: 95 | D22: 481 | E22: 263 | F22: 52 | G22: 891
B23: ='[1]Chart1&2Data'!A40 -> 1 April 2009 - 30 June 2009 | C23: 62 | D23: 404 | E23: 208 | F23: 72 | G23: 746
B24: ='[1]Chart1&2Data'!A41 -> 1 January 2009 - 31 March 2009 | C24: 106 | D24: 617 | E24: 366 | F24: 97 | G24: 1186
B25: ='[1]Chart1&2Data'!A42 -> 1 October 2008 - 31 December 2008 | C25: 87 | D25: 582 | E25: 400 | F25: 101 | G25: 1170
B26: ='[1]Chart1&2Data'!A43 -> 1 July 2008 - 30 September 2008 | C26: 72 | D26: 456 | E26: 298 | F26: 80 | G26: 906
B27: ='[1]Chart1&2Data'!A44 -> 1 April 2008 - 30 June 2008 | C27: 46 | D27: 384 | E27: 225 | F27: 77 | G27: 732
B28: ='[1]Chart1&2Data'!A45 -> 1 January 2008 - 31 March 2008 | C28: 103 | D28: 657 | E28: 342 | F28: 97 | G28: 1199
B29: ='[1]Chart1&2Data'!A46 -> 1 October 2007 - 31 December 2007 | C29: 88 | D29: 579 | E29: 279 | F29: 93 | G29: 1039
B30: ='[1]Chart1&2Data'!A47 -> 1 July 2007 - 30 September 2007 | C30: 68 | D30: 484 | E30: 249 | F30: 103 | G30: 904
B31: ='[1]Chart1&2Data'!A48 -> 1 April 2007 - 30 June 2007 | C31: 49 | D31: 399 | E31: 293 | F31: 103 | G31: 844
G34: Source: Ofsted inspections
B35: Percentage of children's homes
B61: 1. Percentages are rounded and may not add to 100.
B62: 2. Inspections since the inspection framework change on 1 April 2011 include only full inspections, inspections prior to 1 April 2011 include both interim and full inspection.

Sheet Chart 3
B2: Chart 3: Overall effectiveness of local authority run children's homes inspected between 1 April 2011 and 30 June 2012, by quarter (final)1 2
B6: Number of children's homes
B7: Quarter | C7: Outstanding | D7: Good | E7: Satisfactory/ Adequate | F7: Inadequate | G7: Total number inspected
B9: ='Chart3&4Data'!B4 -> 1 April 2012 - 30 June 2012 | C9: ='Chart3&4Data'!C4 -> 10 | D9: ='Chart3&4Data'!D4 -> 74 | E9: ='Chart3&4Data'!E4 -> 51 | F9: ='Chart3&4Data'!F4 -> 11 | G9: ='Chart3&4Data'!G4 -> 146
B11: ='Chart3&4Data'!B5 -> 1 January 2012 - 31 March 2012 | C11: ='Chart3&4Data'!C5 -> 7 | D11: ='Chart3&4Data'!D5 -> 13 | E11: ='Chart3&4Data'!E5 -> 5 | F11: ='Chart3&4Data'!F5 -> 1 | G11: ='Chart3&4Data'!G5 -> 26
B12: ='Chart3&4Data'!B6 -> 1 October 2011 - 31 December 2011 | C12: ='Chart3&4Data'!C6 -> 79 | D12: ='Chart3&4Data'!D6 -> 114 | E12: ='Chart3&4Data'!E6 -> 24 | F12: ='Chart3&4Data'!F6 -> 1 | G12: ='Chart3&4Data'!G6 -> 218
B13: ='Chart3&4Data'!B7 -> 1 July 2011 - 30 September 2011 | C13: ='Chart3&4Data'!C7 -> 48 | D13: ='Chart3&4Data'!D7 -> 110 | E13: ='Chart3&4Data'!E7 -> 30 | F13: ='Chart3&4Data'!F7 -> 5 | G13: ='Chart3&4Data'!G7 -> 193
B14: ='Chart3&4Data'!B8 -> 1 April 2011 - 30 June 2011 | C14: ='Chart3&4Data'!C8 -> 21 | D14: ='Chart3&4Data'!D8 -> 55 | E14: ='Chart3&4Data'!E8 -> 29 | F14: ='Chart3&4Data'!F8 -> 3 | G14: ='Chart3&4Data'!G8 -> 108
G16: Source: Ofsted inspections
B31: 1. Percentages are rounded and may not add to 100.
B32: 2. Local authority data include a small number of homes run by health authorities.

Sheet Chart 4
B2: Chart 4: Overall effectiveness of private and voluntary run children's homes inspected between 1 April 2011 and 30 June 2012, by quarter (final)1
B6: Number of children's homes
B7: Quarter | C7: Outstanding | D7: Good | E7: Satisfactory/ Adequate | F7: Inadequate | G7: Total number inspected
B9: ='Chart3&4Data'!B25 -> 1 April 2012 - 30 June 2012 | C9: ='Chart3&4Data'!C25 -> 44 | D9: ='Chart3&4Data'!D25 -> 255 | E9: ='Chart3&4Data'!E25 -> 153 | F9: ='Chart3&4Data'!F25 -> 39 | G9: ='Chart3&4Data'!G25 -> 491
B11: ='Chart3&4Data'!B26 -> 1 January 2012 - 31 March 2012 | C11: ='Chart3&4Data'!C26 -> 7 | D11: ='Chart3&4Data'!D26 -> 45 | E11: ='Chart3&4Data'!E26 -> 23 | F11: ='Chart3&4Data'!F26 -> 8 | G11: ='Chart3&4Data'!G26 -> 83
B12: ='Chart3&4Data'!B27 -> 1 October 2011 - 31 December 2011 | C12: ='Chart3&4Data'!C27 -> 178 | D12: ='Chart3&4Data'!D27 -> 298 | E12: ='Chart3&4Data'!E27 -> 77 | F12: ='Chart3&4Data'!F27 -> 10 | G12: ='Chart3&4Data'!G27 -> 563
B13: ='Chart3&4Data'!B28 -> 1 July 2011 - 30 September 2011 | C13: ='Chart3&4Data'!C28 -> 115 | D13: ='Chart3&4Data'!D28 -> 248 | E13: ='Chart3&4Data'!E28 -> 82 | F13: ='Chart3&4Data'!F28 -> 6 | G13: ='Chart3&4Data'!G28 -> 451
B14: ='Chart3&4Data'!B29 -> 1 April 2011 - 30 June 2011 | C14: ='Chart3&4Data'!C29 -> 63 | D14: ='Chart3&4Data'!D29 -> 201 | E14: ='Chart3&4Data'!E29 -> 74 | F14: ='Chart3&4Data'!F29 -> 10 | G14: ='Chart3&4Data'!G29 -> 348
G16: Source: Ofsted inspections
B32: 1. Percentages are rounded and may not add to 100.

Sheet Map 1
B2: Children's homes receiving a good or better overall effectiveness grade at full inspection, by former Government Office Region, since 1 April 2012 (final)
L14: England average 60%

Sheet Map 2
B2: Children's homes receiving an adequate or lower overall effectiveness grade at full inspection, by former Government Office Region, since 1 April 2012 (final)
L14: England average 40%

Sheet Maps 3 + 4
B2: Local authority run children's homes receiving a good or better overall effectiveness grade at full inspection, by former Government Office Region, since 1 April 2012 (final)1 | M2: Private and voluntary run children's homes receiving a good or better overall effectiveness grade at full inspection, by former Government Office Region, since 1 April 2012 (final)
B39: 1. Local authority data include a small number of homes run by health authorities.

Sheet Maps 5 + 6
B2: Local authority run children's homes receiving an adequate or lower overall effectiveness grade at full inspection, by former Government Office Region, since 1 April 2012 (final)1 | M2: Private and voluntary run children's homes receiving an adequate or lower overall effectiveness grade at full inspection, by former Government Office Region, since 1 April 2012 (final)
B39: 1. Local authority data include a small number of homes run by health authorities.
